Workbook

Sheet Leaderboard
A5: No. | B5: Name | C5: Team Name | D5: 2020-02-01 | E5: 2020-03-01 | F5: 2020-08-01 | G5: 2020-09-01 | H5: 2020-10-01 | I5: Total Pts
A6: 1 | B6: Joseph Kavanagh | C6: Joey's Invincibles | D6: =HLOOKUP(B6,February!$I$1:$BE$52,52,FALSE) -> 94 | E6: =HLOOKUP(B6,March!$I$1:$BE$40,40,FALSE) -> 26 | F6: =HLOOKUP(B6,'July & August'!$I$1:$BE$58,58,FALSE) -> 88 | G6: =HLOOKUP(B6,September!$I$1:$BE$42,42,FALSE) -> 77 | H6: =HLOOKUP(B6,October!$I$1:$BE$48,48,FALSE) -> 17 | I6: =SUM(D6:H6) -> 302
A7: 2 | B7: Andy Dunne | C7: Ballymore Shamrocks | D7: =HLOOKUP(B7,February!$I$1:$BE$52,52,FALSE) -> 74 | E7: =HLOOKUP(B7,March!$I$1:$BE$40,40,FALSE) -> 35 | F7: =HLOOKUP(B7,'July & August'!$I$1:$BE$58,58,FALSE) -> 71 | G7: =HLOOKUP(B7,September!$I$1:$BE$42,42,FALSE) -> 103 | H7: =HLOOKUP(B7,October!$I$1:$BE$48,48,FALSE) -> 15 | I7: =SUM(D7:H7) -> 298
A8: 3 | B8: Keith Ryan | C8: Wearethewanderers | D8: =HLOOKUP(B8,February!$I$1:$BE$52,52,FALSE) -> 79 | E8: =HLOOKUP(B8,March!$I$1:$BE$40,40,FALSE) -> 23 | F8: =HLOOKUP(B8,'July & August'!$I$1:$BE$58,58,FALSE) -> 95 | G8: =HLOOKUP(B8,September!$I$1:$BE$42,42,FALSE) -> 59 | H8: =HLOOKUP(B8,October!$I$1:$BE$48,48,FALSE) -> 22 | I8: =SUM(D8:H8) -> 278
A9: 4 | B9: Gary Donnelly | C9: Cabinteely II | D9: =HLOOKUP(B9,February!$I$1:$BE$52,52,FALSE) -> 61 | E9: =HLOOKUP(B9,March!$I$1:$BE$40,40,FALSE) -> 26 | F9: =HLOOKUP(B9,'July & August'!$I$1:$BE$58,58,FALSE) -> 86 | G9: =HLOOKUP(B9,September!$I$1:$BE$42,42,FALSE) -> 84 | H9: =HLOOKUP(B9,October!$I$1:$BE$48,48,FALSE) -> 15 | I9: =SUM(D9:H9) -> 272
A10: 5 | B10: Joe Turner | C10: The Dairymen of Stradbrook | D10: =HLOOKUP(B10,February!$I$1:$BE$52,52,FALSE) -> 89 | E10: =HLOOKUP(B10,March!$I$1:$BE$40,40,FALSE) -> 26 | F10: =HLOOKUP(B10,'July & August'!$I$1:$BE$58,58,FALSE) -> 68 | G10: =HLOOKUP(B10,September!$I$1:$BE$42,42,FALSE) -> 77 | H10: =HLOOKUP(B10,October!$I$1:$BE$48,48,FALSE) -> 12 | I10: =SUM(D10:H10) -> 272
A11: 6 | B11: Eamon Fox | C11: Culchies United | D11: =HLOOKUP(B11,February!$I$1:$BE$52,52,FALSE) -> 82 | E11: =HLOOKUP(B11,March!$I$1:$BE$40,40,FALSE) -> 28 | F11: =HLOOKUP(B11,'July & August'!$I$1:$BE$58,58,FALSE) -> 71 | G11: =HLOOKUP(B11,September!$I$1:$BE$42,42,FALSE) -> 67 | H11: =HLOOKUP(B11,October!$I$1:$BE$48,48,FALSE) -> 20 | I11: =SUM(D11:H11) -> 268
A12: 7 | B12: Darragh Kenny | C12: Luca Connell CSC | D12: =HLOOKUP(B12,February!$I$1:$BE$52,52,FALSE) -> 76 | E12: =HLOOKUP(B12,March!$I$1:$BE$40,40,FALSE) -> 23 | F12: =HLOOKUP(B12,'July & August'!$I$1:$BE$58,58,FALSE) -> 95 | G12: =HLOOKUP(B12,September!$I$1:$BE$42,42,FALSE) -> 59 | H12: =HLOOKUP(B12,October!$I$1:$BE$48,48,FALSE) -> 12 | I12: =SUM(D12:H12) -> 265
A13: 8 | B13: Niall Carroll | C13: The Yellow Bellies | D13: =HLOOKUP(B13,February!$I$1:$BE$52,52,FALSE) -> 81 | E13: =HLOOKUP(B13,March!$I$1:$BE$40,40,FALSE) -> 33 | F13: =HLOOKUP(B13,'July & August'!$I$1:$BE$58,58,FALSE) -> 50 | G13: =HLOOKUP(B13,September!$I$1:$BE$42,42,FALSE) -> 84 | H13: =HLOOKUP(B13,October!$I$1:$BE$48,48,FALSE) -> 17 | I13: =SUM(D13:H13) -> 265
A14: 9 | B14: Caroline Carroll | C14: Tarzan's 11 | D14: =HLOOKUP(B14,February!$I$1:$BE$52,52,FALSE) -> 94 | E14: =HLOOKUP(B14,March!$I$1:$BE$40,40,FALSE) -> 25 | F14: =HLOOKUP(B14,'July & August'!$I$1:$BE$58,58,FALSE) -> 68 | G14: =HLOOKUP(B14,September!$I$1:$BE$42,42,FALSE) -> 43 | H14: =HLOOKUP(B14,October!$I$1:$BE$48,48,FALSE) -> 32 | I14: =SUM(D14:H14) -> 262
A15: 10 | B15: Eoghan Brophy | C15: Tolka Dreamers | D15: =HLOOKUP(B15,February!$I$1:$BE$52,52,FALSE) -> 81 | E15: =HLOOKUP(B15,March!$I$1:$BE$40,40,FALSE) -> 26 | F15: =HLOOKUP(B15,'July & August'!$I$1:$BE$58,58,FALSE) -> 80 | G15: =HLOOKUP(B15,September!$I$1:$BE$42,42,FALSE) -> 58 | H15: =HLOOKUP(B15,October!$I$1:$BE$48,48,FALSE) -> 17 | I15: =SUM(D15:H15) -> 262
A16: 11 | B16: Gary McGurk | C16: Chelfest 2013 | D16: =HLOOKUP(B16,February!$I$1:$BE$52,52,FALSE) -> 72 | E16: =HLOOKUP(B16,March!$I$1:$BE$40,40,FALSE) -> 33 | F16: =HLOOKUP(B16,'July & August'!$I$1:$BE$58,58,FALSE) -> 64 | G16: =HLOOKUP(B16,September!$I$1:$BE$42,42,FALSE) -> 66 | H16: =HLOOKUP(B16,October!$I$1:$BE$48,48,FALSE) -> 25 | I16: =SUM(D16:H16) -> 260
A17: 12 | B17: Tom Keane | C17: Hoopshoops | D17: =HLOOKUP(B17,February!$I$1:$BE$52,52,FALSE) -> 75 | E17: =HLOOKUP(B17,March!$I$1:$BE$40,40,FALSE) -> 24 | F17: =HLOOKUP(B17,'July & August'!$I$1:$BE$58,58,FALSE) -> 71 | G17: =HLOOKUP(B17,September!$I$1:$BE$42,42,FALSE) -> 74 | H17: =HLOOKUP(B17,October!$I$1:$BE$48,48,FALSE) -> 12 | I17: =SUM(D17:H17) -> 256
A18: 13 | B18: Jay Thomas | C18: Tallaght Toppers | D18: =HLOOKUP(B18,February!$I$1:$BE$52,52,FALSE) -> 71 | E18: =HLOOKUP(B18,March!$I$1:$BE$40,40,FALSE) -> 23 | F18: =HLOOKUP(B18,'July & August'!$I$1:$BE$58,58,FALSE) -> 80 | G18: =HLOOKUP(B18,September!$I$1:$BE$42,42,FALSE) -> 69 | H18: =HLOOKUP(B18,October!$I$1:$BE$48,48,FALSE) -> 12 | I18: =SUM(D18:H18) -> 255
A19: 14 | B19: Davy Doyle | C19: Whitechurch FC | D19: =HLOOKUP(B19,February!$I$1:$BE$52,52,FALSE) -> 68 | E19: =HLOOKUP(B19,March!$I$1:$BE$40,40,FALSE) -> 28 | F19: =HLOOKUP(B19,'July & August'!$I$1:$BE$58,58,FALSE) -> 65 | G19: =HLOOKUP(B19,September!$I$1:$BE$42,42,FALSE) -> 73 | H19: =HLOOKUP(B19,October!$I$1:$BE$48,48,FALSE) -> 19 | I19: =SUM(D19:H19) -> 253
A20: 15 | B20: Paul Moore | C20: Niall Quinn's Disco Pants | D20: =HLOOKUP(B20,February!$I$1:$BE$52,52,FALSE) -> 69 | E20: =HLOOKUP(B20,March!$I$1:$BE$40,40,FALSE) -> 30 | F20: =HLOOKUP(B20,'July & August'!$I$1:$BE$58,58,FALSE) -> 56 | G20: =HLOOKUP(B20,September!$I$1:$BE$42,42,FALSE) -> 73 | H20: =HLOOKUP(B20,October!$I$1:$BE$48,48,FALSE) -> 25 | I20: =SUM(D20:H20) -> 253
A21: 16 | B21: Trevor Rankin | C21: Trev's Tossers | D21: =HLOOKUP(B21,February!$I$1:$BE$52,52,FALSE) -> 61 | E21: =HLOOKUP(B21,March!$I$1:$BE$40,40,FALSE) -> 25 | F21: =HLOOKUP(B21,'July & August'!$I$1:$BE$58,58,FALSE) -> 61 | G21: =HLOOKUP(B21,September!$I$1:$BE$42,42,FALSE) -> 87 | H21: =HLOOKUP(B21,October!$I$1:$BE$48,48,FALSE) -> 12 | I21: =SUM(D21:H21) -> 246
A22: 17 | B22: Graeme Buckley | C22: Canyoneroes | D22: =HLOOKUP(B22,February!$I$1:$BE$52,52,FALSE) -> 44 | E22: =HLOOKUP(B22,March!$I$1:$BE$40,40,FALSE) -> 25 | F22: =HLOOKUP(B22,'July & August'!$I$1:$BE$58,58,FALSE) -> 101 | G22: =HLOOKUP(B22,September!$I$1:$BE$42,42,FALSE) -> 58 | H22: =HLOOKUP(B22,October!$I$1:$BE$48,48,FALSE) -> 15 | I22: =SUM(D22:H22) -> 243
A23: 18 | B23: Alan Doyle | C23: Shamrock Ravers | D23: =HLOOKUP(B23,February!$I$1:$BE$52,52,FALSE) -> 74 | E23: =HLOOKUP(B23,March!$I$1:$BE$40,40,FALSE) -> 21 | F23: =HLOOKUP(B23,'July & August'!$I$1:$BE$58,58,FALSE) -> 68 | G23: =HLOOKUP(B23,September!$I$1:$BE$42,42,FALSE) -> 72 | H23: =HLOOKUP(B23,October!$I$1:$BE$48,48,FALSE) -> 7 | I23: =SUM(D23:H23) -> 242
A24: 19 | B24: Gary Fitzpatrick | C24: Cabo Ultra's | D24: =HLOOKUP(B24,February!$I$1:$BE$52,52,FALSE) -> 72 | E24: =HLOOKUP(B24,March!$I$1:$BE$40,40,FALSE) -> 23 | F24: =HLOOKUP(B24,'July & August'!$I$1:$BE$58,58,FALSE) -> 76 | G24: =HLOOKUP(B24,September!$I$1:$BE$42,42,FALSE) -> 57 | H24: =HLOOKUP(B24,October!$I$1:$BE$48,48,FALSE) -> 10 | I24: =SUM(D24:H24) -> 238
A25: 20 | B25: Tommy Hamill | C25: Omeath Allstars | D25: =HLOOKUP(B25,February!$I$1:$BE$52,52,FALSE) -> 64 | E25: =HLOOKUP(B25,March!$I$1:$BE$40,40,FALSE) -> 35 | F25: =HLOOKUP(B25,'July & August'!$I$1:$BE$58,58,FALSE) -> 66 | G25: =HLOOKUP(B25,September!$I$1:$BE$42,42,FALSE) -> 58 | H25: =HLOOKUP(B25,October!$I$1:$BE$48,48,FALSE) -> 15 | I25: =SUM(D25:H25) -> 238
A26: 21 | B26: Sean O'Mairtin | C26: EMFA Returns | D26: =HLOOKUP(B26,February!$I$1:$BE$52,52,FALSE) -> 65 | E26: =HLOOKUP(B26,March!$I$1:$BE$40,40,FALSE) -> 31 | F26: =HLOOKUP(B26,'July & August'!$I$1:$BE$58,58,FALSE) -> 46 | G26: =HLOOKUP(B26,September!$I$1:$BE$42,42,FALSE) -> 63 | H26: =HLOOKUP(B26,October!$I$1:$BE$48,48,FALSE) -> 32 | I26: =SUM(D26:H26) -> 237
A27: 22 | B27: Derek McDonald | C27: Super Shels | D27: =HLOOKUP(B27,February!$I$1:$BE$52,52,FALSE) -> 58 | E27: =HLOOKUP(B27,March!$I$1:$BE$40,40,FALSE) -> 19 | F27: =HLOOKUP(B27,'July & August'!$I$1:$BE$58,58,FALSE) -> 72 | G27: =HLOOKUP(B27,September!$I$1:$BE$42,42,FALSE) -> 54 | H27: =HLOOKUP(B27,October!$I$1:$BE$48,48,FALSE) -> 27 | I27: =SUM(D27:H27) -> 230
A28: 23 | B28: Chris Hinchey | C28: Lilywhites | D28: =HLOOKUP(B28,February!$I$1:$BE$52,52,FALSE) -> 71 | E28: =HLOOKUP(B28,March!$I$1:$BE$40,40,FALSE) -> 30 | F28: =HLOOKUP(B28,'July & August'!$I$1:$BE$58,58,FALSE) -> 73 | G28: =HLOOKUP(B28,September!$I$1:$BE$42,42,FALSE) -> 43 | H28: =HLOOKUP(B28,October!$I$1:$BE$48,48,FALSE) -> 12 | I28: =SUM(D28:H28) -> 229
A29: 24 | B29: Derek Kelly | C29: SRFC1725 | D29: =HLOOKUP(B29,February!$I$1:$BE$52,52,FALSE) -> 79 | E29: =HLOOKUP(B29,March!$I$1:$BE$40,40,FALSE) -> 24 | F29: =HLOOKUP(B29,'July & August'!$I$1:$BE$58,58,FALSE) -> 67 | G29: =HLOOKUP(B29,September!$I$1:$BE$42,42,FALSE) -> 41 | H29: =HLOOKUP(B29,October!$I$1:$BE$48,48,FALSE) -> 12 | I29: =SUM(D29:H29) -> 223
A30: 25 | B30: David Miley | C30: Dallas Cowboys | D30: =HLOOKUP(B30,February!$I$1:$BE$52,52,FALSE) -> 52 | E30: =HLOOKUP(B30,March!$I$1:$BE$40,40,FALSE) -> 21 | F30: =HLOOKUP(B30,'July & August'!$I$1:$BE$58,58,FALSE) -> 60 | G30: =HLOOKUP(B30,September!$I$1:$BE$42,42,FALSE) -> 68 | H30: =HLOOKUP(B30,October!$I$1:$BE$48,48,FALSE) -> 17 | I30: =SUM(D30:H30) -> 218
A31: 26 | B31: Gearoid McIntyre | C31: Nobber Boys | D31: =HLOOKUP(B31,February!$I$1:$BE$52,52,FALSE) -> 67 | E31: =HLOOKUP(B31,March!$I$1:$BE$40,40,FALSE) -> 33 | F31: =HLOOKUP(B31,'July & August'!$I$1:$BE$58,58,FALSE) -> 64 | G31: =HLOOKUP(B31,September!$I$1:$BE$42,42,FALSE) -> 36 | H31: =HLOOKUP(B31,October!$I$1:$BE$48,48,FALSE) -> 15 | I31: =SUM(D31:H31) -> 215
A32: 27 | B32: Mark Welsh | C32: 3rdina2horserace | D32: =HLOOKUP(B32,February!$I$1:$BE$52,52,FALSE) -> 55 | E32: =HLOOKUP(B32,March!$I$1:$BE$40,40,FALSE) -> 26 | F32: =HLOOKUP(B32,'July & August'!$I$1:$BE$58,58,FALSE) -> 73 | G32: =HLOOKUP(B32,September!$I$1:$BE$42,42,FALSE) -> 47 | H32: =HLOOKUP(B32,October!$I$1:$BE$48,48,FALSE) -> 12 | I32: =SUM(D32:H32) -> 213
A33: 28 | B33: Sean Taylor | C33: O'Connor's Touting XI | D33: =HLOOKUP(B33,February!$I$1:$BE$52,52,FALSE) -> 49 | E33: =HLOOKUP(B33,March!$I$1:$BE$40,40,FALSE) -> 25 | F33: =HLOOKUP(B33,'July & August'!$I$1:$BE$58,58,FALSE) -> 66 | G33: =HLOOKUP(B33,September!$I$1:$BE$42,42,FALSE) -> 63 | H33: =HLOOKUP(B33,October!$I$1:$BE$48,48,FALSE) -> 10 | I33: =SUM(D33:H33) -> 213
A34: 29 | B34: Eoghan Farrelly | C34: Definitely Last Chance Saloon | D34: =HLOOKUP(B34,February!$I$1:$BE$52,52,FALSE) -> 67 | E34: =HLOOKUP(B34,March!$I$1:$BE$40,40,FALSE) -> 35 | F34: =HLOOKUP(B34,'July & August'!$I$1:$BE$58,58,FALSE) -> 56 | G34: =HLOOKUP(B34,September!$I$1:$BE$42,42,FALSE) -> 53 | H34: =HLOOKUP(B34,October!$I$1:$BE$48,48,FALSE) -> 0 | I34: =SUM(D34:H34) -> 211
A35: 30 | B35: Gerry Moore | C35: Rovers Are Red | D35: =HLOOKUP(B35,February!$I$1:$BE$52,52,FALSE) -> 65 | E35: =HLOOKUP(B35,March!$I$1:$BE$40,40,FALSE) -> 23 | F35: =HLOOKUP(B35,'July & August'!$I$1:$BE$58,58,FALSE) -> 81 | G35: =HLOOKUP(B35,September!$I$1:$BE$42,42,FALSE) -> 32 | H35: =HLOOKUP(B35,October!$I$1:$BE$48,48,FALSE) -> 10 | I35: =SUM(D35:H35) -> 211
A36: 31 | B36: Aidan Scanlon | C36: Kilflynn Santos | D36: =HLOOKUP(B36,February!$I$1:$BE$52,52,FALSE) -> 85 | E36: =HLOOKUP(B36,March!$I$1:$BE$40,40,FALSE) -> 21 | F36: =HLOOKUP(B36,'July & August'!$I$1:$BE$58,58,FALSE) -> 41 | G36: =HLOOKUP(B36,September!$I$1:$BE$42,42,FALSE) -> 51 | H36: =HLOOKUP(B36,October!$I$1:$BE$48,48,FALSE) -> 12 | I36: =SUM(D36:H36) -> 210
A37: 32 | B37: Joe Behan | C37: Melchester Rovers | D37: =HLOOKUP(B37,February!$I$1:$BE$52,52,FALSE) -> 61 | E37: =HLOOKUP(B37,March!$I$1:$BE$40,40,FALSE) -> 30 | F37: =HLOOKUP(B37,'July & August'!$I$1:$BE$58,58,FALSE) -> 53 | G37: =HLOOKUP(B37,September!$I$1:$BE$42,42,FALSE) -> 43 | H37: =HLOOKUP(B37,October!$I$1:$BE$48,48,FALSE) -> 22 | I37: =SUM(D37:H37) -> 209
A38: 33 | B38: Dean Fletcher | C38: Fletchy's Flyers | D38: =HLOOKUP(B38,February!$I$1:$BE$52,52,FALSE) -> 67 | E38: =HLOOKUP(B38,March!$I$1:$BE$40,40,FALSE) -> 23 | F38: =HLOOKUP(B38,'July & August'!$I$1:$BE$58,58,FALSE) -> 61 | G38: =HLOOKUP(B38,September!$I$1:$BE$42,42,FALSE) -> 42 | H38: =HLOOKUP(B38,October!$I$1:$BE$48,48,FALSE) -> 15 | I38: =SUM(D38:H38) -> 208
A39: 34 | B39: Ciaran O'Hart | C39: Riverchapel Plate | D39: =HLOOKUP(B39,February!$I$1:$BE$52,52,FALSE) -> 53 | E39: =HLOOKUP(B39,March!$I$1:$BE$40,40,FALSE) -> 21 | F39: =HLOOKUP(B39,'July & August'!$I$1:$BE$58,58,FALSE) -> 62 | G39: =HLOOKUP(B39,September!$I$1:$BE$42,42,FALSE) -> 63 | H39: =HLOOKUP(B39,October!$I$1:$BE$48,48,FALSE) -> 5 | I39: =SUM(D39:H39) -> 204
A40: 35 | B40: Fiachra O'Brolachain | C40: Trailerpark Rovers | D40: =HLOOKUP(B40,February!$I$1:$BE$52,52,FALSE) -> 69 | E40: =HLOOKUP(B40,March!$I$1:$BE$40,40,FALSE) -> 21 | F40: =HLOOKUP(B40,'July & August'!$I$1:$BE$58,58,FALSE) -> 48 | G40: =HLOOKUP(B40,September!$I$1:$BE$42,42,FALSE) -> 47 | H40: =HLOOKUP(B40,October!$I$1:$BE$48,48,FALSE) -> 17 | I40: =SUM(D40:H40) -> 202
A41: 36 | B41: Callum Dunne | C41: Derry Girls | D41: =HLOOKUP(B41,February!$I$1:$BE$52,52,FALSE) -> 68 | E41: =HLOOKUP(B41,March!$I$1:$BE$40,40,FALSE) -> 26 | F41: =HLOOKUP(B41,'July & August'!$I$1:$BE$58,58,FALSE) -> 59 | G41: =HLOOKUP(B41,September!$I$1:$BE$42,42,FALSE) -> 33 | H41: =HLOOKUP(B41,October!$I$1:$BE$48,48,FALSE) -> 12 | I41: =SUM(D41:H41) -> 198
A42: 37 | B42: Gerry Draper | C42: Everton10 | D42: =HLOOKUP(B42,February!$I$1:$BE$52,52,FALSE) -> 64 | E42: =HLOOKUP(B42,March!$I$1:$BE$40,40,FALSE) -> 25 | F42: =HLOOKUP(B42,'July & August'!$I$1:$BE$58,58,FALSE) -> 46 | G42: =HLOOKUP(B42,September!$I$1:$BE$42,42,FALSE) -> 53 | H42: =HLOOKUP(B42,October!$I$1:$BE$48,48,FALSE) -> 10 | I42: =SUM(D42:H42) -> 198
A43: 38 | B43: John Brophy | C43: We're Not Shels | D43: =HLOOKUP(B43,February!$I$1:$BE$52,52,FALSE) -> 66 | E43: =HLOOKUP(B43,March!$I$1:$BE$40,40,FALSE) -> 23 | F43: =HLOOKUP(B43,'July & August'!$I$1:$BE$58,58,FALSE) -> 31 | G43: =HLOOKUP(B43,September!$I$1:$BE$42,42,FALSE) -> 56 | H43: =HLOOKUP(B43,October!$I$1:$BE$48,48,FALSE) -> 22 | I43: =SUM(D43:H43) -> 198
A44: 39 | B44: Gary Keating | C44: Brohemians | D44: =HLOOKUP(B44,February!$I$1:$BE$52,52,FALSE) -> 53 | E44: =HLOOKUP(B44,March!$I$1:$BE$40,40,FALSE) -> 21 | F44: =HLOOKUP(B44,'July & August'!$I$1:$BE$58,58,FALSE) -> 64 | G44: =HLOOKUP(B44,September!$I$1:$BE$42,42,FALSE) -> 43 | H44: =HLOOKUP(B44,October!$I$1:$BE$48,48,FALSE) -> 15 | I44: =SUM(D44:H44) -> 196
A45: 40 | B45: Richard Johnston | C45: Mayo For Sam | D45: =HLOOKUP(B45,February!$I$1:$BE$52,52,FALSE) -> 79 | E45: =HLOOKUP(B45,March!$I$1:$BE$40,40,FALSE) -> 27 | F45: =HLOOKUP(B45,'July & August'!$I$1:$BE$58,58,FALSE) -> 66 | G45: =HLOOKUP(B45,September!$I$1:$BE$42,42,FALSE) -> 11 | H45: =HLOOKUP(B45,October!$I$1:$BE$48,48,FALSE) -> 12 | I45: =SUM(D45:H45) -> 195
A46: 41 | B46: Kieran Harnett | C46: Limerick United | D46: =HLOOKUP(B46,February!$I$1:$BE$52,52,FALSE) -> 72 | E46: =HLOOKUP(B46,March!$I$1:$BE$40,40,FALSE) -> 21 | F46: =HLOOKUP(B46,'July & August'!$I$1:$BE$58,58,FALSE) -> 70 | G46: =HLOOKUP(B46,September!$I$1:$BE$42,42,FALSE) -> 13 | H46: =HLOOKUP(B46,October!$I$1:$BE$48,48,FALSE) -> 2 | I46: =SUM(D46:H46) -> 178
A47: 42 | B47: David Moran | C47: Wrightsaidfred | D47: =HLOOKUP(B47,February!$I$1:$BE$52,52,FALSE) -> 46 | E47: =HLOOKUP(B47,March!$I$1:$BE$40,40,FALSE) -> 19 | F47: =HLOOKUP(B47,'July & August'!$I$1:$BE$58,58,FALSE) -> 74 | G47: =HLOOKUP(B47,September!$I$1:$BE$42,42,FALSE) -> 37 | H47: =HLOOKUP(B47,October!$I$1:$BE$48,48,FALSE) -> 0 | I47: =SUM(D47:H47) -> 176
A48: 43 | B48: Josh Tobin | C48: Team1 | D48: =HLOOKUP(B48,February!$I$1:$BE$52,52,FALSE) -> 57 | E48: =HLOOKUP(B48,March!$I$1:$BE$40,40,FALSE) -> 21 | F48: =HLOOKUP(B48,'July & August'!$I$1:$BE$58,58,FALSE) -> 53 | G48: =HLOOKUP(B48,September!$I$1:$BE$42,42,FALSE) -> 20 | H48: =HLOOKUP(B48,October!$I$1:$BE$48,48,FALSE) -> 5 | I48: =SUM(D48:H48) -> 156
A49: 44 | B49: Ian O'Reilly | C49: Limerick City United Treaty 37 FC | D49: =HLOOKUP(B49,February!$I$1:$BE$52,52,FALSE) -> 73 | E49: =HLOOKUP(B49,March!$I$1:$BE$40,40,FALSE) -> 26 | F49: =HLOOKUP(B49,'July & August'!$I$1:$BE$58,58,FALSE) -> 24 | G49: =HLOOKUP(B49,September!$I$1:$BE$42,42,FALSE) -> 8 | H49: =HLOOKUP(B49,October!$I$1:$BE$48,48,FALSE) -> 0 | I49: =SUM(D49:H49) -> 131
A50: 45 | B50: Patrick Dempsey | C50: Paddser's Whackers | D50: =HLOOKUP(B50,February!$I$1:$BE$52,52,FALSE) -> 42 | E50: =HLOOKUP(B50,March!$I$1:$BE$40,40,FALSE) -> 23 | F50: =HLOOKUP(B50,'July & August'!$I$1:$BE$58,58,FALSE) -> 41 | G50: =HLOOKUP(B50,September!$I$1:$BE$42,42,FALSE) -> 2 | H50: =HLOOKUP(B50,October!$I$1:$BE$48,48,FALSE) -> 0 | I50: =SUM(D50:H50) -> 108
A51: 46 | B51: Breifne Earley | C51: Leitrim Villa | D51: =HLOOKUP(B51,February!$I$1:$BE$52,52,FALSE) -> 46 | E51: =HLOOKUP(B51,March!$I$1:$BE$40,40,FALSE) -> 19 | F51: =HLOOKUP(B51,'July & August'!$I$1:$BE$58,58,FALSE) -> 32 | G51: =HLOOKUP(B51,September!$I$1:$BE$42,42,FALSE) -> 2 | H51: =HLOOKUP(B51,October!$I$1:$BE$48,48,FALSE) -> 0 | I51: =SUM(D51:H51) -> 99
A52: 47 | B52: Sean Keller | C52: The Boys From Dalymount | D52: =HLOOKUP(B52,February!$I$1:$BE$52,52,FALSE) -> 47 | E52: =HLOOKUP(B52,March!$I$1:$BE$40,40,FALSE) -> 12 | F52: =HLOOKUP(B52,'July & August'!$I$1:$BE$58,58,FALSE) -> 25 | G52: =HLOOKUP(B52,September!$I$1:$BE$42,42,FALSE) -> 8 | H52: =HLOOKUP(B52,October!$I$1:$BE$48,48,FALSE) -> 0 | I52: =SUM(D52:H52) -> 92
A53: 48 | B53: Seamus McGowan | C53: Bit O'Red | D53: =HLOOKUP(B53,February!$I$1:$BE$52,52,FALSE) -> 48 | E53: =HLOOKUP(B53,March!$I$1:$BE$40,40,FALSE) -> 24 | F53: =HLOOKUP(B53,'July & August'!$I$1:$BE$58,58,FALSE) -> 11 | G53: =HLOOKUP(B53,September!$I$1:$BE$42,42,FALSE) -> 2 | H53: =HLOOKUP(B53,October!$I$1:$BE$48,48,FALSE) -> 0 | I53: =SUM(D53:H53) -> 85
A54: 49 | B54: Hugh Keller | C54: Hugh Jarse FC | D54: =HLOOKUP(B54,February!$I$1:$BE$52,52,FALSE) -> 43 | E54: =HLOOKUP(B54,March!$I$1:$BE$40,40,FALSE) -> 6 | F54: =HLOOKUP(B54,'July & August'!$I$1:$BE$58,58,FALSE) -> 6 | G54: =HLOOKUP(B54,September!$I$1:$BE$42,42,FALSE) -> 4 | H54: =HLOOKUP(B54,October!$I$1:$BE$48,48,FALSE) -> 0 | I54: =SUM(D54:H54) -> 59

Sheet February
I1: Aidan Scanlon | J1: Alan Doyle | K1: Andy Dunne | L1: Breifne Earley | M1: Callum Dunne | N1: Caroline Carroll | O1: Chris Hinchey | P1: Ciaran O'Hart | Q1: Darragh Kenny | R1: David Miley | S1: David Moran | T1: Davy Doyle | U1: Dean Fletcher | V1: Derek Kelly | W1: Derek McDonald | X1: Eamon Fox | Y1: Eoghan Brophy | Z1: Eoghan Farrelly | AA1: Fiachra O'Brolachain | AB1: Gary Donnelly | AC1: Gary Keating | AD1: Gary Fitzpatrick | AE1: Gary McGurk | AF1: Gearoid McIntyre | AG1: Gerry Draper | AH1: Gerry Moore | AI1: Graeme Buckley | AJ1: Hugh Keller | AK1: Ian O'Reilly | AL1: Jay Thomas | AM1: Joe Behan | AN1: Joe Turner | AO1: John Brophy | AP1: Joseph Kavanagh | AQ1: Josh Tobin | AR1: Keith Ryan | AS1: Kieran Harnett | AT1: Mark Welsh | AU1: Niall Carroll | AV1: Patrick Dempsey | AW1: Paul Moore | AX1: Richard Johnston | AY1: Seamus McGowan | AZ1: Sean Keller | BA1: Sean O'Mairtin | BB1: Sean Taylor | BC1: Tom Keane | BD1: Tommy Hamill | BE1: Trevor Rankin
A2: Day | B2: Date | C2: Teams | G2: Time
A3: Fri | B3: 2020-02-14 | C3: Cork City | D3: 0 | E3: 1 | F3: Shelbourne | G3: 19:45:00 | I3: 5 | J3: 0 | K3: 0 | L3: 0 | M3: 0 | N3: 0 | O3: 0 | P3: 0 | Q3: 5 | R3: 0 | S3: 5 | T3: 0 | U3: 0 | V3: 0 | W3: 0 | X3: 0 | Y3: 0 | Z3: 0 | AA3: 0 | AB3: 0 | AC3: 10 | AD3: 0 | AE3: 0 | AF3: 10 | AG3: 0 | AH3: 5 | AI3: 0 | AJ3: 0 | AK3: 0 | AL3: 5 | AM3: 0 | AN3: 0 | AO3: 5 | AP3: 10 | AQ3: 0 | AR3: 5 | AS3: 0 | AT3: - | AU3: 0 | AV3: 0 | AW3: 0 | AX3: 0 | AY3: 0 | AZ3: 0 | BA3: 0 | BB3: 5 | BC3: - | BD3: 0 | BE3: 0
A4: Fri | B4: 2020-02-14 | C4: Dundalk | D4: 1 | E4: 0 | F4: Derry City | G4: 19:45:00 | I4: 5 | J4: 5 | K4: 5 | L4: 5 | M4: 5 | N4: 10 | O4: 5 | P4: 5 | Q4: 5 | R4: 5 | S4: 5 | T4: 5 | U4: 5 | V4: 5 | W4: 5 | X4: 5 | Y4: 5 | Z4: 5 | AA4: 5 | AB4: 5 | AC4: 5 | AD4: 5 | AE4: 5 | AF4: 5 | AG4: 5 | AH4: 0 | AI4: 5 | AJ4: 5 | AK4: 5 | AL4: 0 | AM4: 5 | AN4: 5 | AO4: 5 | AP4: 5 | AQ4: 5 | AR4: 5 | AS4: 5 | AT4: - | AU4: 10 | AV4: 5 | AW4: 5 | AX4: 5 | AY4: 5 | AZ4: 5 | BA4: 5 | BB4: 5 | BC4: - | BD4: 5 | BE4: 5
A5: Fri | B5: 2020-02-14 | C5: St Patrick's Athletic | D5: 0 | E5: 1 | F5: Waterford | G5: 19:45:00 | I5: 0 | J5: 0 | K5: 5 | L5: 0 | M5: 0 | N5: 0 | O5: 0 | P5: 0 | Q5: 0 | R5: 0 | S5: 0 | T5: 0 | U5: 0 | V5: 0 | W5: 0 | X5: 0 | Y5: 0 | Z5: 0 | AA5: 0 | AB5: 0 | AC5: 0 | AD5: 0 | AE5: 0 | AF5: 0 | AG5: 0 | AH5: 0 | AI5: 0 | AJ5: 0 | AK5: 0 | AL5: 0 | AM5: 0 | AN5: 0 | AO5: 0 | AP5: 0 | AQ5: 0 | AR5: 0 | AS5: 0 | AT5: - | AU5: 0 | AV5: 0 | AW5: 0 | AX5: 0 | AY5: 0 | AZ5: 0 | BA5: 0 | BB5: 0 | BC5: - | BD5: 0 | BE5: 0
A6: Fri | B6: 2020-02-14 | C6: Finn Harps | D6: 1 | E6: 0 | F6: Sligo Rovers | G6: 20:00:00 | I6: 0 | J6: 0 | K6: 5 | L6: 5 | M6: 0 | N6: 0 | O6: 5 | P6: 10 | Q6: 5 | R6: 0 | S6: 0 | T6: 0 | U6: 0 | V6: 10 | W6: 0 | X6: 0 | Y6: 0 | Z6: 0 | AA6: 0 | AB6: 0 | AC6: 0 | AD6: 5 | AE6: 0 | AF6: 0 | AG6: 0 | AH6: 0 | AI6: 0 | AJ6: 5 | AK6: 0 | AL6: 0 | AM6: 0 | AN6: 10 | AO6: 0 | AP6: 0 | AQ6: 0 | AR6: 0 | AS6: 10 | AT6: - | AU6: 10 | AV6: 0 | AW6: 0 | AX6: 5 | AY6: 0 | AZ6: 0 | BA6: 10 | BB6: 0 | BC6: - | BD6: 0 | BE6: 0
A7: Sat | B7: 2020-02-15 | C7: Bohemians | D7: 0 | E7: 1 | F7: Shamrock Rovers | G7: 14:00:00 | I7: 5 | J7: 5 | K7: 5 | L7: 0 | M7: 0 | N7: 5 | O7: 5 | P7: 0 | Q7: 5 | R7: 0 | S7: 0 | T7: 5 | U7: 5 | V7: 10 | W7: 0 | X7: 10 | Y7: 0 | Z7: 5 | AA7: 5 | AB7: 5 | AC7: 0 | AD7: 0 | AE7: 0 | AF7: 0 | AG7: 0 | AH7: 5 | AI7: 5 | AJ7: 0 | AK7: 5 | AL7: 5 | AM7: 0 | AN7: 0 | AO7: 5 | AP7: 5 | AQ7: 10 | AR7: 5 | AS7: 0 | AT7: - | AU7: 0 | AV7: 0 | AW7: 0 | AX7: 5 | AY7: 0 | AZ7: 0 | BA7: 0 | BB7: 0 | BC7: 5 | BD7: 0 | BE7: 0
A8: Fri | B8: 2020-02-21 | C8: Derry City | D8: 1 | E8: 1 | F8: Finn Harps | G8: 19:45:00 | I8: 0 | J8: 10 | K8: 0 | L8: 0 | M8: 0 | N8: 0 | O8: 0 | P8: 0 | Q8: 0 | R8: 0 | S8: 0 | T8: 0 | U8: 0 | V8: 0 | W8: 0 | X8: 0 | Y8: 10 | Z8: 0 | AA8: 0 | AB8: 0 | AC8: 0 | AD8: 0 | AE8: 0 | AF8: 10 | AG8: 10 | AH8: 0 | AI8: 0 | AJ8: 0 | AK8: 0 | AL8: 0 | AM8: 0 | AN8: 0 | AO8: 0 | AP8: 0 | AQ8: 0 | AR8: 0 | AS8: 0 | AT8: 0 | AU8: 0 | AV8: 0 | AW8: 10 | AX8: 0 | AY8: 0 | AZ8: 0 | BA8: 0 | BB8: 0 | BC8: 0 | BD8: 0 | BE8: 0
A9: Fri | B9: 2020-02-21 | C9: Shelbourne | D9: 1 | E9: 2 | F9: Dundalk | G9: 19:45:00 | I9: 10 | J9: 10 | K9: 10 | L9: 0 | M9: 10 | N9: 10 | O9: 5 | P9: 0 | Q9: 10 | R9: 10 | S9: 10 | T9: 5 | U9: 5 | V9: 5 | W9: 0 | X9: 5 | Y9: 5 | Z9: 5 | AA9: 5 | AB9: 0 | AC9: 5 | AD9: 10 | AE9: 5 | AF9: 5 | AG9: 0 | AH9: 5 | AI9: 0 | AJ9: 0 | AK9: 10 | AL9: 5 | AM9: 5 | AN9: 5 | AO9: 0 | AP9: 5 | AQ9: 5 | AR9: 5 | AS9: 5 | AT9: 5 | AU9: 5 | AV9: 5 | AW9: 5 | AX9: 5 | AY9: 5 | AZ9: 5 | BA9: 10 | BB9: 5 | BC9: 10 | BD9: 5 | BE9: 10
A10: Fri | B10: 2020-02-21 | C10: Sligo Rovers | D10: 0 | E10: 2 | F10: St Patrick's Athletic | G10: 19:45:00 | I10: 5 | J10: 0 | K10: 5 | L10: 0 | M10: 0 | N10: 0 | O10: 10 | P10: 0 | Q10: 0 | R10: 0 | S10: 0 | T10: 5 | U10: 5 | V10: 5 | W10: 0 | X10: 5 | Y10: 5 | Z10: 5 | AA10: 0 | AB10: 0 | AC10: 0 | AD10: 0 | AE10: 0 | AF10: 5 | AG10: 0 | AH10: 5 | AI10: 0 | AJ10: 0 | AK10: 0 | AL10: 0 | AM10: 0 | AN10: 0 | AO10: 5 | AP10: 5 | AQ10: 0 | AR10: 0 | AS10: 10 | AT10: 0 | AU10: 0 | AV10: 0 | AW10: 0 | AX10: 0 | AY10: 0 | AZ10: 0 | BA10: 5 | BB10: 0 | BC10: 0 | BD10: 0 | BE10: 0
A11: Fri | B11: 2020-02-21 | C11: Waterford | D11: 0 | E11: 2 | F11: Bohemians | G11: 19:45:00 | I11: 10 | J11: 0 | K11: 0 | L11: 0 | M11: 5 | N11: 0 | O11: 0 | P11: 10 | Q11: 0 | R11: 0 | S11: 5 | T11: 0 | U11: 0 | V11: 0 | W11: 0 | X11: 5 | Y11: 0 | Z11: 5 | AA11: 0 | AB11: 10 | AC11: 5 | AD11: 5 | AE11: 5 | AF11: 0 | AG11: 0 | AH11: 0 | AI11: 0 | AJ11: 0 | AK11: 5 | AL11: 0 | AM11: 0 | AN11: 5 | AO11: 0 | AP11: 5 | AQ11: 0 | AR11: 0 | AS11: 0 | AT11: 5 | AU11: 0 | AV11: 0 | AW11: 5 | AX11: 5 | AY11: 0 | AZ11: 0 | BA11: 0 | BB11: 0 | BC11: 5 | BD11: 5 | BE11: 0
A12: Fri | B12: 2020-02-21 | C12: Shamrock Rovers | D12: 6 | E12: 0 | F12: Cork City | G12: 20:00:00 | I12: 5 | J12: 5 | K12: 5 | L12: 5 | M12: 5 | N12: 5 | O12: 5 | P12: 5 | Q12: 5 | R12: 5 | S12: 0 | T12: 5 | U12: 5 | V12: 5 | W12: 5 | X12: 5 | Y12: 5 | Z12: 5 | AA12: 5 | AB12: 5 | AC12: 5 | AD12: 5 | AE12: 5 | AF12: 5 | AG12: 5 | AH12: 5 | AI12: 5 | AJ12: 5 | AK12: 5 | AL12: 5 | AM12: 5 | AN12: 5 | AO12: 5 | AP12: 5 | AQ12: 5 | AR12: 5 | AS12: 5 | AT12: 5 | AU12: 5 | AV12: 5 | AW12: 5 | AX12: 5 | AY12: 5 | AZ12: 5 | BA12: 5 | BB12: 5 | BC12: 5 | BD12: 5 | BE12: 5
A13: Mon | B13: 2020-02-24 | C13: Waterford | D13: 0 | E13: 2 | F13: Shamrock Rovers | G13: 19:45:00 | I13: 5 | J13: 5 | K13: 5 | L13: 0 | M13: 0 | N13: 10 | O13: 5 | P13: 10 | Q13: 10 | R13: 5 | S13: 0 | T13: 10 | U13: 10 | V13: 5 | W13: 5 | X13: 10 | Y13: 10 | Z13: 5 | AA13: 10 | AB13: 0 | AC13: 0 | AD13: 10 | AE13: 10 | AF13: 5 | AG13: 5 | AH13: 5 | AI13: 0 | AJ13: 0 | AK13: 5 | AL13: 10 | AM13: 10 | AN13: 10 | AO13: 0 | AP13: 10 | AQ13: 10 | AR13: 10 | AS13: 0 | AT13: 10 | AU13: 5 | AV13: 0 | AW13: 10 | AX13: 10 | AY13: 0 | AZ13: 5 | BA13: 5 | BB13: 5 | BC13: 10 | BD13: 5 | BE13: 5
A14: Mon | B14: 2020-02-24 | C14: Bohemians | D14: 2 | E14: 0 | F14: Sligo Rovers | G14: 19:45:00 | I14: 10 | J14: 5 | K14: 5 | L14: 10 | M14: 10 | N14: 10 | O14: 10 | P14: 5 | Q14: 5 | R14: 5 | S14: 5 | T14: 5 | U14: 10 | V14: 10 | W14: 5 | X14: 10 | Y14: 5 | Z14: 5 | AA14: 5 | AB14: 5 | AC14: 5 | AD14: 10 | AE14: 10 | AF14: 5 | AG14: 5 | AH14: 5 | AI14: 5 | AJ14: 5 | AK14: 10 | AL14: 5 | AM14: 5 | AN14: 10 | AO14: 10 | AP14: 10 | AQ14: 0 | AR14: 10 | AS14: 10 | AT14: 5 | AU14: 10 | AV14: 5 | AW14: 0 | AX14: 5 | AY14: 0 | AZ14: 5 | BA14: 5 | BB14: 0 | BC14: 10 | BD14: 5 | BE14: 10
A15: Mon | B15: 2020-02-24 | C15: Dundalk | D15: 3 | E15: 0 | F15: Cork City | G15: 19:45:00 | I15: 5 | J15: 5 | K15: 5 | L15: 5 | M15: 5 | N15: 10 | O15: 5 | P15: 0 | Q15: 5 | R15: 0 | S15: 5 | T15: 5 | U15: 5 | V15: 5 | W15: 5 | X15: 10 | Y15: 5 | Z15: 10 | AA15: 10 | AB15: 5 | AC15: 10 | AD15: 10 | AE15: 5 | AF15: 5 | AG15: 5 | AH15: 10 | AI15: 5 | AJ15: 5 | AK15: 10 | AL15: 10 | AM15: 5 | AN15: 10 | AO15: 10 | AP15: 5 | AQ15: 5 | AR15: 10 | AS15: 5 | AT15: 10 | AU15: 5 | AV15: 5 | AW15: 10 | AX15: 5 | AY15: 5 | AZ15: 5 | BA15: 5 | BB15: 5 | BC15: 5 | BD15: 5 | BE15: 5
A16: Fri | B16: 2020-02-28 | C16: Cork City | D16: 1 | E16: 0 | F16: Finn Harps | G16: 19:45:00 | I16: 5 | J16: 0 | K16: 5 | L16: 0 | M16: 5 | N16: 0 | O16: 0 | P16: 0 | Q16: 0 | R16: 0 | S16: 0 | T16: 0 | U16: 0 | V16: 5 | W16: 0 | X16: 0 | Y16: 0 | Z16: 0 | AA16: 0 | AB16: 5 | AC16: 0 | AD16: 0 | AE16: 5 | AF16: 0 | AG16: 5 | AH16: 10 | AI16: 0 | AJ16: 5 | AK16: 0 | AL16: 0 | AM16: 0 | AN16: 0 | AO16: 0 | AP16: 10 | AQ16: 0 | AR16: 0 | AS16: 0 | AT16: 0 | AU16: 10 | AV16: 0 | AW16: 0 | AX16: 5 | AY16: 5 | AZ16: 10 | BA16: 0 | BB16: 0 | BC16: 5 | BD16: 10 | BE16: 0
A17: Fri | B17: 2020-02-28 | C17: Derry City | D17: 2 | E17: 0 | F17: Bohemians | G17: 19:45:00 | I17: 0 | J17: 10 | K17: 0 | L17: 0 | M17: 5 | N17: 5 | O17: 0 | P17: 0 | Q17: 0 | R17: 0 | S17: 0 | T17: 0 | U17: 5 | V17: 0 | W17: 5 | X17: 5 | Y17: 5 | Z17: 5 | AA17: 5 | AB17: 5 | AC17: 0 | AD17: 0 | AE17: 0 | AF17: 0 | AG17: 5 | AH17: 0 | AI17: 5 | AJ17: 5 | AK17: 0 | AL17: 0 | AM17: 5 | AN17: 5 | AO17: 0 | AP17: 0 | AQ17: 0 | AR17: 5 | AS17: 5 | AT17: 0 | AU17: 0 | AV17: 0 | AW17: 0 | AX17: 10 | AY17: 5 | AZ17: 0 | BA17: 5 | BB17: 5 | BC17: 0 | BD17: 5 | BE17: 5
A18: Fri | B18: 2020-02-28 | C18: Shelbourne | D18: 1 | E18: 0 | F18: St Patrick's Athletic | G18: 19:45:00 | I18: 0 | J18: 0 | K18: 0 | L18: 5 | M18: 5 | N18: 10 | O18: 0 | P18: 0 | Q18: 5 | R18: 5 | S18: 5 | T18: 0 | U18: 0 | V18: 0 | W18: 10 | X18: 0 | Y18: 10 | Z18: 0 | AA18: 0 | AB18: 5 | AC18: 0 | AD18: 0 | AE18: 10 | AF18: 0 | AG18: 0 | AH18: 0 | AI18: 0 | AJ18: - | AK18: 5 | AL18: 5 | AM18: 0 | AN18: 5 | AO18: 5 | AP18: 0 | AQ18: 0 | AR18: 0 | AS18: 0 | AT18: 0 | AU18: 0 | AV18: 0 | AW18: 5 | AX18: 10 | AY18: 5 | AZ18: 5 | BA18: 0 | BB18: 0 | BC18: 5 | BD18: 0 | BE18: 0
A19: Fri | B19: 2020-02-28 | C19: Shamrock Rovers | D19: 3 | E19: 2 | F19: Dundalk | G19: 19:45:00 | I19: 5 | J19: 0 | K19: 0 | L19: 5 | M19: 5 | N19: 5 | O19: 0 | P19: 0 | Q19: 0 | R19: 5 | S19: 0 | T19: 5 | U19: 0 | V19: 0 | W19: 10 | X19: 0 | Y19: 0 | Z19: 0 | AA19: 5 | AB19: 5 | AC19: 0 | AD19: 0 | AE19: 0 | AF19: 0 | AG19: 5 | AH19: 0 | AI19: 0 | AJ19: - | AK19: 5 | AL19: 5 | AM19: 5 | AN19: 5 | AO19: 0 | AP19: 5 | AQ19: 5 | AR19: 5 | AS19: 5 | AT19: 5 | AU19: 5 | AV19: 5 | AW19: 0 | AX19: 0 | AY19: 5 | AZ19: 0 | BA19: 0 | BB19: 0 | BC19: 5 | BD19: 0 | BE19: 0
A21: Goalscorers
A22: Aaron Greene - Shamrock Rovers | D22: =COUNT(H22:DK22) -> 26 | E22: =1+0+0+0 -> 1 | J22: =2*$E22 -> 2 | K22: =2*$E22 -> 2 | P22: =2*$E22 -> 2 | Q22: =2*$E22 -> 2 | T22: =2*$E22 -> 2 | W22: =2*$E22 -> 2 | Z22: =2*$E22 -> 2 | AA22: =2*$E22 -> 2 | AC22: =2*$E22 -> 2 | AE22: =2*$E22 -> 2 | AF22: =2*$E22 -> 2 | AG22: =2*$E22 -> 2 | AI22: =2*$E22 -> 2 | AK22: =2*$E22 -> 2 | AL22: =2*$E22 -> 2 | AN22: =2*$E22 -> 2 | AP22: =2*$E22 -> 2 | AR22: =2*$E22 -> 2 | AT22: =2*$E22-2 -> 0 | AU22: =2*$E22 -> 2 | AW22: =2*$E22 -> 2 | AZ22: =2*$E22 -> 2 | BB22: =2*$E22 -> 2 | BC22: =2*$E22 -> 2 | BD22: =2*$E22 -> 2 | BE22: =2*$E22 -> 2
A23: Aaron McEneff - Shamrock Rovers | D23: 8 | E23: =0+0+0+0 -> 0 | M23: =2*$E23 -> 0 | N23: =2*$E23 -> 0 | R23: =2*$E23 -> 0 | Z23: =2*$E23 -> 0 | AB23: =2*$E23 -> 0 | AH23: =2*$E23 -> 0 | AR23: =2*$E23 -> 0 | AX23: =2*$E23 -> 0
A24: Daniel Kelly - Dundalk | D24: 7 | E24: =0+0+0+0 -> 0 | J24: =2*$E24 -> 0 | L24: =2*$E24 -> 0 | M24: =2*$E24 -> 0 | S24: =2*$E24 -> 0 | AF24: =2*$E24 -> 0 | AT24: =2*$E24 -> 0 | AZ24: =2*$E24 -> 0
A25: Dinny Corcoran - Bohemians | D25: 23 | E25: =0+0+0+0 -> 0 | P25: =2*$E25 -> 0 | R25: =2*$E25 -> 0 | S25: =2*$E25 -> 0 | U25: =2*$E25 -> 0 | V25: =2*$E25 -> 0 | X25: =2*$E25 -> 0 | AA25: =2*$E25 -> 0 | AB25: =2*$E25 -> 0 | AC25: =2*$E25 -> 0 | AD25: =2*$E25 -> 0 | AE25: =2*$E25 -> 0 | AH25: =2*$E25 -> 0 | AJ25: =2*$E25 -> 0 | AK25: =2*$E25 -> 0 | AN25: =2*$E25 -> 0 | AP25: =2*$E25 -> 0 | AQ25: =2*$E25 -> 0 | AV25: =2*$E25 -> 0 | AX25: =2*$E25 -> 0 | AY25: =2*$E25 -> 0 | AZ25: =2*$E25 -> 0 | BA25: =2*$E25 -> 0 | BC25: =2*$E25 -> 0
A26: Graham Cummins - Waterford | D26: 2 | E26: =0+0+0 -> 0 | I26: =2*$E26 -> 0 | L26: =2*$E26 -> 0
A27: Jack Byrne - Shamrock Rovers | D27: 11 | E27: =0+1+0+1 -> 2 | I27: =2*$E27 -> 4 | M27: =2*$E27 -> 4 | N27: =2*$E27 -> 4 | O27: =2*$E27 -> 4 | T27: =2*$E27 -> 4 | W27: =2*$E27 -> 4 | AM27: =2*$E27 -> 4 | AO27: =2*$E27 -> 4 | AS27: =2*$E27 -> 4 | BA27: =2*$E27 -> 4 | BE27: =2*$E27 -> 4
A28: Jaze Kabia - Shelbourne | D28: 3 | E28: =0+0+1 -> 1 | W28: =2*$E28 -> 2 | Y28: =2*$E28 -> 2 | AO28: =2*$E28 -> 2
A29: Michael Duffy - Dundalk | D29: 21 | E29: =0+0+1+0 -> 1 | K29: =2*$E29 -> 2 | L29: =2*$E29 -> 2 | O29: =2*$E29 -> 2 | P29: =2*$E29 -> 2 | Q29: =2*$E29 -> 2 | U29: =2*$E29 -> 2 | X29: =2*$E29 -> 2 | Y29: =2*$E29 -> 2 | AD29: =2*$E29 -> 2 | AG29: =2*$E29 -> 2 | AI29: =2*$E29 -> 2 | AJ29: =2*$E29 -> 2 | AL29: 2 | AM29: 2 | AU29: =2*$E29 -> 2 | AV29: 2 | AW29: 2 | AY29: =2*$E29 -> 2 | BB29: =2*$E29 -> 2 | BC29: =2*$E29 -> 2 | BD29: =2*$E29 -> 2
A30: Patrick Hoban - Dundalk | D30: 41 | E30: =0+1+1+1 -> 3 | I30: =2*$E30 -> 6 | J30: =2*$E30 -> 6 | K30: =2*$E30 -> 6 | N30: =2*$E30 -> 6 | O30: =2*$E30 -> 6 | Q30: =2*$E30 -> 6 | R30: =2*$E30 -> 6 | S30: =2*$E30 -> 6 | T30: =2*$E30 -> 6 | U30: =2*$E30 -> 6 | V30: =2*$E30 -> 6 | X30: =2*$E30 -> 6 | Y30: =2*$E30 -> 6 | Z30: =2*$E30 -> 6 | AA30: =2*$E30 -> 6 | AB30: =2*$E30 -> 6 | AC30: =2*$E30 -> 6 | AD30: =2*$E30 -> 6 | AE30: =2*$E30 -> 6 | AF30: =2*$E30 -> 6 | AG30: =2*$E30 -> 6 | AH30: =2*$E30 -> 6 | AI30: 6 | AJ30: =2*$E30 -> 6 | AK30: =2*$E30 -> 6 | AL30: 6 | AM30: 6 | AN30: =2*$E30 -> 6 | AO30: 6 | AP30: 6 | AQ30: 6 | AR30: 6 | AS30: 6 | AT30: =2*$E30 -> 6 | AU30: 6 | AV30: 6 | AW30: 6 | BA30: =2*$E30 -> 6 | BB30: =2*$E30 -> 6 | BD30: =2*$E30 -> 6 | BE30: =2*$E30 -> 6
A31: Walter Figueira - Derry City | D31: 5 | E31: =0+0+1 -> 1 | V31: =2*$E31 -> 2 | AQ31: =2*$E31 -> 2 | AS31: =2*$E31 -> 2 | AX31: =2*$E31 -> 2 | AY31: =2*$E31 -> 2
A33: Golden Gloves
A34: Alan Mannus - Shamrock Rovers | D34: =COUNT(H34:DK34) -> 14 | E34: =1+1+1+0 -> 3 | J34: =2*$E34 -> 6 | Q34: =2*$E34 -> 6 | R34: =2*$E34 -> 6 | T34: =2*$E34 -> 6 | V34: =2*$E34 -> 6 | Y34: =2*$E34 -> 6 | AA34: =2*$E34 -> 6 | AL34: =2*$E34 -> 6 | AN34: =2*$E34 -> 6 | AP34: =2*$E34 -> 6 | AR34: =2*$E34 -> 6 | AT34: =2*$E34-2 -> 4 | AU34: =2*$E34 -> 6 | BC34: =2*$E34 -> 6
A35: Conor Kearns - St Patrick's Athletic | D35: =COUNT(H35:DK35) -> 1 | E35: =0+0+0 -> 0 | I35: =2*$E35 -> 0
A36: Gary Rogers - Dundalk | D36: =COUNT(H36:DK36) -> 24 | E36: =1+0+1+0 -> 2 | K36: =2*$E36 -> 4 | L36: 4 | M36: 4 | N36: 4 | O36: 4 | P36: 4 | U36: =2*$E36 -> 4 | X36: =2*$E36 -> 4 | Z36: =2*$E36 -> 4 | AD36: =2*$E36 -> 4 | AE36: 4 | AF36: 4 | AG36: 4 | AH36: 4 | AI36: 4 | AM36: =2*$E36 -> 4 | AO36: =2*$E36 -> 4 | AQ36: =2*$E36 -> 4 | AV36: =2*$E36 -> 4 | AW36: =2*$E36 -> 4 | AY36: =2*$E36 -> 4 | BB36: =2*$E36 -> 4 | BD36: =2*$E36 -> 4 | BE36: =2*$E36 -> 4
A37: James Talbot - Bohemians | D37: =COUNT(H37:DK37) -> 9 | E37: =0+0+0+0 -> 0 | S37: =2*$E37 -> 0 | W37: =2*$E37 -> 0 | AB37: =2*$E37 -> 0 | AC37: =2*$E37 -> 0 | AJ37: 0 | AK37: =2*$E37 -> 0 | AS37: =2*$E37 -> 0 | AZ37: =2*$E37 -> 0 | BA37: =2*$E37 -> 0
A38: Peter Cherrie - Derry City | D38: =COUNT(H38:DK38) -> 1 | E38: =0+0+1 -> 1 | AX38: =2*$E38 -> 2
A40: Sack Race
A41: Alan Reynolds - Waterford | D41: =COUNT(H41:DK41) -> 12 | N41: =15*$E41 -> 0 | Q41: =15*$E41 -> 0 | S41: =15*$E41 -> 0 | W41: =15*$E41 -> 0 | Y41: =15*$E41 -> 0 | AB41: =15*$E41 -> 0 | AC41: =15*$E41 -> 0 | AD41: =15*$E41 -> 0 | AL41: =15*$E41 -> 0 | AR41: =15*$E41 -> 0 | AV41: =15*$E41 -> 0 | BD41: =15*$E41 -> 0
A42: Declan Devine - Derry City | D42: 3 | I42: =15*$E42 -> 0 | R42: =15*$E42 -> 0 | AQ42: =15*$E42 -> 0
A43: Ian Morris - Shelbourne | D43: 4 | O43: =15*$E43 -> 0 | U43: =15*$E43 -> 0 | AI43: =15*$E43 -> 0 | AS43: =15*$E43 -> 0
A44: Keith Long - Bohemians | D44: 1 | AM44: =15*$E44 -> 0
A45: Liam Buckley - Sligo Rovers | D45: 5 | K45: =15*$E45 -> 0 | L45: =15*$E45 -> 0 | V45: =15*$E45 -> 0 | AT45: =15*$E45 -> 0 | BA45: =15*$E45 -> 0
A46: Neal Fenn - Cork City | D46: 14 | J46: =15*$E46 -> 0 | M46: =15*$E46 -> 0 | P46: =15*$E46 -> 0 | X46: =15*$E46 -> 0 | Z46: =15*$E46 -> 0 | AA46: =15*$E46 -> 0 | AE46: =15*$E46 -> 0 | AF46: =15*$E46 -> 0 | AK46: =15*$E46 -> 0 | AP46: =15*$E46 -> 0 | AU46: =15*$E46 -> 0 | AY46: =15*$E46 -> 0 | BB46: =15*$E46 -> 0 | BE46: =15*$E46 -> 0
A47: Ollie Horgan - Finn Harps | D47: 7 | T47: =15*$E47 -> 0 | AG47: =15*$E47 -> 0 | AH47: =15*$E47 -> 0 | AN47: =15*$E47 -> 0 | AO47: =15*$E47 -> 0 | AW47: =15*$E47 -> 0 | AZ47: =15*$E47 -> 0
A48: Stephen Bradley - Shamrock Rovers | D48: 0
A49: Stephen McDonnell - St Patrick's Athletic | D49: 2 | AJ49: =15*$E49 -> 0 | BC49: =15*$E49 -> 0
A50: Vinny Perth - Dundalk | D50: 1 | AX50: =15*$E50 -> 0
A52: Grand Total - February | I52: =SUM(I$3:I51) -> 85 | J52: =SUM(J$3:J51) -> 74 | K52: =SUM(K$3:K51) -> 74 | L52: =SUM(L$3:L51) -> 46 | M52: =SUM(M$3:M51) -> 68 | N52: =SUM(N$3:N51) -> 94 | O52: =SUM(O$3:O51) -> 71 | P52: =SUM(P$3:P51) -> 53 | Q52: =SUM(Q$3:Q51) -> 76 | R52: =SUM(R$3:R51) -> 52 | S52: =SUM(S$3:S51) -> 46 | T52: =SUM(T$3:T51) -> 68 | U52: =SUM(U$3:U51) -> 67 | V52: =SUM(V$3:V51) -> 79 | W52: =SUM(W$3:W51) -> 58 | X52: =SUM(X$3:X51) -> 82 | Y52: =SUM(Y$3:Y51) -> 81 | Z52: =SUM(Z$3:Z51) -> 67 | AA52: =SUM(AA$3:AA51) -> 69 | AB52: =SUM(AB$3:AB51) -> 61 | AC52: =SUM(AC$3:AC51) -> 53 | AD52: =SUM(AD$3:AD51) -> 72 | AE52: =SUM(AE$3:AE51) -> 72 | AF52: =SUM(AF$3:AF51) -> 67 | AG52: =SUM(AG$3:AG51) -> 64 | AH52: =SUM(AH$3:AH51) -> 65 | AI52: =SUM(AI$3:AI51) -> 44 | AJ52: =SUM(AJ$3:AJ51) -> 43 | AK52: =SUM(AK$3:AK51) -> 73 | AL52: =SUM(AL$3:AL51) -> 71 | AM52: =SUM(AM$3:AM51) -> 61 | AN52: =SUM(AN$3:AN51) -> 89 | AO52: =SUM(AO$3:AO51) -> 66 | AP52: =SUM(AP$3:AP51) -> 94 | AQ52: =SUM(AQ$3:AQ51) -> 57 | AR52: =SUM(AR$3:AR51) -> 79 | AS52: =SUM(AS$3:AS51) -> 72 | AT52: =SUM(AT$3:AT51) -> 55 | AU52: =SUM(AU$3:AU51) -> 81 | AV52: =SUM(AV$3:AV51) -> 42 | AW52: =SUM(AW$3:AW51) -> 69 | AX52: =SUM(AX$3:AX51) -> 79 | AY52: =SUM(AY$3:AY51) -> 48 | AZ52: =SUM(AZ$3:AZ51) -> 47 | BA52: =SUM(BA$3:BA51) -> 65 | BB52: =SUM(BB$3:BB51) -> 49 | BC52: =SUM(BC$3:BC51) -> 75 | BD52: =SUM(BD$3:BD51) -> 64 | BE52: =SUM(BE$3:BE51) -> 61
A54: Ten Pointers | I54: =COUNTIF(I3:I19,10) -> 3 | J54: 3 | K54: 1 | L54: 1 | M54: 2 | N54: 6 | O54: 2 | P54: 3 | Q54: 2 | R54: 1 | S54: 1 | T54: 1 | U54: 2 | V54: 3 | W54: 2 | X54: 4 | Y54: 3 | Z54: 1 | AA54: 2 | AB54: 1 | AC54: 2 | AD54: 4 | AE54: 3 | AF54: 2 | AG54: 1 | AH54: 2 | AI54: 0 | AJ54: 0 | AK54: 3 | AL54: 2 | AM54: 1 | AN54: 4 | AO54: =COUNTIF(AO3:AO19,10) -> 2 | AP54: 4 | AQ54: 2 | AR54: 3 | AS54: 3 | AT54: 2 | AU54: 4 | AV54: 0 | AW54: 3 | AX54: 3 | AY54: 0 | AZ54: 1 | BA54: 2 | BB54: 0 | BC54: 3 | BD54: 1 | BE54: 2

Sheet March
I1: Aidan Scanlon | J1: Alan Doyle | K1: Andy Dunne | L1: Breifne Earley | M1: Callum Dunne | N1: Caroline Carroll | O1: Chris Hinchey | P1: Ciaran O'Hart | Q1: Darragh Kenny | R1: David Miley | S1: David Moran | T1: Davy Doyle | U1: Dean Fletcher | V1: Derek Kelly | W1: Derek McDonald | X1: Eamon Fox | Y1: Eoghan Brophy | Z1: Eoghan Farrelly | AA1: Fiachra O'Brolachain | AB1: Gary Donnelly | AC1: Gary Keating | AD1: Gary Fitzpatrick | AE1: Gary McGurk | AF1: Gearoid McIntyre | AG1: Gerry Draper | AH1: Gerry Moore | AI1: Graeme Buckley | AJ1: Hugh Keller | AK1: Ian O'Reilly | AL1: Jay Thomas | AM1: Joe Behan | AN1: Joe Turner | AO1: John Brophy | AP1: Joseph Kavanagh | AQ1: Josh Tobin | AR1: Keith Ryan | AS1: Kieran Harnett | AT1: Mark Welsh | AU1: Niall Carroll | AV1: Patrick Dempsey | AW1: Paul Moore | AX1: Richard Johnston | AY1: Seamus McGowan | AZ1: Sean Keller | BA1: Sean O'Mairtin | BB1: Sean Taylor | BC1: Tom Keane | BD1: Tommy Hamill | BE1: Trevor Rankin
A2: Day | B2: Date | C2: Teams | G2: Time
A3: Fri | B3: 2020-03-06 | C3: St Patrick's Athletic | D3: 1 | E3: 0 | F3: Cork City | G3: 19:45:00 | I3: 5 | J3: 0 | K3: 0 | L3: 5 | M3: 5 | N3: 5 | O3: 5 | P3: 5 | Q3: 5 | R3: 5 | S3: 0 | T3: 5 | U3: 5 | V3: 5 | W3: 5 | X3: 5 | Y3: 5 | Z3: 5 | AA3: 5 | AB3: 5 | AC3: 5 | AD3: 5 | AE3: 0 | AF3: 0 | AG3: 5 | AH3: 10 | AI3: 10 | AJ3: - | AK3: 5 | AL3: 5 | AM3: 5 | AN3: 5 | AO3: 0 | AP3: 5 | AQ3: 5 | AR3: 5 | AS3: 5 | AT3: 10 | AU3: 5 | AV3: 5 | AW3: 5 | AX3: 5 | AY3: 5 | AZ3: 0 | BA3: 10 | BB3: 5 | BC3: 5 | BD3: 10 | BE3: 5
A4: Fri | B4: 2020-03-06 | C4: Waterford | D4: 2 | E4: 1 | F4: Derry City | G4: 19:45:00 | I4: 0 | J4: 0 | K4: 10 | L4: 0 | M4: 0 | N4: 0 | O4: 0 | P4: 0 | Q4: 0 | R4: 0 | S4: 0 | T4: 0 | U4: 0 | V4: 0 | W4: 0 | X4: 0 | Y4: 0 | Z4: 0 | AA4: 0 | AB4: 0 | AC4: 0 | AD4: 0 | AE4: 5 | AF4: 10 | AG4: 0 | AH4: 0 | AI4: 0 | AJ4: - | AK4: 10 | AL4: 0 | AM4: 0 | AN4: 0 | AO4: 5 | AP4: 0 | AQ4: 0 | AR4: 0 | AS4: 0 | AT4: 0 | AU4: 5 | AV4: 5 | AW4: 0 | AX4: 10 | AY4: 10 | AZ4: 0 | BA4: 0 | BB4: 0 | BC4: 0 | BD4: 0 | BE4: 0
A5: Fri | B5: 2020-03-06 | C5: Bohemians | D5: 2 | E5: 0 | F5: Shelbourne | G5: 20:00:00 | I5: 0 | J5: 5 | K5: 5 | L5: 0 | M5: 5 | N5: 0 | O5: 5 | P5: 0 | Q5: 0 | R5: 0 | S5: 5 | T5: 0 | U5: 0 | V5: 5 | W5: 0 | X5: 5 | Y5: 5 | Z5: 10 | AA5: 0 | AB5: 5 | AC5: 5 | AD5: 0 | AE5: 10 | AF5: 5 | AG5: 0 | AH5: 0 | AI5: 0 | AJ5: - | AK5: 5 | AL5: 0 | AM5: 5 | AN5: 5 | AO5: 0 | AP5: 5 | AQ5: 0 | AR5: 0 | AS5: 0 | AT5: 0 | AU5: 5 | AV5: 5 | AW5: 5 | AX5: 5 | AY5: 5 | AZ5: 0 | BA5: 5 | BB5: 0 | BC5: 5 | BD5: 5 | BE5: 0
A6: Fri | B6: 2020-03-06 | C6: Finn Harps | D6: 0 | E6: 4 | F6: Dundalk | G6: 20:00:00 | I6: 5 | J6: 5 | K6: 5 | L6: 5 | M6: 5 | N6: 5 | O6: 5 | P6: 5 | Q6: 5 | R6: 5 | S6: 10 | T6: 10 | U6: 5 | V6: 5 | W6: 5 | X6: 5 | Y6: 5 | Z6: 5 | AA6: 5 | AB6: 5 | AC6: 5 | AD6: 5 | AE6: 5 | AF6: 5 | AG6: 5 | AH6: 5 | AI6: 5 | AJ6: - | AK6: 0 | AL6: 5 | AM6: 5 | AN6: 5 | AO6: 5 | AP6: 5 | AQ6: 5 | AR6: 5 | AS6: 5 | AT6: 5 | AU6: 5 | AV6: 0 | AW6: 5 | AX6: 0 | AY6: 0 | AZ6: 5 | BA6: 5 | BB6: 5 | BC6: 5 | BD6: 5 | BE6: 5
A7: Sat | B7: 2020-03-07 | C7: Sligo Rovers | D7: 2 | E7: 3 | F7: Shamrock Rovers | G7: 19:45:00 | I7: 5 | J7: 5 | K7: 5 | L7: 5 | M7: 5 | N7: 5 | O7: 5 | P7: 5 | Q7: 5 | R7: 5 | S7: 0 | T7: 5 | U7: 5 | V7: 5 | W7: 5 | X7: 5 | Y7: 5 | Z7: 5 | AA7: 5 | AB7: 5 | AC7: 0 | AD7: 5 | AE7: 5 | AF7: 5 | AG7: 5 | AH7: 0 | AI7: 0 | AJ7: - | AK7: 0 | AL7: 5 | AM7: 5 | AN7: 5 | AO7: 5 | AP7: 5 | AQ7: 5 | AR7: 5 | AS7: 5 | AT7: 5 | AU7: 5 | AV7: 0 | AW7: 5 | AX7: 5 | AY7: 0 | AZ7: 5 | BA7: 5 | BB7: 5 | BC7: 5 | BD7: 5 | BE7: 5
A9: Goalscorers
A10: Aaron Greene - Shamrock Rovers | D10: =COUNT(H10:DK10) -> 26 | E10: =1 -> 1 | J10: =2*$E10 -> 2 | K10: =2*$E10 -> 2 | P10: =2*$E10 -> 2 | Q10: =2*$E10 -> 2 | T10: =2*$E10 -> 2 | W10: =2*$E10 -> 2 | Z10: =2*$E10 -> 2 | AA10: =2*$E10 -> 2 | AC10: =2*$E10 -> 2 | AE10: =2*$E10 -> 2 | AF10: =2*$E10 -> 2 | AG10: =2*$E10 -> 2 | AI10: =2*$E10 -> 2 | AK10: =2*$E10 -> 2 | AL10: =2*$E10 -> 2 | AN10: =2*$E10 -> 2 | AP10: =2*$E10 -> 2 | AR10: =2*$E10 -> 2 | AT10: =2*$E10 -> 2 | AU10: =2*$E10 -> 2 | AW10: =2*$E10 -> 2 | AZ10: =2*$E10 -> 2 | BB10: =2*$E10 -> 2 | BC10: =2*$E10 -> 2 | BD10: =2*$E10 -> 2 | BE10: =2*$E10 -> 2
A11: Aaron McEneff - Shamrock Rovers | D11: 8 | E11: =1 -> 1 | M11: =2*$E11 -> 2 | N11: =2*$E11 -> 2 | R11: =2*$E11 -> 2 | Z11: =2*$E11 -> 2 | AB11: =2*$E11 -> 2 | AH11: =2*$E11 -> 2 | AR11: =2*$E11 -> 2 | AX11: =2*$E11 -> 2
A12: Daniel Kelly - Dundalk | D12: 7 | E12: =0 -> 0 | J12: =2*$E12 -> 0 | L12: =2*$E12 -> 0 | M12: =2*$E12 -> 0 | S12: =2*$E12 -> 0 | AF12: =2*$E12 -> 0 | AT12: =2*$E12 -> 0 | AZ12: =2*$E12 -> 0
A13: Dinny Corcoran - Bohemians | D13: 23 | E13: =0 -> 0 | P13: =2*$E13 -> 0 | R13: =2*$E13 -> 0 | S13: =2*$E13 -> 0 | U13: =2*$E13 -> 0 | V13: =2*$E13 -> 0 | X13: =2*$E13 -> 0 | AA13: =2*$E13 -> 0 | AB13: =2*$E13 -> 0 | AC13: =2*$E13 -> 0 | AD13: =2*$E13 -> 0 | AE13: =2*$E13 -> 0 | AH13: =2*$E13 -> 0 | AJ13: =2*$E13 -> 0 | AK13: =2*$E13 -> 0 | AN13: =2*$E13 -> 0 | AP13: =2*$E13 -> 0 | AQ13: =2*$E13 -> 0 | AV13: =2*$E13 -> 0 | AX13: =2*$E13 -> 0 | AY13: =2*$E13 -> 0 | AZ13: =2*$E13 -> 0 | BA13: =2*$E13 -> 0 | BC13: =2*$E13 -> 0
A14: Graham Cummins - Waterford | D14: 2 | E14: =0 -> 0 | I14: =2*$E14 -> 0 | L14: =2*$E14 -> 0
A15: Jack Byrne - Shamrock Rovers | D15: 11 | E15: =1 -> 1 | I15: =2*$E15 -> 2 | M15: =2*$E15 -> 2 | N15: =2*$E15 -> 2 | O15: =2*$E15 -> 2 | T15: =2*$E15 -> 2 | W15: =2*$E15 -> 2 | AM15: =2*$E15 -> 2 | AO15: =2*$E15 -> 2 | AS15: =2*$E15 -> 2 | BA15: =2*$E15 -> 2 | BE15: =2*$E15 -> 2
A16: Jaze Kabia - Shelbourne | D16: 3 | E16: =0 -> 0 | W16: =2*$E16 -> 0 | Y16: =2*$E16 -> 0 | AO16: =2*$E16 -> 0
A17: Michael Duffy - Dundalk | D17: 21 | E17: =1 -> 1 | K17: =2*$E17 -> 2 | L17: =2*$E17 -> 2 | O17: =2*$E17 -> 2 | P17: =2*$E17 -> 2 | Q17: =2*$E17 -> 2 | U17: =2*$E17 -> 2 | X17: =2*$E17 -> 2 | Y17: =2*$E17 -> 2 | AD17: =2*$E17 -> 2 | AG17: =2*$E17 -> 2 | AI17: =2*$E17 -> 2 | AJ17: =2*$E17 -> 2 | AL17: 2 | AM17: 2 | AU17: =2*$E17 -> 2 | AV17: 2 | AW17: 2 | AY17: =2*$E17 -> 2 | BB17: =2*$E17 -> 2 | BC17: =2*$E17 -> 2 | BD17: =2*$E17 -> 2
A18: Patrick Hoban - Dundalk | D18: 41 | E18: =2 -> 2 | I18: =2*$E18 -> 4 | J18: =2*$E18 -> 4 | K18: =2*$E18 -> 4 | N18: =2*$E18 -> 4 | O18: =2*$E18 -> 4 | Q18: =2*$E18 -> 4 | R18: =2*$E18 -> 4 | S18: =2*$E18 -> 4 | T18: =2*$E18 -> 4 | U18: =2*$E18 -> 4 | V18: =2*$E18 -> 4 | X18: =2*$E18 -> 4 | Y18: =2*$E18 -> 4 | Z18: =2*$E18 -> 4 | AA18: =2*$E18 -> 4 | AB18: =2*$E18 -> 4 | AC18: =2*$E18 -> 4 | AD18: =2*$E18 -> 4 | AE18: =2*$E18 -> 4 | AF18: =2*$E18 -> 4 | AG18: =2*$E18 -> 4 | AH18: =2*$E18 -> 4 | AI18: 4 | AJ18: =2*$E18 -> 4 | AK18: =2*$E18 -> 4 | AL18: 4 | AM18: 4 | AN18: 4 | AO18: 4 | AP18: 4 | AQ18: 4 | AR18: 4 | AS18: 4 | AT18: =2*$E18 -> 4 | AU18: 4 | AV18: 4 | AW18: 4 | BA18: =2*$E18 -> 4 | BB18: =2*$E18 -> 4 | BD18: =2*$E18 -> 4 | BE18: =2*$E18 -> 4
A19: Walter Figueira - Derry City | D19: 5 | E19: =0 -> 0 | V19: =2*$E19 -> 0 | AQ19: =2*$E19 -> 0 | AS19: =2*$E19 -> 0 | AX19: =2*$E19 -> 0 | AY19: =2*$E19 -> 0
A21: Golden Gloves
A22: Alan Mannus - Shamrock Rovers | D22: =COUNT(H22:DK22) -> 14 | E22: =0 -> 0 | J22: =2*$E22 -> 0 | Q22: =2*$E22 -> 0 | R22: =2*$E22 -> 0 | T22: =2*$E22 -> 0 | V22: =2*$E22 -> 0 | Y22: =2*$E22 -> 0 | AA22: =2*$E22 -> 0 | AL22: =2*$E22 -> 0 | AN22: =2*$E22 -> 0 | AP22: =2*$E22 -> 0 | AR22: =2*$E22 -> 0 | AT22: =2*$E22 -> 0 | AU22: =2*$E22 -> 0 | BC22: =2*$E22 -> 0
A23: Conor Kearns - St Patrick's Athletic | D23: =COUNT(H23:DK23) -> 1 | E23: =0 -> 0 | I23: =2*$E23 -> 0
A24: Gary Rogers - Dundalk | D24: =COUNT(H24:DK24) -> 24 | E24: =1 -> 1 | K24: =2*$E24 -> 2 | L24: 2 | M24: 2 | N24: 2 | O24: 2 | P24: 2 | U24: =2*$E24 -> 2 | X24: =2*$E24 -> 2 | Z24: =2*$E24 -> 2 | AD24: =2*$E24 -> 2 | AE24: 2 | AF24: 2 | AG24: 2 | AH24: 2 | AI24: 2 | AM24: =2*$E24 -> 2 | AO24: =2*$E24 -> 2 | AQ24: =2*$E24 -> 2 | AV24: =2*$E24 -> 2 | AW24: =2*$E24 -> 2 | AY24: =2*$E24 -> 2 | BB24: =2*$E24 -> 2 | BD24: =2*$E24 -> 2 | BE24: =2*$E24 -> 2
A25: James Talbot - Bohemians | D25: =COUNT(H25:DK25) -> 9 | E25: =0 -> 0 | S25: =2*$E25 -> 0 | W25: =2*$E25 -> 0 | AB25: =2*$E25 -> 0 | AC25: =2*$E25 -> 0 | AJ25: 0 | AK25: =2*$E25 -> 0 | AS25: =2*$E25 -> 0 | AZ25: =2*$E25 -> 0 | BA25: =2*$E25 -> 0
A26: Peter Cherrie - Derry City | D26: =COUNT(H26:DK26) -> 1 | E26: =0 -> 0 | AX26: =2*$E26 -> 0
A28: Sack Race
A29: Alan Reynolds - Waterford | D29: =COUNT(H29:DK29) -> 12 | N29: =15*$E29 -> 0 | Q29: =15*$E29 -> 0 | S29: =15*$E29 -> 0 | W29: =15*$E29 -> 0 | Y29: =15*$E29 -> 0 | AB29: =15*$E29 -> 0 | AC29: =15*$E29 -> 0 | AD29: =15*$E29 -> 0 | AL29: =15*$E29 -> 0 | AR29: =15*$E29 -> 0 | AV29: =15*$E29 -> 0 | BD29: =15*$E29 -> 0
A30: Declan Devine - Derry City | D30: 3 | I30: =15*$E30 -> 0 | R30: =15*$E30 -> 0 | AQ30: =15*$E30 -> 0
A31: Ian Morris - Shelbourne | D31: 4 | O31: =15*$E31 -> 0 | U31: =15*$E31 -> 0 | AI31: =15*$E31 -> 0 | AS31: =15*$E31 -> 0
A32: Keith Long - Bohemians | D32: 1 | AM32: =15*$E32 -> 0
A33: Liam Buckley - Sligo Rovers | D33: 5 | K33: =15*$E33 -> 0 | L33: =15*$E33 -> 0 | V33: =15*$E33 -> 0 | AT33: =15*$E33 -> 0 | BA33: =15*$E33 -> 0
A34: Neal Fenn - Cork City | D34: 14 | J34: =15*$E34 -> 0 | M34: =15*$E34 -> 0 | P34: =15*$E34 -> 0 | X34: =15*$E34 -> 0 | Z34: =15*$E34 -> 0 | AA34: =15*$E34 -> 0 | AE34: =15*$E34 -> 0 | AF34: =15*$E34 -> 0 | AK34: =15*$E34 -> 0 | AP34: =15*$E34 -> 0 | AU34: =15*$E34 -> 0 | AY34: =15*$E34 -> 0 | BB34: =15*$E34 -> 0 | BE34: =15*$E34 -> 0
A35: Ollie Horgan - Finn Harps | D35: 7 | T35: =15*$E35 -> 0 | AG35: =15*$E35 -> 0 | AH35: =15*$E35 -> 0 | AN35: =15*$E35 -> 0 | AO35: =15*$E35 -> 0 | AW35: =15*$E35 -> 0 | AZ35: =15*$E35 -> 0
A36: Stephen Bradley - Shamrock Rovers | D36: 0
A37: Stephen McDonnell - St Patrick's Athletic | D37: 2 | AJ37: =15*$E37 -> 0 | BC37: =15*$E37 -> 0
A38: Vinny Perth - Dundalk | D38: 1 | AX38: =15*$E38 -> 0
A40: Grand Total - February | I40: =SUM(I$3:I39) -> 21 | J40: =SUM(J$3:J39) -> 21 | K40: =SUM(K$3:K39) -> 35 | L40: =SUM(L$3:L39) -> 19 | M40: =SUM(M$3:M39) -> 26 | N40: =SUM(N$3:N39) -> 25 | O40: =SUM(O$3:O39) -> 30 | P40: =SUM(P$3:P39) -> 21 | Q40: =SUM(Q$3:Q39) -> 23 | R40: =SUM(R$3:R39) -> 21 | S40: =SUM(S$3:S39) -> 19 | T40: =SUM(T$3:T39) -> 28 | U40: =SUM(U$3:U39) -> 23 | V40: =SUM(V$3:V39) -> 24 | W40: =SUM(W$3:W39) -> 19 | X40: =SUM(X$3:X39) -> 28 | Y40: =SUM(Y$3:Y39) -> 26 | Z40: =SUM(Z$3:Z39) -> 35 | AA40: =SUM(AA$3:AA39) -> 21 | AB40: =SUM(AB$3:AB39) -> 26 | AC40: =SUM(AC$3:AC39) -> 21 | AD40: =SUM(AD$3:AD39) -> 23 | AE40: =SUM(AE$3:AE39) -> 33 | AF40: =SUM(AF$3:AF39) -> 33 | AG40: =SUM(AG$3:AG39) -> 25 | AH40: =SUM(AH$3:AH39) -> 23 | AI40: =SUM(AI$3:AI39) -> 25 | AJ40: =SUM(AJ$3:AJ39) -> 6 | AK40: =SUM(AK$3:AK39) -> 26 | AL40: =SUM(AL$3:AL39) -> 23 | AM40: =SUM(AM$3:AM39) -> 30 | AN40: =SUM(AN$3:AN39) -> 26 | AO40: =SUM(AO$3:AO39) -> 23 | AP40: =SUM(AP$3:AP39) -> 26 | AQ40: =SUM(AQ$3:AQ39) -> 21 | AR40: =SUM(AR$3:AR39) -> 23 | AS40: =SUM(AS$3:AS39) -> 21 | AT40: =SUM(AT$3:AT39) -> 26 | AU40: =SUM(AU$3:AU39) -> 33 | AV40: =SUM(AV$3:AV39) -> 23 | AW40: =SUM(AW$3:AW39) -> 30 | AX40: =SUM(AX$3:AX39) -> 27 | AY40: =SUM(AY$3:AY39) -> 24 | AZ40: =SUM(AZ$3:AZ39) -> 12 | BA40: =SUM(BA$3:BA39) -> 31 | BB40: =SUM(BB$3:BB39) -> 25 | BC40: =SUM(BC$3:BC39) -> 24 | BD40: =SUM(BD$3:BD39) -> 35 | BE40: =SUM(BE$3:BE39) -> 25
A42: Ten Pointers | I42: =COUNTIF(I3:I7,10) -> 0 | J42: 0 | K42: 1 | L42: 0 | M42: 0 | N42: 0 | O42: 0 | P42: 0 | Q42: 0 | R42: 0 | S42: 1 | T42: 1 | U42: 0 | V42: 0 | W42: 0 | X42: 0 | Y42: 0 | Z42: 1 | AA42: 0 | AB42: 0 | AC42: 0 | AD42: 0 | AE42: 1 | AF42: 1 | AG42: 0 | AH42: 1 | AI42: 1 | AJ42: 0 | AK42: 1 | AL42: 0 | AM42: 0 | AN42: 0 | AO42: =COUNTIF(AO3:AO7,10) -> 0 | AP42: 0 | AQ42: 0 | AR42: 0 | AS42: 0 | AT42: 1 | AU42: 0 | AV42: 0 | AW42: 0 | AX42: 1 | AY42: 1 | AZ42: 0 | BA42: 1 | BB42: 0 | BC42: 0 | BD42: 1 | BE42: 0

Sheet July & August
I1: Aidan Scanlon | J1: Alan Doyle | K1: Andy Dunne | L1: Breifne Earley | M1: Callum Dunne | N1: Caroline Carroll | O1: Chris Hinchey | P1: Ciaran O'Hart | Q1: Darragh Kenny | R1: David Miley | S1: David Moran | T1: Davy Doyle | U1: Dean Fletcher | V1: Derek Kelly | W1: Derek McDonald | X1: Eamon Fox | Y1: Eoghan Brophy | Z1: Eoghan Farrelly | AA1: Fiachra O'Brolachain | AB1: Gary Donnelly | AC1: Gary Keating | AD1: Gary Fitzpatrick | AE1: Gary McGurk | AF1: Gearoid McIntyre | AG1: Gerry Draper | AH1: Gerry Moore | AI1: Graeme Buckley | AJ1: Hugh Keller | AK1: Ian O'Reilly | AL1: Jay Thomas | AM1: Joe Behan | AN1: Joe Turner | AO1: John Brophy | AP1: Joseph Kavanagh | AQ1: Josh Tobin | AR1: Keith Ryan | AS1: Kieran Harnett | AT1: Mark Welsh | AU1: Niall Carroll | AV1: Patrick Dempsey | AW1: Paul Moore | AX1: Richard Johnston | AY1: Seamus McGowan | AZ1: Sean Keller | BA1: Sean O'Mairtin | BB1: Sean Taylor | BC1: Tom Keane | BD1: Tommy Hamill | BE1: Trevor Rankin
A2: Day | B2: Date | C2: Teams | G2: Time
A3: Fri | B3: 2020-07-31 | C3: Derry City | D3: 0 | E3: 2 | F3: Sligo Rovers | G3: 17:45:00 | I3: 0 | J3: 0 | K3: 0 | L3: 0 | M3: 0 | N3: 0 | O3: 0 | P3: 0 | Q3: 0 | R3: 0 | S3: 0 | T3: 0 | U3: 0 | V3: 0 | W3: 0 | X3: 0 | Y3: 0 | Z3: 0 | AA3: 0 | AB3: 0 | AC3: 0 | AD3: 0 | AE3: 0 | AF3: 0 | AG3: 0 | AH3: 0 | AI3: 0 | AJ3: - | AK3: 0 | AL3: 0 | AM3: 0 | AN3: 0 | AO3: 0 | AP3: 0 | AQ3: 0 | AR3: 0 | AS3: 0 | AT3: 0 | AU3: 0 | AV3: 0 | AW3: 0 | AX3: 0 | AY3: 0 | AZ3: 5 | BA3: 0 | BB3: 0 | BC3: 0 | BD3: 0 | BE3: 0
A4: Fri | B4: 2020-07-31 | C4: Dundalk | D4: 1 | E4: 1 | F4: St Patrick's Athletic | G4: 19:45:00 | I4: 5 | J4: 0 | K4: 0 | L4: 0 | M4: 0 | N4: 0 | O4: 0 | P4: 0 | Q4: 0 | R4: 0 | S4: 0 | T4: 0 | U4: 0 | V4: 0 | W4: 0 | X4: 0 | Y4: 0 | Z4: 0 | AA4: 0 | AB4: 10 | AC4: 0 | AD4: 0 | AE4: 0 | AF4: 0 | AG4: 0 | AH4: 0 | AI4: 0 | AJ4: - | AK4: 0 | AL4: 0 | AM4: 0 | AN4: 0 | AO4: 0 | AP4: 10 | AQ4: 0 | AR4: 0 | AS4: 0 | AT4: 0 | AU4: 0 | AV4: 0 | AW4: 0 | AX4: 0 | AY4: 0 | AZ4: 0 | BA4: 0 | BB4: 0 | BC4: 0 | BD4: 0 | BE4: 0
A5: Sat | B5: 2020-08-01 | C5: Shelbourne | D5: 0 | E5: 1 | F5: Waterford | G5: 14:00:00 | I5: 5 | J5: 0 | K5: 5 | L5: 0 | M5: 0 | N5: 5 | O5: 0 | P5: 0 | Q5: 0 | R5: 0 | S5: 0 | T5: 0 | U5: 0 | V5: 0 | W5: 0 | X5: 0 | Y5: 0 | Z5: 0 | AA5: 0 | AB5: 0 | AC5: 0 | AD5: 0 | AE5: 0 | AF5: 0 | AG5: 0 | AH5: 0 | AI5: 0 | AJ5: - | AK5: 0 | AL5: 0 | AM5: 0 | AN5: 0 | AO5: 0 | AP5: 0 | AQ5: 0 | AR5: 0 | AS5: 0 | AT5: 0 | AU5: 0 | AV5: 0 | AW5: 0 | AX5: 0 | AY5: 0 | AZ5: 5 | BA5: 0 | BB5: 0 | BC5: 0 | BD5: 0 | BE5: 0
A6: Sat | B6: 2020-08-01 | C6: Shamrock Rovers | D6: 3 | E6: 1 | F6: Finn Harps | G6: 17:00:00 | I6: 5 | J6: 5 | K6: 5 | L6: 5 | M6: 5 | N6: 5 | O6: 5 | P6: 5 | Q6: 5 | R6: 5 | S6: 5 | T6: 10 | U6: 5 | V6: 5 | W6: 10 | X6: 5 | Y6: 5 | Z6: 5 | AA6: 5 | AB6: 5 | AC6: 5 | AD6: 5 | AE6: 5 | AF6: 5 | AG6: 5 | AH6: 5 | AI6: 5 | AJ6: - | AK6: 5 | AL6: 5 | AM6: 5 | AN6: 5 | AO6: 5 | AP6: 5 | AQ6: 5 | AR6: 5 | AS6: 5 | AT6: 5 | AU6: 5 | AV6: 10 | AW6: 5 | AX6: 5 | AY6: 5 | AZ6: 0 | BA6: 5 | BB6: 5 | BC6: 5 | BD6: 5 | BE6: 5
A7: Sun | B7: 2020-08-02 | C7: Cork City | D7: 0 | E7: 1 | F7: Bohemians | G7: 17:00:00 | I7: 0 | J7: 0 | K7: 0 | L7: 5 | M7: 0 | N7: 0 | O7: 5 | P7: 0 | Q7: 10 | R7: 5 | S7: 0 | T7: 5 | U7: 5 | V7: 5 | W7: 5 | X7: 10 | Y7: 5 | Z7: 5 | AA7: 5 | AB7: 5 | AC7: 5 | AD7: 0 | AE7: 0 | AF7: 10 | AG7: 5 | AH7: 5 | AI7: 10 | AJ7: - | AK7: 0 | AL7: 0 | AM7: 5 | AN7: 0 | AO7: 0 | AP7: 10 | AQ7: 10 | AR7: 5 | AS7: 0 | AT7: 10 | AU7: 0 | AV7: 0 | AW7: 10 | AX7: 5 | AY7: 0 | AZ7: 5 | BA7: 5 | BB7: 10 | BC7: 5 | BD7: 10 | BE7: 0
A8: Mon | B8: 2020-08-03 | C8: St Patrick's Athletic | D8: 0 | E8: 2 | F8: Derry City | G8: 19:45:00 | I8: 0 | J8: 5 | K8: 0 | L8: 0 | M8: 0 | N8: 0 | O8: 0 | P8: 0 | Q8: 0 | R8: 0 | S8: 0 | T8: 5 | U8: 0 | V8: 0 | W8: 0 | X8: 0 | Y8: 5 | Z8: 0 | AA8: 0 | AB8: 0 | AC8: 0 | AD8: 0 | AE8: 0 | AF8: 5 | AG8: 0 | AH8: 0 | AI8: 0 | AJ8: - | AK8: 0 | AL8: 0 | AM8: 0 | AN8: 0 | AO8: 0 | AP8: 0 | AQ8: 0 | AR8: 0 | AS8: 0 | AT8: 5 | AU8: 0 | AV8: 0 | AW8: 0 | AX8: 0 | AY8: 0 | AZ8: 5 | BA8: 0 | BB8: 0 | BC8: 0 | BD8: 0 | BE8: 0
A9: Tue | B9: 2020-08-04 | C9: Finn Harps | D9: 0 | E9: 1 | F9: Shelbourne | G9: 17:45:00 | I9: 0 | J9: 0 | K9: 0 | L9: 0 | M9: 0 | N9: 0 | O9: 5 | P9: 0 | Q9: 0 | R9: 5 | S9: 0 | T9: 10 | U9: 0 | V9: 0 | W9: 5 | X9: 0 | Y9: 0 | Z9: 0 | AA9: 0 | AB9: 0 | AC9: 0 | AD9: 0 | AE9: 10 | AF9: 0 | AG9: 0 | AH9: 10 | AI9: 10 | AJ9: - | AK9: 0 | AL9: 5 | AM9: 0 | AN9: 0 | AO9: 5 | AP9: 0 | AQ9: 10 | AR9: 10 | AS9: 5 | AT9: 10 | AU9: 0 | AV9: 0 | AW9: 0 | AX9: 0 | AY9: - | AZ9: 5 | BA9: 0 | BB9: 0 | BC9: 10 | BD9: 0 | BE9: 0
A10: Fri | B10: 2020-08-07 | C10: Bohemians | D10: 2 | E10: 1 | F10: Dundalk | G10: 17:45:00 | I10: 0 | J10: 0 | K10: 0 | L10: 5 | M10: 10 | N10: 0 | O10: 5 | P10: 0 | Q10: 0 | R10: 0 | S10: 10 | T10: 0 | U10: 0 | V10: 0 | W10: 10 | X10: 0 | Y10: 0 | Z10: 0 | AA10: 0 | AB10: 0 | AC10: 10 | AD10: 0 | AE10: 5 | AF10: 0 | AG10: 0 | AH10: 10 | AI10: 0 | AJ10: - | AK10: 10 | AL10: 0 | AM10: 0 | AN10: 0 | AO10: 0 | AP10: 0 | AQ10: 0 | AR10: 0 | AS10: 0 | AT10: 0 | AU10: 0 | AV10: 5 | AW10: 0 | AX10: 10 | AY10: - | AZ10: 0 | BA10: 0 | BB10: 0 | BC10: 0 | BD10: 0 | BE10: 0
A11: Fri | B11: 2020-08-07 | C11: St Patrick's Athletic | D11: 2 | E11: 0 | F11: Finn Harps | G11: 19:45:00 | I11: 5 | J11: 10 | K11: 0 | L11: 10 | M11: 5 | N11: 10 | O11: 10 | P11: 10 | Q11: 10 | R11: 5 | S11: 0 | T11: 10 | U11: 10 | V11: 10 | W11: 10 | X11: 10 | Y11: 10 | Z11: 10 | AA11: 5 | AB11: 10 | AC11: 5 | AD11: 5 | AE11: 5 | AF11: 5 | AG11: 10 | AH11: 5 | AI11: 10 | AJ11: - | AK11: 5 | AL11: 10 | AM11: 10 | AN11: 5 | AO11: 5 | AP11: 5 | AQ11: 0 | AR11: 10 | AS11: 5 | AT11: 10 | AU11: 5 | AV11: 5 | AW11: 10 | AX11: 5 | AY11: - | AZ11: 0 | BA11: 10 | BB11: 10 | BC11: 5 | BD11: 10 | BE11: 5
A12: Sat | B12: 2020-08-08 | C12: Waterford | D12: 0 | E12: 0 | F12: Cork City | G12: 14:00:00 | I12: 0 | J12: 5 | K12: 0 | L12: 0 | M12: 0 | N12: 0 | O12: 0 | P12: 5 | Q12: 0 | R12: 0 | S12: 0 | T12: 0 | U12: 5 | V12: 5 | W12: 0 | X12: 0 | Y12: 0 | Z12: 0 | AA12: 0 | AB12: 5 | AC12: 0 | AD12: 5 | AE12: 0 | AF12: 0 | AG12: 0 | AH12: 0 | AI12: 5 | AJ12: - | AK12: 0 | AL12: 0 | AM12: 0 | AN12: 0 | AO12: 5 | AP12: 0 | AQ12: 0 | AR12: 0 | AS12: 0 | AT12: 0 | AU12: 0 | AV12: 0 | AW12: 0 | AX12: 0 | AY12: - | AZ12: 0 | BA12: 0 | BB12: 0 | BC12: 0 | BD12: 0 | BE12: 0
A13: Sat | B13: 2020-08-08 | C13: Sligo Rovers | D13: 2 | E13: 1 | F13: Shelbourne | G13: 17:00:00 | I13: 0 | J13: 10 | K13: 5 | L13: 5 | M13: 10 | N13: 0 | O13: 5 | P13: 5 | Q13: 5 | R13: 0 | S13: 10 | T13: 0 | U13: 0 | V13: 0 | W13: 0 | X13: 5 | Y13: 0 | Z13: 10 | AA13: 0 | AB13: 0 | AC13: 5 | AD13: 0 | AE13: 5 | AF13: 5 | AG13: 5 | AH13: 10 | AI13: 5 | AJ13: - | AK13: - | AL13: 5 | AM13: 0 | AN13: 5 | AO13: 5 | AP13: 10 | AQ13: 0 | AR13: 0 | AS13: 5 | AT13: 0 | AU13: 5 | AV13: - | AW13: 5 | AX13: 5 | AY13: - | AZ13: - | BA13: 0 | BB13: 5 | BC13: 10 | BD13: 0 | BE13: 10
A14: Sat | B14: 2020-08-09 | C14: Derry City | D14: 1 | E14: 2 | F14: Shamrock Rovers | G14: 19:45:00 | I14: 5 | J14: 5 | K14: 5 | L14: 0 | M14: 0 | N14: 5 | O14: 0 | P14: 5 | Q14: 10 | R14: 5 | S14: 0 | T14: 5 | U14: 5 | V14: 5 | W14: 0 | X14: 5 | Y14: 5 | Z14: 0 | AA14: 10 | AB14: 5 | AC14: 0 | AD14: 10 | AE14: 0 | AF14: 5 | AG14: 5 | AH14: 5 | AI14: 10 | AJ14: - | AK14: - | AL14: 5 | AM14: 5 | AN14: 10 | AO14: 0 | AP14: 5 | AQ14: 5 | AR14: 5 | AS14: 10 | AT14: 5 | AU14: 5 | AV14: - | AW14: 5 | AX14: 5 | AY14: - | AZ14: - | BA14: 0 | BB14: 0 | BC14: 5 | BD14: 0 | BE14: 5
A15: Fri | B15: 2020-08-14 | C15: Dundalk | D15: 2 | E15: 2 | F15: Waterford | G15: 17:45:00 | I15: 0 | J15: 0 | K15: 0 | L15: - | M15: 0 | N15: 0 | O15: 0 | P15: 0 | Q15: 0 | R15: 0 | S15: 0 | T15: 0 | U15: 0 | V15: 0 | W15: 0 | X15: 0 | Y15: 0 | Z15: 0 | AA15: 0 | AB15: 0 | AC15: 0 | AD15: 0 | AE15: 0 | AF15: 0 | AG15: 0 | AH15: 0 | AI15: 0 | AJ15: - | AK15: - | AL15: 0 | AM15: 0 | AN15: 0 | AO15: 0 | AP15: 0 | AQ15: 0 | AR15: 0 | AS15: 0 | AT15: 0 | AU15: 0 | AV15: - | AW15: 0 | AX15: 0 | AY15: - | AZ15: - | BA15: 0 | BB15: 0 | BC15: 0 | BD15: 0 | BE15: 0
A16: Fri | B16: 2020-08-14 | C16: Cork City | D16: 2 | E16: 0 | F16: Sligo Rovers | G16: 19:45:00 | I16: 0 | J16: 0 | K16: 5 | L16: - | M16: 5 | N16: 5 | O16: 5 | P16: 5 | Q16: 0 | R16: 0 | S16: 5 | T16: 0 | U16: 0 | V16: 0 | W16: 0 | X16: 0 | Y16: 0 | Z16: 5 | AA16: 0 | AB16: 0 | AC16: 0 | AD16: 0 | AE16: 5 | AF16: 0 | AG16: 5 | AH16: 5 | AI16: 5 | AJ16: - | AK16: - | AL16: 0 | AM16: 0 | AN16: 0 | AO16: 0 | AP16: 0 | AQ16: 0 | AR16: 0 | AS16: 5 | AT16: 0 | AU16: 0 | AV16: - | AW16: 0 | AX16: 5 | AY16: - | AZ16: - | BA16: 0 | BB16: 5 | BC16: 0 | BD16: 0 | BE16: 0
A17: Sat | B17: 2020-08-15 | C17: Finn Harps | D17: 0 | E17: 1 | F17: Bohemians | G17: 14:00:00 | I17: 5 | J17: 0 | K17: 10 | L17: - | M17: 0 | N17: 5 | O17: 0 | P17: 0 | Q17: 10 | R17: 5 | S17: 0 | T17: 5 | U17: 5 | V17: 10 | W17: 0 | X17: 5 | Y17: 5 | Z17: 0 | AA17: 5 | AB17: 0 | AC17: 5 | AD17: 10 | AE17: 5 | AF17: 0 | AG17: 0 | AH17: 5 | AI17: 10 | AJ17: - | AK17: - | AL17: 0 | AM17: 5 | AN17: 10 | AO17: 0 | AP17: 10 | AQ17: 5 | AR17: 5 | AS17: 0 | AT17: 5 | AU17: 5 | AV17: - | AW17: 5 | AX17: 0 | AY17: - | AZ17: - | BA17: 5 | BB17: 0 | BC17: 10 | BD17: 5 | BE17: 5
A18: Sat | B18: 2020-08-15 | C18: Shelbourne | D18: 1 | E18: 1 | F18: Derry City | G18: 17:00:00 | I18: 0 | J18: 0 | K18: 10 | L18: - | M18: 5 | N18: 0 | O18: 0 | P18: 10 | Q18: 0 | R18: 10 | S18: 0 | T18: 0 | U18: 10 | V18: 0 | W18: 0 | X18: 10 | Y18: 5 | Z18: 0 | AA18: 0 | AB18: 0 | AC18: 5 | AD18: 10 | AE18: 0 | AF18: 0 | AG18: 0 | AH18: 0 | AI18: 10 | AJ18: - | AK18: - | AL18: 0 | AM18: 0 | AN18: 5 | AO18: 0 | AP18: 10 | AQ18: 0 | AR18: 10 | AS18: 0 | AT18: 10 | AU18: 0 | AV18: - | AW18: 0 | AX18: 0 | AY18: - | AZ18: - | BA18: 0 | BB18: 0 | BC18: 0 | BD18: 0 | BE18: 0
A19: Sun | B19: 2020-08-16 | C19: St Patrick's Athletic | D19: 0 | E19: 0 | F19: Shamrock Rovers | G19: 17:00:00 | I19: 0 | J19: 0 | K19: 5 | L19: - | M19: 0 | N19: 0 | O19: 0 | P19: 0 | Q19: 0 | R19: 0 | S19: 0 | T19: 0 | U19: 0 | V19: 0 | W19: 0 | X19: 0 | Y19: 0 | Z19: 0 | AA19: 0 | AB19: 5 | AC19: 0 | AD19: 0 | AE19: 5 | AF19: 5 | AG19: 0 | AH19: 5 | AI19: 0 | AJ19: - | AK19: - | AL19: 0 | AM19: 0 | AN19: 0 | AO19: 0 | AP19: 0 | AQ19: 0 | AR19: 0 | AS19: 0 | AT19: 0 | AU19: 5 | AV19: - | AW19: 0 | AX19: 0 | AY19: - | AZ19: - | BA19: 5 | BB19: 0 | BC19: 0 | BD19: 5 | BE19: 0
A20: Tue | B20: 2020-08-18 | C20: Sligo Rovers | D20: 2 | E20: 1 | F20: Waterford | G20: 17:45:00 | I20: 0 | J20: 5 | K20: 5 | L20: - | M20: 10 | N20: 0 | O20: 5 | P20: 5 | Q20: 10 | R20: 0 | S20: 5 | T20: 0 | U20: 5 | V20: 5 | W20: 5 | X20: 5 | Y20: 5 | Z20: 5 | AA20: 5 | AB20: 10 | AC20: 0 | AD20: 0 | AE20: 0 | AF20: 5 | AG20: 0 | AH20: 5 | AI20: 10 | AJ20: - | AK20: - | AL20: 10 | AM20: 5 | AN20: 10 | AO20: 0 | AP20: 10 | AQ20: 5 | AR20: 10 | AS20: 5 | AT20: 0 | AU20: 0 | AV20: - | AW20: 5 | AX20: 5 | AY20: - | AZ20: - | BA20: 5 | BB20: 10 | BC20: 5 | BD20: 5 | BE20: 10
A21: Fri | B21: 2020-08-21 | C21: Derry City | D21: 3 | E21: 1 | F21: Cork City | G21: 17:45:00 | I21: 5 | J21: 5 | K21: 5 | L21: - | M21: 5 | N21: 5 | O21: 5 | P21: 0 | Q21: 5 | R21: 0 | S21: 0 | T21: 5 | U21: 5 | V21: 5 | W21: 5 | X21: 5 | Y21: 5 | Z21: 10 | AA21: 0 | AB21: 10 | AC21: 0 | AD21: 0 | AE21: 5 | AF21: 5 | AG21: 0 | AH21: 5 | AI21: 5 | AJ21: - | AK21: - | AL21: 5 | AM21: 5 | AN21: 5 | AO21: 0 | AP21: 5 | AQ21: 0 | AR21: 5 | AS21: 5 | AT21: 0 | AU21: 5 | AV21: - | AW21: 0 | AX21: 5 | AY21: - | AZ21: - | BA21: 5 | BB21: 5 | BC21: 10 | BD21: 5 | BE21: 5
A22: Fri | B22: 2020-08-21 | C22: Shamrock Rovers | D22: 0 | E22: 0 | F22: Shelbourne | G22: 19:45:00 | I22: 0 | J22: 0 | K22: 0 | L22: - | M22: 0 | N22: 0 | O22: 0 | P22: 0 | Q22: 0 | R22: 0 | S22: 5 | T22: 0 | U22: 0 | V22: 0 | W22: 0 | X22: 0 | Y22: 0 | Z22: 0 | AA22: 0 | AB22: 0 | AC22: 0 | AD22: 0 | AE22: 0 | AF22: 0 | AG22: 0 | AH22: 0 | AI22: 0 | AJ22: - | AK22: - | AL22: 0 | AM22: 0 | AN22: 0 | AO22: 0 | AP22: 0 | AQ22: 0 | AR22: 0 | AS22: 0 | AT22: 0 | AU22: 0 | AV22: - | AW22: 0 | AX22: 0 | AY22: - | AZ22: - | BA22: 0 | BB22: 0 | BC22: 0 | BD22: 0 | BE22: 0
A23: Sat | B23: 2020-08-22 | C23: Bohemians | D23: 2 | E23: 0 | F23: St Patrick's Athletic | G23: 14:00:00 | I23: 0 | J23: 10 | K23: 5 | L23: - | M23: - | N23: 0 | O23: 10 | P23: 5 | Q23: 5 | R23: 10 | S23: 10 | T23: 0 | U23: 0 | V23: 5 | W23: 0 | X23: 5 | Y23: 5 | Z23: 0 | AA23: 0 | AB23: 0 | AC23: 5 | AD23: 0 | AE23: 10 | AF23: 10 | AG23: 5 | AH23: 0 | AI23: 0 | AJ23: - | AK23: - | AL23: 5 | AM23: 0 | AN23: 5 | AO23: 0 | AP23: 0 | AQ23: 0 | AR23: 5 | AS23: 10 | AT23: 0 | AU23: 0 | AV23: - | AW23: 5 | AX23: 5 | AY23: - | AZ23: - | BA23: 0 | BB23: 5 | BC23: 0 | BD23: 0 | BE23: 5
A24: Sat | B24: 2020-08-22 | C24: Sligo Rovers | D24: 3 | E24: 1 | F24: Dundalk | G24: 17:00:00 | I24: 0 | J24: 0 | K24: 0 | L24: - | M24: - | N24: 5 | O24: 5 | P24: 5 | Q24: 0 | R24: 0 | S24: 0 | T24: 0 | U24: 0 | V24: 0 | W24: 5 | X24: 0 | Y24: 0 | Z24: 0 | AA24: 5 | AB24: 0 | AC24: 0 | AD24: 5 | AE24: 0 | AF24: 0 | AG24: 0 | AH24: 0 | AI24: 0 | AJ24: - | AK24: - | AL24: 5 | AM24: 5 | AN24: 0 | AO24: 0 | AP24: 0 | AQ24: 0 | AR24: 0 | AS24: 5 | AT24: 0 | AU24: 5 | AV24: - | AW24: 0 | AX24: 5 | AY24: - | AZ24: - | BA24: 0 | BB24: 5 | BC24: 0 | BD24: 0 | BE24: 5
A25: Sun | B25: 2020-08-23 | C25: Waterford | D25: 2 | E25: 3 | F25: Finn Harps | G25: 14:00:00 | I25: 0 | J25: 0 | K25: 0 | L25: - | M25: - | N25: 0 | O25: - | P25: 0 | Q25: 0 | R25: 0 | S25: 5 | T25: 0 | U25: 0 | V25: 0 | W25: 0 | X25: 0 | Y25: 0 | Z25: 0 | AA25: 0 | AB25: 0 | AC25: 0 | AD25: 5 | AE25: 0 | AF25: 0 | AG25: 0 | AH25: 0 | AI25: 0 | AJ25: - | AK25: - | AL25: 0 | AM25: 0 | AN25: 0 | AO25: 0 | AP25: 0 | AQ25: 5 | AR25: 0 | AS25: 0 | AT25: 5 | AU25: 0 | AV25: - | AW25: 0 | AX25: - | AY25: - | AZ25: - | BA25: 0 | BB25: 0 | BC25: 0 | BD25: 0 | BE25: 0
A27: Goalscorers
A28: Aaron Greene - Shamrock Rovers | D28: =COUNT(H28:DK28) -> 26 | E28: =0+0+0+0 -> 0 | J28: =2*$E28 -> 0 | K28: =2*$E28 -> 0 | P28: =2*$E28 -> 0 | Q28: =2*$E28 -> 0 | T28: =2*$E28 -> 0 | W28: =2*$E28 -> 0 | Z28: =2*$E28 -> 0 | AA28: =2*$E28 -> 0 | AC28: =2*$E28 -> 0 | AE28: =2*$E28 -> 0 | AF28: =2*$E28 -> 0 | AG28: =2*$E28 -> 0 | AI28: =2*$E28 -> 0 | AK28: =2*$E28 -> 0 | AL28: =2*$E28 -> 0 | AN28: =2*$E28 -> 0 | AP28: =2*$E28 -> 0 | AR28: =2*$E28 -> 0 | AT28: =2*$E28 -> 0 | AU28: =2*$E28 -> 0 | AW28: =2*$E28 -> 0 | AZ28: =2*$E28 -> 0 | BB28: =2*$E28 -> 0 | BC28: =2*$E28 -> 0 | BD28: =2*$E28 -> 0 | BE28: =2*$E28 -> 0
A29: Aaron McEneff - Shamrock Rovers | D29: 8 | E29: =1+0+0+0 -> 1 | M29: =2*$E29 -> 2 | N29: =2*$E29 -> 2 | R29: =2*$E29 -> 2 | Z29: =2*$E29 -> 2 | AB29: =2*$E29 -> 2 | AH29: =2*$E29 -> 2 | AR29: =2*$E29 -> 2 | AX29: =2*$E29 -> 2
A30: Daniel Kelly - Dundalk | D30: 7 | E30: =0+0+0+0 -> 0 | J30: =2*$E30 -> 0 | L30: =2*$E30 -> 0 | M30: =2*$E30 -> 0 | S30: =2*$E30 -> 0 | AF30: =2*$E30 -> 0 | AT30: =2*$E30 -> 0 | AZ30: =2*$E30 -> 0
A31: Dinny Corcoran - Bohemians | D31: 23 | E31: =0+0+0+0 -> 0 | P31: =2*$E31 -> 0 | R31: =2*$E31 -> 0 | S31: =2*$E31 -> 0 | U31: =2*$E31 -> 0 | V31: =2*$E31 -> 0 | X31: =2*$E31 -> 0 | AA31: =2*$E31 -> 0 | AB31: =2*$E31 -> 0 | AC31: =2*$E31 -> 0 | AD31: =2*$E31 -> 0 | AE31: =2*$E31 -> 0 | AH31: =2*$E31 -> 0 | AJ31: =2*$E31 -> 0 | AK31: =2*$E31 -> 0 | AN31: =2*$E31 -> 0 | AP31: =2*$E31 -> 0 | AQ31: =2*$E31 -> 0 | AV31: =2*$E31 -> 0 | AX31: =2*$E31 -> 0 | AY31: =2*$E31 -> 0 | AZ31: =2*$E31 -> 0 | BA31: =2*$E31 -> 0 | BC31: =2*$E31 -> 0
A32: Graham Cummins - Cork City | D32: 2 | E32: =0+0+0+0 -> 0 | I32: =2*$E32 -> 0 | L32: =2*$E32 -> 0
A33: Jack Byrne - Shamrock Rovers | D33: 11 | E33: =1+0+0+0 -> 1 | I33: =2*$E33 -> 2 | M33: =2*$E33 -> 2 | N33: =2*$E33 -> 2 | O33: =2*$E33 -> 2 | T33: =2*$E33 -> 2 | W33: =2*$E33 -> 2 | AM33: =2*$E33 -> 2 | AO33: =2*$E33 -> 2 | AS33: =2*$E33 -> 2 | BA33: =2*$E33 -> 2 | BE33: =2*$E33 -> 2
A34: Jaze Kabia - Shelbourne | D34: 3 | E34: =0+0+0+0 -> 0 | W34: =2*$E34 -> 0 | Y34: =2*$E34 -> 0 | AO34: =2*$E34 -> 0
A35: Michael Duffy - Dundalk | D35: 21 | E35: =0+1+0+0 -> 1 | K35: =2*$E35 -> 2 | L35: =2*$E35 -> 2 | O35: =2*$E35 -> 2 | P35: =2*$E35 -> 2 | Q35: =2*$E35 -> 2 | U35: =2*$E35 -> 2 | X35: =2*$E35 -> 2 | Y35: =2*$E35 -> 2 | AD35: =2*$E35 -> 2 | AG35: =2*$E35 -> 2 | AI35: =2*$E35 -> 2 | AJ35: =2*$E35 -> 2 | AL35: 2 | AM35: 2 | AU35: =2*$E35 -> 2 | AV35: 2 | AW35: 2 | AY35: =2*$E35 -> 2 | BB35: =2*$E35 -> 2 | BC35: =2*$E35 -> 2 | BD35: =2*$E35 -> 2
A36: Patrick Hoban - Dundalk | D36: 41 | E36: =1+0+1+0 -> 2 | I36: =2*$E36 -> 4 | J36: =2*$E36 -> 4 | K36: =2*$E36 -> 4 | N36: =2*$E36 -> 4 | O36: =2*$E36 -> 4 | Q36: =2*$E36 -> 4 | R36: =2*$E36 -> 4 | S36: =2*$E36 -> 4 | T36: =2*$E36 -> 4 | U36: =2*$E36 -> 4 | V36: =2*$E36 -> 4 | X36: =2*$E36 -> 4 | Y36: =2*$E36 -> 4 | Z36: =2*$E36 -> 4 | AA36: =2*$E36 -> 4 | AB36: =2*$E36 -> 4 | AC36: =2*$E36 -> 4 | AD36: =2*$E36 -> 4 | AE36: =2*$E36 -> 4 | AF36: =2*$E36 -> 4 | AG36: =2*$E36 -> 4 | AH36: =2*$E36 -> 4 | AI36: 4 | AJ36: =2*$E36 -> 4 | AK36: =2*$E36 -> 4 | AL36: 4 | AM36: 4 | AN36: 4 | AO36: 4 | AP36: 4 | AQ36: 4 | AR36: 4 | AS36: 4 | AT36: =2*$E36 -> 4 | AU36: 4 | AV36: 4 | AW36: 4 | BA36: =2*$E36 -> 4 | BB36: =2*$E36 -> 4 | BD36: =2*$E36 -> 4 | BE36: =2*$E36 -> 4
A37: Walter Figueira - Derry City | D37: 5 | E37: =0+1+0+1 -> 2 | V37: =2*$E37 -> 4 | AQ37: =2*$E37 -> 4 | AS37: =2*$E37 -> 4 | AX37: =2*$E37 -> 4 | AY37: =2*$E37 -> 4
A39: Golden Gloves
A40: Alan Mannus - Shamrock Rovers | D40: =COUNT(H40:DK40) -> 14 | E40: =0+0+1+1 -> 2 | J40: =2*$E40 -> 4 | Q40: =2*$E40 -> 4 | R40: =2*$E40 -> 4 | T40: =2*$E40 -> 4 | V40: =2*$E40 -> 4 | Y40: =2*$E40 -> 4 | AA40: =2*$E40 -> 4 | AL40: =2*$E40 -> 4 | AN40: =2*$E40 -> 4 | AP40: =2*$E40 -> 4 | AR40: =2*$E40 -> 4 | AT40: =2*$E40 -> 4 | AU40: =2*$E40 -> 4 | BC40: =2*$E40 -> 4
A41: Conor Kearns - St Patrick's Athletic | D41: =COUNT(H41:DK41) -> 1 | E41: =0+0+0+0+0 -> 0 | I41: =2*$E41 -> 0
A42: Gary Rogers - Dundalk | D42: =COUNT(H42:DK42) -> 24 | E42: =0+0+0+0 -> 0 | K42: =2*$E42 -> 0 | L42: 0 | M42: 0 | N42: 0 | O42: 0 | P42: 0 | U42: =2*$E42 -> 0 | X42: =2*$E42 -> 0 | Z42: =2*$E42 -> 0 | AD42: =2*$E42 -> 0 | AE42: 0 | AF42: 0 | AG42: 0 | AH42: 0 | AI42: 0 | AM42: =2*$E42 -> 0 | AO42: =2*$E42 -> 0 | AQ42: =2*$E42 -> 0 | AV42: =2*$E42 -> 0 | AW42: =2*$E42 -> 0 | AY42: =2*$E42 -> 0 | BB42: =2*$E42 -> 0 | BD42: =2*$E42 -> 0 | BE42: =2*$E42 -> 0
A43: James Talbot - Bohemians | D43: =COUNT(H43:DK43) -> 9 | E43: =0+0+0+0 -> 0 | S43: =2*$E43 -> 0 | W43: =2*$E43 -> 0 | AB43: =2*$E43 -> 0 | AC43: =2*$E43 -> 0 | AJ43: 0 | AK43: =2*$E43 -> 0 | AS43: =2*$E43 -> 0 | AZ43: =2*$E43 -> 0 | BA43: =2*$E43 -> 0
A44: Peter Cherrie - Derry City | D44: =COUNT(H44:DK44) -> 1 | E44: =0+0+0+0 -> 0 | AX44: =2*$E44 -> 0
A46: Sack Race
A47: Alan Reynolds - Waterford | D47: =COUNT(H47:DK47) -> 12 | E47: 1 | N47: =15*$E47 -> 15 | Q47: =15*$E47 -> 15 | S47: =15*$E47 -> 15 | W47: =15*$E47 -> 15 | Y47: =15*$E47 -> 15 | AB47: =15*$E47 -> 15 | AC47: =15*$E47 -> 15 | AD47: =15*$E47 -> 15 | AL47: =15*$E47 -> 15 | AR47: =15*$E47 -> 15 | AV47: =15*$E47 -> 15 | BD47: =15*$E47 -> 15
A48: Declan Devine - Derry City | D48: 3 | I48: =15*$E48 -> 0 | R48: =15*$E48 -> 0 | AQ48: =15*$E48 -> 0
A49: Ian Morris - Shelbourne | D49: 4 | O49: =15*$E49 -> 0 | U49: =15*$E49 -> 0 | AI49: =15*$E49 -> 0 | AS49: =15*$E49 -> 0
A50: Keith Long - Bohemians | D50: 1 | AM50: =15*$E50 -> 0
A51: Liam Buckley - Sligo Rovers | D51: 5 | K51: =15*$E51 -> 0 | L51: =15*$E51 -> 0 | V51: =15*$E51 -> 0 | AT51: =15*$E51 -> 0 | BA51: =15*$E51 -> 0
A52: Neal Fenn - Cork City | D52: 14 | J52: =15*$E52 -> 0 | M52: =15*$E52 -> 0 | P52: =15*$E52 -> 0 | X52: =15*$E52 -> 0 | Z52: =15*$E52 -> 0 | AA52: =15*$E52 -> 0 | AE52: =15*$E52 -> 0 | AF52: =15*$E52 -> 0 | AK52: =15*$E52 -> 0 | AP52: =15*$E52 -> 0 | AU52: =15*$E52 -> 0 | AY52: =15*$E52 -> 0 | BB52: =15*$E52 -> 0 | BE52: =15*$E52 -> 0
A53: Ollie Horgan - Finn Harps | D53: 7 | T53: =15*$E53 -> 0 | AG53: =15*$E53 -> 0 | AH53: =15*$E53 -> 0 | AN53: =15*$E53 -> 0 | AO53: =15*$E53 -> 0 | AW53: =15*$E53 -> 0 | AZ53: =15*$E53 -> 0
A54: Stephen Bradley - Shamrock Rovers | D54: 0
A55: Stephen McDonnell - St Patrick's Athletic | D55: 2 | AJ55: =15*$E55 -> 0 | BC55: =15*$E55 -> 0
A56: Vinny Perth - Dundalk | D56: 1 | AX56: =15*$E56 -> 0
A58: Grand Total - July and August | I58: =SUM(I$3:I57) -> 41 | J58: =SUM(J$3:J57) -> 68 | K58: =SUM(K$3:K57) -> 71 | L58: =SUM(L$3:L57) -> 32 | M58: =SUM(M$3:M57) -> 59 | N58: =SUM(N$3:N57) -> 68 | O58: =SUM(O$3:O57) -> 73 | P58: =SUM(P$3:P57) -> 62 | Q58: =SUM(Q$3:Q57) -> 95 | R58: =SUM(R$3:R57) -> 60 | S58: =SUM(S$3:S57) -> 74 | T58: =SUM(T$3:T57) -> 65 | U58: =SUM(U$3:U57) -> 61 | V58: =SUM(V$3:V57) -> 67 | W58: =SUM(W$3:W57) -> 72 | X58: =SUM(X$3:X57) -> 71 | Y58: =SUM(Y$3:Y57) -> 80 | Z58: =SUM(Z$3:Z57) -> 56 | AA58: =SUM(AA$3:AA57) -> 48 | AB58: =SUM(AB$3:AB57) -> 86 | AC58: =SUM(AC$3:AC57) -> 64 | AD58: =SUM(AD$3:AD57) -> 76 | AE58: =SUM(AE$3:AE57) -> 64 | AF58: =SUM(AF$3:AF57) -> 64 | AG58: =SUM(AG$3:AG57) -> 46 | AH58: =SUM(AH$3:AH57) -> 81 | AI58: =SUM(AI$3:AI57) -> 101 | AJ58: =SUM(AJ$3:AJ57) -> 6 | AK58: =SUM(AK$3:AK57) -> 24 | AL58: =SUM(AL$3:AL57) -> 80 | AM58: =SUM(AM$3:AM57) -> 53 | AN58: =SUM(AN$3:AN57) -> 68 | AO58: =SUM(AO$3:AO57) -> 31 | AP58: =SUM(AP$3:AP57) -> 88 | AQ58: =SUM(AQ$3:AQ57) -> 53 | AR58: =SUM(AR$3:AR57) -> 95 | AS58: =SUM(AS$3:AS57) -> 70 | AT58: =SUM(AT$3:AT57) -> 73 | AU58: =SUM(AU$3:AU57) -> 50 | AV58: =SUM(AV$3:AV57) -> 41 | AW58: =SUM(AW$3:AW57) -> 56 | AX58: =SUM(AX$3:AX57) -> 66 | AY58: =SUM(AY$3:AY57) -> 11 | AZ58: =SUM(AZ$3:AZ57) -> 25 | BA58: =SUM(BA$3:BA57) -> 46 | BB58: =SUM(BB$3:BB57) -> 66 | BC58: =SUM(BC$3:BC57) -> 71 | BD58: =SUM(BD$3:BD57) -> 66 | BE58: =SUM(BE$3:BE57) -> 61
A60: Ten Pointers | I60: =COUNTIF(I3:I25,10) -> 0 | J60: =COUNTIF(J3:J25,10) -> 3 | K60: 2 | L60: 1 | M60: 3 | N60: 1 | O60: 2 | P60: 2 | Q60: 5 | R60: 2 | S60: 3 | T60: 3 | U60: 2 | V60: 2 | W60: 3 | X60: 3 | Y60: 1 | Z60: 3 | AA60: 1 | AB60: 4 | AC60: 1 | AD60: 3 | AE60: 2 | AF60: 2 | AG60: 1 | AH60: 3 | AI60: 7 | AJ60: 0 | AK60: 1 | AL60: 2 | AM60: 1 | AN60: 3 | AO60: 0 | AP60: 6 | AQ60: 2 | AR60: 4 | AS60: 2 | AT60: 4 | AU60: 0 | AV60: 1 | AW60: 2 | AX60: 1 | AY60: 0 | AZ60: 0 | BA60: 1 | BB60: 3 | BC60: 4 | BD60: 2 | BE60: 2

Sheet September
I1: Aidan Scanlon | J1: Alan Doyle | K1: Andy Dunne | L1: Breifne Earley | M1: Callum Dunne | N1: Caroline Carroll | O1: Chris Hinchey | P1: Ciaran O'Hart | Q1: Darragh Kenny | R1: David Miley | S1: David Moran | T1: Davy Doyle | U1: Dean Fletcher | V1: Derek Kelly | W1: Derek McDonald | X1: Eamon Fox | Y1: Eoghan Brophy | Z1: Eoghan Farrelly | AA1: Fiachra O'Brolachain | AB1: Gary Donnelly | AC1: Gary Keating | AD1: Gary Fitzpatrick | AE1: Gary McGurk | AF1: Gearoid McIntyre | AG1: Gerry Draper | AH1: Gerry Moore | AI1: Graeme Buckley | AJ1: Hugh Keller | AK1: Ian O'Reilly | AL1: Jay Thomas | AM1: Joe Behan | AN1: Joe Turner | AO1: John Brophy | AP1: Joseph Kavanagh | AQ1: Josh Tobin | AR1: Keith Ryan | AS1: Kieran Harnett | AT1: Mark Welsh | AU1: Niall Carroll | AV1: Patrick Dempsey | AW1: Paul Moore | AX1: Richard Johnston | AY1: Seamus McGowan | AZ1: Sean Keller | BA1: Sean O'Mairtin | BB1: Sean Taylor | BC1: Tom Keane | BD1: Tommy Hamill | BE1: Trevor Rankin
A2: Day | B2: Date | C2: Teams | G2: Time
A3: Fri | B3: 2020-09-04 | C3: Waterford | D3: 3 | E3: 0 | F3: St Patrick's Athletic | G3: 19:45:00 | I3: 0 | J3: 5 | K3: 5 | L3: - | M3: - | N3: 0 | O3: 0 | P3: 0 | Q3: 5 | R3: 5 | S3: 5 | T3: 0 | U3: 0 | V3: 0 | W3: 0 | X3: 0 | Y3: 0 | Z3: 5 | AA3: 0 | AB3: 5 | AC3: 0 | AD3: 0 | AE3: 5 | AF3: 5 | AG3: 5 | AH3: 0 | AI3: 0 | AJ3: - | AK3: - | AL3: 0 | AM3: 0 | AN3: 5 | AO3: 0 | AP3: 0 | AQ3: 0 | AR3: 0 | AS3: 5 | AT3: 0 | AU3: 0 | AV3: - | AW3: 0 | AX3: 0 | AY3: - | AZ3: - | BA3: 5 | BB3: 0 | BC3: 0 | BD3: 0 | BE3: 5
A4: Sat | B4: 2020-09-05 | C4: Shamrock Rovers | D4: 1 | E4: 0 | F4: Bohemians | G4: 14:00:00 | I4: 5 | J4: 0 | K4: 5 | L4: - | M4: - | N4: 10 | O4: 0 | P4: 5 | Q4: 5 | R4: 0 | S4: 5 | T4: 5 | U4: 5 | V4: 0 | W4: 5 | X4: 10 | Y4: 5 | Z4: 10 | AA4: 5 | AB4: 0 | AC4: 0 | AD4: 0 | AE4: 0 | AF4: 0 | AG4: 0 | AH4: 0 | AI4: 0 | AJ4: - | AK4: - | AL4: 10 | AM4: 0 | AN4: 10 | AO4: 0 | AP4: 10 | AQ4: 0 | AR4: 5 | AS4: - | AT4: 10 | AU4: 0 | AV4: - | AW4: 5 | AX4: 0 | AY4: - | AZ4: - | BA4: 5 | BB4: 0 | BC4: 5 | BD4: 0 | BE4: 5
A5: Sat | B5: 2020-09-05 | C5: Shelbourne | D5: 1 | E5: 1 | F5: Cork City | G5: 17:00:00 | I5: 0 | J5: 5 | K5: 10 | L5: - | M5: - | N5: 0 | O5: 0 | P5: 0 | Q5: 0 | R5: 0 | S5: 0 | T5: 0 | U5: 0 | V5: 0 | W5: 0 | X5: 0 | Y5: 0 | Z5: 0 | AA5: 5 | AB5: 10 | AC5: 5 | AD5: 10 | AE5: 0 | AF5: 0 | AG5: 0 | AH5: 0 | AI5: 0 | AJ5: - | AK5: - | AL5: 0 | AM5: 0 | AN5: 0 | AO5: 0 | AP5: 0 | AQ5: 0 | AR5: 0 | AS5: - | AT5: 0 | AU5: 0 | AV5: - | AW5: 0 | AX5: 0 | AY5: - | AZ5: - | BA5: 0 | BB5: 10 | BC5: 10 | BD5: 0 | BE5: 0
A6: Mon | B6: 2020-09-07 | C6: Sligo Rovers | D6: 3 | E6: 1 | F6: Finn Harps | G6: 19:45:00 | I6: 0 | J6: 10 | K6: 5 | L6: - | M6: - | N6: 5 | O6: 5 | P6: 0 | Q6: 5 | R6: 5 | S6: - | T6: 10 | U6: 5 | V6: 5 | W6: 0 | X6: 5 | Y6: 5 | Z6: 5 | AA6: 0 | AB6: 5 | AC6: 10 | AD6: 5 | AE6: 5 | AF6: 0 | AG6: 5 | AH6: 5 | AI6: 5 | AJ6: - | AK6: - | AL6: 5 | AM6: 5 | AN6: 5 | AO6: 5 | AP6: 5 | AQ6: 5 | AR6: 0 | AS6: - | AT6: 5 | AU6: 5 | AV6: - | AW6: 5 | AX6: 0 | AY6: - | AZ6: - | BA6: 5 | BB6: 0 | BC6: 5 | BD6: 5 | BE6: 5
A7: Fri | B7: 2020-09-11 | C7: Bohemians | D7: 0 | E7: 2 | F7: Waterford | G7: 17:45:00 | I7: 0 | J7: 0 | K7: 0 | L7: - | M7: - | N7: 0 | O7: 0 | P7: 0 | Q7: 0 | R7: 0 | S7: - | T7: 0 | U7: 0 | V7: 0 | W7: 0 | X7: 0 | Y7: 0 | Z7: 0 | AA7: 0 | AB7: 0 | AC7: 0 | AD7: 0 | AE7: 0 | AF7: 0 | AG7: 0 | AH7: 0 | AI7: 0 | AJ7: - | AK7: - | AL7: 0 | AM7: 0 | AN7: 0 | AO7: 0 | AP7: 0 | AQ7: 5 | AR7: 0 | AS7: - | AT7: 0 | AU7: 0 | AV7: - | AW7: 0 | AX7: - | AY7: - | AZ7: - | BA7: 0 | BB7: 0 | BC7: 0 | BD7: 0 | BE7: 0
A8: Fri | B8: 2020-09-11 | C8: Dundalk | D8: 3 | E8: 2 | F8: Shelbourne | G8: 20:00:00 | I8: 0 | J8: 5 | K8: 5 | L8: - | M8: - | N8: 5 | O8: 5 | P8: 0 | Q8: 0 | R8: 5 | S8: - | T8: 5 | U8: 5 | V8: 5 | W8: 5 | X8: 5 | Y8: 5 | Z8: 5 | AA8: 0 | AB8: 5 | AC8: 5 | AD8: 5 | AE8: 5 | AF8: 5 | AG8: 5 | AH8: 0 | AI8: 5 | AJ8: - | AK8: - | AL8: 5 | AM8: 0 | AN8: 5 | AO8: 5 | AP8: 5 | AQ8: 0 | AR8: 5 | AS8: - | AT8: 5 | AU8: 5 | AV8: - | AW8: 5 | AX8: - | AY8: - | AZ8: - | BA8: 5 | BB8: 5 | BC8: 5 | BD8: 5 | BE8: 5
A9: Sat | B9: 2020-09-12 | C9: Cork City | D9: 0 | E9: 3 | F9: Shamrock Rovers | G9: 14:00:00 | I9: 5 | J9: 5 | K9: 5 | L9: - | M9: - | N9: 5 | O9: 5 | P9: 0 | Q9: 5 | R9: 5 | S9: - | T9: 5 | U9: 5 | V9: 5 | W9: 0 | X9: 5 | Y9: 10 | Z9: 5 | AA9: 5 | AB9: 5 | AC9: 0 | AD9: 5 | AE9: 5 | AF9: 0 | AG9: 5 | AH9: 0 | AI9: 5 | AJ9: - | AK9: - | AL9: 5 | AM9: 10 | AN9: 5 | AO9: 0 | AP9: 5 | AQ9: 5 | AR9: 5 | AS9: - | AT9: 5 | AU9: 10 | AV9: - | AW9: 5 | AX9: - | AY9: - | AZ9: - | BA9: 5 | BB9: 10 | BC9: 5 | BD9: 5 | BE9: 5
A10: Sat | B10: 2020-09-12 | C10: St Patrick's Athletic | D10: 0 | E10: 0 | F10: Sligo Rovers | G10: 17:00:00 | I10: 0 | J10: 0 | K10: 10 | L10: - | M10: - | N10: 0 | O10: 0 | P10: 5 | Q10: 0 | R10: 0 | S10: - | T10: 5 | U10: 5 | V10: 5 | W10: 0 | X10: 0 | Y10: 0 | Z10: 0 | AA10: 0 | AB10: 0 | AC10: 0 | AD10: 0 | AE10: 5 | AF10: 0 | AG10: 10 | AH10: 0 | AI10: 0 | AJ10: - | AK10: - | AL10: 0 | AM10: 0 | AN10: 5 | AO10: 0 | AP10: 0 | AQ10: 0 | AR10: 5 | AS10: - | AT10: 0 | AU10: 5 | AV10: - | AW10: 5 | AX10: - | AY10: - | AZ10: - | BA10: 5 | BB10: 0 | BC10: 0 | BD10: 5 | BE10: 5
A11: Sun | B11: 2020-09-13 | C11: Finn Harps | D11: 0 | E11: 0 | F11: Derry City | G11: 17:00:00 | I11: 5 | J11: 0 | K11: 0 | L11: - | M11: - | N11: 0 | O11: 0 | P11: 5 | Q11: 0 | R11: 5 | S11: - | T11: 0 | U11: 0 | V11: 0 | W11: 0 | X11: 0 | Y11: 0 | Z11: 5 | AA11: 0 | AB11: 5 | AC11: 0 | AD11: 0 | AE11: 0 | AF11: 5 | AG11: 0 | AH11: 5 | AI11: 0 | AJ11: - | AK11: - | AL11: 5 | AM11: 0 | AN11: 0 | AO11: 10 | AP11: 10 | AQ11: 0 | AR11: 0 | AS11: - | AT11: 0 | AU11: 0 | AV11: - | AW11: 0 | AX11: 0 | AY11: - | AZ11: - | BA11: 5 | BB11: 0 | BC11: 0 | BD11: 0 | BE11: 5
A12: Fri | B12: 2020-09-18 | C12: Derry City | D12: 0 | E12: 0 | F12: St Patrick's Athletic | G12: 17:45:00 | I12: 0 | J12: 0 | K12: 0 | L12: - | M12: - | N12: 0 | O12: 0 | P12: 0 | Q12: 0 | R12: 5 | S12: - | T12: 5 | U12: 0 | V12: 0 | W12: 0 | X12: 0 | Y12: 0 | Z12: 0 | AA12: 5 | AB12: 5 | AC12: 5 | AD12: 0 | AE12: 5 | AF12: 5 | AG12: 0 | AH12: 5 | AI12: 5 | AJ12: - | AK12: - | AL12: 0 | AM12: 0 | AN12: 0 | AO12: 5 | AP12: 0 | AQ12: 0 | AR12: 5 | AS12: - | AT12: 0 | AU12: 0 | AV12: - | AW12: 0 | AX12: - | AY12: - | AZ12: - | BA12: 0 | BB12: 0 | BC12: 0 | BD12: 0 | BE12: 0
A13: Fri | B13: 2020-09-18 | C13: Sligo Rovers | D13: 0 | E13: 1 | F13: Bohemians | G13: 19:45:00 | I13: 5 | J13: 0 | K13: 0 | L13: - | M13: 0 | N13: 0 | O13: 0 | P13: 0 | Q13: 0 | R13: 0 | S13: - | T13: 0 | U13: 0 | V13: 0 | W13: 0 | X13: 10 | Y13: 5 | Z13: 0 | AA13: 0 | AB13: 5 | AC13: 5 | AD13: 0 | AE13: 10 | AF13: 0 | AG13: 0 | AH13: 0 | AI13: 0 | AJ13: - | AK13: - | AL13: 0 | AM13: 0 | AN13: 0 | AO13: 0 | AP13: 0 | AQ13: 0 | AR13: 0 | AS13: - | AT13: 0 | AU13: 0 | AV13: - | AW13: 0 | AX13: - | AY13: - | AZ13: - | BA13: 0 | BB13: 0 | BC13: 0 | BD13: 0 | BE13: 5
A14: Sat | B14: 2020-09-19 | C14: Shelbourne | D14: 1 | E14: 1 | F14: Finn Harps | G14: 19:30:00 | I14: 0 | J14: 10 | K14: 0 | L14: - | M14: 10 | N14: 0 | O14: 0 | P14: 10 | Q14: 0 | R14: 0 | S14: - | T14: 0 | U14: 0 | V14: 0 | W14: 0 | X14: 0 | Y14: 0 | Z14: 0 | AA14: 5 | AB14: 10 | AC14: 0 | AD14: 0 | AE14: 0 | AF14: 0 | AG14: 0 | AH14: 0 | AI14: 10 | AJ14: - | AK14: - | AL14: 0 | AM14: 0 | AN14: 0 | AO14: 0 | AP14: 0 | AQ14: 0 | AR14: 0 | AS14: - | AT14: 0 | AU14: 0 | AV14: - | AW14: 0 | AX14: - | AY14: - | AZ14: - | BA14: 5 | BB14: 0 | BC14: 0 | BD14: 0 | BE14: 10
A15: Mon | B15: 2020-09-21 | C15: Shamrock Rovers | D15: 6 | E15: 1 | F15: Waterford | G15: 20:00:00 | I15: 5 | J15: 5 | K15: 5 | L15: - | M15: 5 | N15: 5 | O15: 5 | P15: 5 | Q15: 5 | R15: 5 | S15: - | T15: 5 | U15: 5 | V15: 5 | W15: 5 | X15: 5 | Y15: 5 | Z15: 5 | AA15: 5 | AB15: 5 | AC15: 0 | AD15: 5 | AE15: 5 | AF15: 5 | AG15: 5 | AH15: 5 | AI15: 5 | AJ15: - | AK15: - | AL15: 5 | AM15: 5 | AN15: 5 | AO15: 5 | AP15: 5 | AQ15: 5 | AR15: 5 | AS15: - | AT15: 5 | AU15: 5 | AV15: - | AW15: 5 | AX15: 5 | AY15: - | AZ15: - | BA15: 5 | BB15: 5 | BC15: 5 | BD15: 5 | BE15: 5
A16: Fri | B16: 2020-09-25 | C16: Bohemians | D16: 2 | E16: 1 | F16: Derry City | G16: 19:45:00 | I16: 10 | J16: 0 | K16: 10 | L16: - | M16: - | N16: 5 | O16: 5 | P16: 5 | Q16: 5 | R16: 5 | S16: 10 | T16: 5 | U16: 5 | V16: 0 | W16: 5 | X16: 5 | Y16: 5 | Z16: 5 | AA16: 0 | AB16: 10 | AC16: 5 | AD16: 10 | AE16: 5 | AF16: 5 | AG16: 5 | AH16: 10 | AI16: 0 | AJ16: - | AK16: - | AL16: 5 | AM16: 5 | AN16: 10 | AO16: 10 | AP16: 5 | AQ16: - | AR16: 10 | AS16: - | AT16: 0 | AU16: 5 | AV16: - | AW16: 5 | AX16: - | AY16: - | AZ16: - | BA16: 5 | BB16: 10 | BC16: 10 | BD16: 10 | BE16: 5
A17: Sat | B17: 2020-09-26 | C17: Waterford | D17: 1 | E17: 0 | F17: Sligo Rovers | G17: 17:00:00 | I17: 5 | J17: 10 | K17: 5 | L17: - | M17: 0 | N17: 0 | O17: 0 | P17: 0 | Q17: 0 | R17: 0 | S17: 0 | T17: 0 | U17: 0 | V17: 0 | W17: 5 | X17: 0 | Y17: 0 | Z17: - | AA17: 0 | AB17: 5 | AC17: 0 | AD17: 0 | AE17: 0 | AF17: 0 | AG17: 0 | AH17: 0 | AI17: 0 | AJ17: - | AK17: - | AL17: 10 | AM17: 0 | AN17: 0 | AO17: 10 | AP17: 0 | AQ17: - | AR17: 0 | AS17: - | AT17: 0 | AU17: 10 | AV17: - | AW17: 10 | AX17: - | AY17: - | AZ17: - | BA17: 0 | BB17: 0 | BC17: 0 | BD17: 5 | BE17: 0
A18: Sat | B18: 2020-09-26 | C18: St Patrick's Athletic | D18: 2 | E18: 0 | F18: Shelbourne | G18: 19:30:00 | I18: 0 | J18: 0 | K18: 10 | L18: - | M18: 5 | N18: 0 | O18: 0 | P18: 5 | Q18: 0 | R18: 10 | S18: 0 | T18: 0 | U18: 0 | V18: 5 | W18: 10 | X18: 5 | Y18: 0 | Z18: - | AA18: 0 | AB18: 0 | AC18: 0 | AD18: 0 | AE18: 5 | AF18: 0 | AG18: 0 | AH18: 0 | AI18: 0 | AJ18: - | AK18: - | AL18: 0 | AM18: 5 | AN18: 5 | AO18: 0 | AP18: 5 | AQ18: - | AR18: 0 | AS18: - | AT18: 0 | AU18: 5 | AV18: - | AW18: 10 | AX18: - | AY18: - | AZ18: - | BA18: 5 | BB18: 0 | BC18: 0 | BD18: 5 | BE18: 5
A19: Sun | B19: 2020-09-27 | C19: Finn Harps | D19: 1 | E19: 1 | F19: Cork City | G19: 17:00:00 | I19: 0 | J19: 0 | K19: 10 | L19: - | M19: 0 | N19: 0 | O19: 0 | P19: 10 | Q19: 0 | R19: 0 | S19: 10 | T19: 0 | U19: 0 | V19: 0 | W19: 0 | X19: 0 | Y19: 0 | Z19: - | AA19: 0 | AB19: 0 | AC19: 0 | AD19: 10 | AE19: 0 | AF19: 0 | AG19: 0 | AH19: 0 | AI19: 5 | AJ19: - | AK19: - | AL19: 0 | AM19: 0 | AN19: 0 | AO19: 0 | AP19: 5 | AQ19: - | AR19: 0 | AS19: - | AT19: 0 | AU19: 10 | AV19: - | AW19: 0 | AX19: - | AY19: - | AZ19: - | BA19: 0 | BB19: 0 | BC19: 10 | BD19: 0 | BE19: 10
A20: Sun | B20: 2020-09-27 | C20: Dundalk | D20: 0 | E20: 4 | F20: Shamrock Rovers | G20: 19:30:00 | I20: 5 | J20: 0 | K20: 5 | L20: - | M20: 5 | N20: 0 | O20: 5 | P20: 0 | Q20: 5 | R20: 5 | S20: 0 | T20: 5 | U20: 5 | V20: 5 | W20: 0 | X20: 5 | Y20: 5 | Z20: - | AA20: 5 | AB20: 0 | AC20: 0 | AD20: 5 | AE20: 5 | AF20: 0 | AG20: 0 | AH20: 0 | AI20: 0 | AJ20: - | AK20: - | AL20: 5 | AM20: 5 | AN20: 0 | AO20: 0 | AP20: 5 | AQ20: - | AR20: 5 | AS20: - | AT20: 5 | AU20: 0 | AV20: - | AW20: 5 | AX20: - | AY20: - | AZ20: - | BA20: 0 | BB20: 5 | BC20: 5 | BD20: 0 | BE20: 0
A21: Tue | B21: 2020-09-29 | C21: Sligo Rovers | D21: 1 | E21: 0 | F21: Derry City | G21: 19:45:00 | I21: 0 | J21: 5 | K21: 5 | L21: - | M21: 0 | N21: 0 | O21: 5 | P21: 5 | Q21: 10 | R21: 5 | S21: 5 | T21: 5 | U21: 0 | V21: 0 | W21: 5 | X21: 10 | Y21: 5 | Z21: - | AA21: 0 | AB21: 5 | AC21: 0 | AD21: 0 | AE21: 0 | AF21: 0 | AG21: 5 | AH21: 0 | AI21: 10 | AJ21: - | AK21: - | AL21: 0 | AM21: 0 | AN21: 10 | AO21: 0 | AP21: 5 | AQ21: - | AR21: 0 | AS21: - | AT21: 0 | AU21: 10 | AV21: - | AW21: 5 | AX21: - | AY21: - | AZ21: - | BA21: 0 | BB21: 10 | BC21: 0 | BD21: 5 | BE21: 0
A23: Goalscorers
A24: Aaron Greene - Shamrock Rovers | D24: =COUNT(H24:DK24) -> 26 | E24: =0+2+1+0 -> 3 | J24: =2*$E24 -> 6 | K24: =2*$E24 -> 6 | P24: =2*$E24 -> 6 | Q24: =2*$E24 -> 6 | T24: =2*$E24 -> 6 | W24: =2*$E24 -> 6 | Z24: =2*$E24 -> 6 | AA24: =2*$E24 -> 6 | AC24: =2*$E24 -> 6 | AE24: =2*$E24 -> 6 | AF24: =2*$E24 -> 6 | AG24: =2*$E24 -> 6 | AI24: =2*$E24 -> 6 | AK24: =2*$E24 -> 6 | AL24: =2*$E24 -> 6 | AN24: =2*$E24 -> 6 | AP24: =2*$E24 -> 6 | AR24: =2*$E24 -> 6 | AT24: =2*$E24 -> 6 | AU24: =2*$E24 -> 6 | AW24: =2*$E24 -> 6 | AZ24: =2*$E24 -> 6 | BB24: =2*$E24 -> 6 | BC24: =2*$E24 -> 6 | BD24: =2*$E24 -> 6 | BE24: =2*$E24 -> 6
A25: Aaron McEneff - Shamrock Rovers | D25: 8 | E25: =0+0+0+1 -> 1 | M25: =2*$E25 -> 2 | N25: =2*$E25 -> 2 | R25: =2*$E25 -> 2 | Z25: =2*$E25 -> 2 | AB25: =2*$E25 -> 2 | AH25: =2*$E25 -> 2 | AR25: =2*$E25 -> 2 | AX25: =2*$E25 -> 2
A26: Daniel Kelly - Dundalk | D26: 7 | E26: =0+0 -> 0 | J26: =2*$E26 -> 0 | L26: =2*$E26 -> 0 | M26: =2*$E26 -> 0 | S26: =2*$E26 -> 0 | AF26: =2*$E26 -> 0 | AT26: =2*$E26 -> 0 | AZ26: =2*$E26 -> 0
A27: Dinny Corcoran - Bohemians | D27: 23 | E27: =0+0+0+0 -> 0 | P27: =2*$E27 -> 0 | R27: =2*$E27 -> 0 | S27: =2*$E27 -> 0 | U27: =2*$E27 -> 0 | V27: =2*$E27 -> 0 | X27: =2*$E27 -> 0 | AA27: =2*$E27 -> 0 | AB27: =2*$E27 -> 0 | AC27: =2*$E27 -> 0 | AD27: =2*$E27 -> 0 | AE27: =2*$E27 -> 0 | AH27: =2*$E27 -> 0 | AJ27: =2*$E27 -> 0 | AK27: =2*$E27 -> 0 | AN27: =2*$E27 -> 0 | AP27: =2*$E27 -> 0 | AQ27: =2*$E27 -> 0 | AV27: =2*$E27 -> 0 | AX27: =2*$E27 -> 0 | AY27: =2*$E27 -> 0 | AZ27: =2*$E27 -> 0 | BA27: =2*$E27 -> 0 | BC27: =2*$E27 -> 0
A28: Graham Cummins - Cork City | D28: 2 | E28: =0+0+0 -> 0 | I28: =2*$E28 -> 0 | L28: =2*$E28 -> 0
A29: Jack Byrne - Shamrock Rovers | D29: 11 | E29: =0+0+1+2 -> 3 | I29: =2*$E29 -> 6 | M29: =2*$E29 -> 6 | N29: =2*$E29 -> 6 | O29: =2*$E29 -> 6 | T29: =2*$E29 -> 6 | W29: =2*$E29 -> 6 | AM29: =2*$E29 -> 6 | AO29: =2*$E29 -> 6 | AS29: =2*$E29 -> 6 | BA29: =2*$E29 -> 6 | BE29: =2*$E29 -> 6
A30: Jaze Kabia - Shelbourne | D30: 3 | E30: =0+0 -> 0 | W30: =2*$E30 -> 0 | Y30: =2*$E30 -> 0 | AO30: =2*$E30 -> 0
A31: Michael Duffy - Dundalk | D31: 21 | E31: =1+0 -> 1 | K31: =2*$E31 -> 2 | L31: =2*$E31 -> 2 | O31: =2*$E31 -> 2 | P31: =2*$E31 -> 2 | Q31: =2*$E31 -> 2 | U31: =2*$E31 -> 2 | X31: =2*$E31 -> 2 | Y31: =2*$E31 -> 2 | AD31: =2*$E31 -> 2 | AG31: =2*$E31 -> 2 | AI31: =2*$E31 -> 2 | AJ31: =2*$E31 -> 2 | AL31: 2 | AM31: 2 | AU31: =2*$E31 -> 2 | AV31: 2 | AW31: 2 | AY31: =2*$E31 -> 2 | BB31: =2*$E31 -> 2 | BC31: =2*$E31 -> 2 | BD31: =2*$E31 -> 2
A32: Patrick Hoban - Dundalk | D32: 41 | E32: =0+0 -> 0 | I32: =2*$E32 -> 0 | J32: =2*$E32 -> 0 | K32: =2*$E32 -> 0 | N32: =2*$E32 -> 0 | O32: =2*$E32 -> 0 | Q32: =2*$E32 -> 0 | R32: =2*$E32 -> 0 | S32: =2*$E32 -> 0 | T32: =2*$E32 -> 0 | U32: =2*$E32 -> 0 | V32: =2*$E32 -> 0 | X32: =2*$E32 -> 0 | Y32: =2*$E32 -> 0 | Z32: =2*$E32 -> 0 | AA32: =2*$E32 -> 0 | AB32: =2*$E32 -> 0 | AC32: =2*$E32 -> 0 | AD32: =2*$E32 -> 0 | AE32: =2*$E32 -> 0 | AF32: =2*$E32 -> 0 | AG32: =2*$E32 -> 0 | AH32: =2*$E32 -> 0 | AI32: 0 | AJ32: =2*$E32 -> 0 | AK32: =2*$E32 -> 0 | AL32: 0 | AM32: 0 | AN32: 0 | AO32: 0 | AP32: 0 | AQ32: 0 | AR32: 0 | AS32: 0 | AT32: =2*$E32 -> 0 | AU32: 0 | AV32: 0 | AW32: 0 | BA32: =2*$E32 -> 0 | BB32: =2*$E32 -> 0 | BD32: =2*$E32 -> 0 | BE32: =2*$E32 -> 0
A33: Walter Figueira - Derry City | D33: 5 | E33: =0+0+0 -> 0 | V33: =2*$E33 -> 0 | AQ33: =2*$E33 -> 0 | AS33: =2*$E33 -> 0 | AX33: =2*$E33 -> 0 | AY33: =2*$E33 -> 0
A35: Golden Gloves
A36: Alan Mannus - Shamrock Rovers | D36: =COUNT(H36:DK36) -> 14 | E36: =1+1+0+1 -> 3 | J36: =2*$E36 -> 6 | Q36: =2*$E36 -> 6 | R36: =2*$E36 -> 6 | T36: =2*$E36 -> 6 | V36: =2*$E36 -> 6 | Y36: =2*$E36 -> 6 | AA36: =2*$E36 -> 6 | AL36: =2*$E36 -> 6 | AN36: =2*$E36 -> 6 | AP36: =2*$E36 -> 6 | AR36: =2*$E36 -> 6 | AT36: =2*$E36 -> 6 | AU36: =2*$E36 -> 6 | BC36: =2*$E36 -> 6
A37: Conor Kearns - St Patrick's Athletic | D37: =COUNT(H37:DK37) -> 1 | E37: =0+0 -> 0 | I37: =2*$E37 -> 0
A38: Gary Rogers - Dundalk | D38: =COUNT(H38:DK38) -> 24 | E38: =0+0 -> 0 | K38: =2*$E38 -> 0 | L38: 0 | M38: 0 | N38: 0 | O38: 0 | P38: 0 | U38: =2*$E38 -> 0 | X38: =2*$E38 -> 0 | Z38: =2*$E38 -> 0 | AD38: =2*$E38 -> 0 | AE38: 0 | AF38: 0 | AG38: 0 | AH38: 0 | AI38: 0 | AM38: =2*$E38 -> 0 | AO38: =2*$E38 -> 0 | AQ38: =2*$E38 -> 0 | AV38: =2*$E38 -> 0 | AW38: =2*$E38 -> 0 | AY38: =2*$E38 -> 0 | BB38: =2*$E38 -> 0 | BD38: =2*$E38 -> 0 | BE38: =2*$E38 -> 0
A39: James Talbot - Bohemians | D39: =COUNT(H39:DK39) -> 9 | E39: =0+0+1+0 -> 1 | S39: =2*$E39 -> 2 | W39: =2*$E39 -> 2 | AB39: =2*$E39 -> 2 | AC39: =2*$E39 -> 2 | AJ39: 2 | AK39: =2*$E39 -> 2 | AS39: =2*$E39 -> 2 | AZ39: =2*$E39 -> 2 | BA39: =2*$E39 -> 2
A40: Peter Cherrie - Derry City | D40: =COUNT(H40:DK40) -> 1 | E40: =1+1+0+0 -> 2 | AX40: =2*$E40 -> 4
A42: Grand Total - September | I42: =SUM(I$3:I41) -> 51 | J42: =SUM(J$3:J41) -> 72 | K42: =SUM(K$3:K41) -> 103 | L42: =SUM(L$3:L41) -> 2 | M42: =SUM(M$3:M41) -> 33 | N42: =SUM(N$3:N41) -> 43 | O42: =SUM(O$3:O41) -> 43 | P42: =SUM(P$3:P41) -> 63 | Q42: =SUM(Q$3:Q41) -> 59 | R42: =SUM(R$3:R41) -> 68 | S42: =SUM(S$3:S41) -> 37 | T42: =SUM(T$3:T41) -> 73 | U42: =SUM(U$3:U41) -> 42 | V42: =SUM(V$3:V41) -> 41 | W42: =SUM(W$3:W41) -> 54 | X42: =SUM(X$3:X41) -> 67 | Y42: =SUM(Y$3:Y41) -> 58 | Z42: =SUM(Z$3:Z41) -> 53 | AA42: =SUM(AA$3:AA41) -> 47 | AB42: =SUM(AB$3:AB41) -> 84 | AC42: =SUM(AC$3:AC41) -> 43 | AD42: =SUM(AD$3:AD41) -> 57 | AE42: =SUM(AE$3:AE41) -> 66 | AF42: =SUM(AF$3:AF41) -> 36 | AG42: =SUM(AG$3:AG41) -> 53 | AH42: =SUM(AH$3:AH41) -> 32 | AI42: =SUM(AI$3:AI41) -> 58 | AJ42: =SUM(AJ$3:AJ41) -> 4 | AK42: =SUM(AK$3:AK41) -> 8 | AL42: =SUM(AL$3:AL41) -> 69 | AM42: =SUM(AM$3:AM41) -> 43 | AN42: =SUM(AN$3:AN41) -> 77 | AO42: =SUM(AO$3:AO41) -> 56 | AP42: =SUM(AP$3:AP41) -> 77 | AQ42: =SUM(AQ$3:AQ41) -> 20 | AR42: =SUM(AR$3:AR41) -> 59 | AS42: =SUM(AS$3:AS41) -> 13 | AT42: =SUM(AT$3:AT41) -> 47 | AU42: =SUM(AU$3:AU41) -> 84 | AV42: =SUM(AV$3:AV41) -> 2 | AW42: =SUM(AW$3:AW41) -> 73 | AX42: =SUM(AX$3:AX41) -> 11 | AY42: =SUM(AY$3:AY41) -> 2 | AZ42: =SUM(AZ$3:AZ41) -> 8 | BA42: =SUM(BA$3:BA41) -> 63 | BB42: =SUM(BB$3:BB41) -> 63 | BC42: =SUM(BC$3:BC41) -> 74 | BD42: =SUM(BD$3:BD41) -> 58 | BE42: =SUM(BE$3:BE41) -> 87
A44: Ten Pointers | I44: =COUNTIF(I3:I21,10) -> 1 | J44: =COUNTIF(J3:J21,10) -> 3 | K44: =COUNTIF(K3:K21,10) -> 5 | L44: 0 | M44: 1 | N44: 1 | O44: 0 | P44: 2 | Q44: 1 | R44: 1 | S44: 2 | T44: 1 | U44: 0 | V44: 0 | W44: 1 | X44: 3 | Y44: 1 | Z44: 1 | AA44: 0 | AB44: 3 | AC44: 1 | AD44: 3 | AE44: 1 | AF44: 0 | AG44: 1 | AH44: 1 | AI44: 2 | AJ44: 0 | AK44: 0 | AL44: 2 | AM44: 1 | AN44: 3 | AO44: 3 | AP44: 2 | AQ44: 0 | AR44: 1 | AS44: 0 | AT44: 1 | AU44: 4 | AV44: 0 | AW44: 2 | AX44: 0 | AY44: 0 | AZ44: 0 | BA44: 0 | BB44: 4 | BC44: 3 | BD44: 1 | BE44: 2

Sheet October
I1: Aidan Scanlon | J1: Alan Doyle | K1: Andy Dunne | L1: Breifne Earley | M1: Callum Dunne | N1: Caroline Carroll | O1: Chris Hinchey | P1: Ciaran O'Hart | Q1: Darragh Kenny | R1: David Miley | S1: David Moran | T1: Davy Doyle | U1: Dean Fletcher | V1: Derek Kelly | W1: Derek McDonald | X1: Eamon Fox | Y1: Eoghan Brophy | Z1: Eoghan Farrelly | AA1: Fiachra O'Brolachain | AB1: Gary Donnelly | AC1: Gary Keating | AD1: Gary Fitzpatrick | AE1: Gary McGurk | AF1: Gearoid McIntyre | AG1: Gerry Draper | AH1: Gerry Moore | AI1: Graeme Buckley | AJ1: Hugh Keller | AK1: Ian O'Reilly | AL1: Jay Thomas | AM1: Joe Behan | AN1: Joe Turner | AO1: John Brophy | AP1: Joseph Kavanagh | AQ1: Josh Tobin | AR1: Keith Ryan | AS1: Kieran Harnett | AT1: Mark Welsh | AU1: Niall Carroll | AV1: Patrick Dempsey | AW1: Paul Moore | AX1: Richard Johnston | AY1: Seamus McGowan | AZ1: Sean Keller | BA1: Sean O'Mairtin | BB1: Sean Taylor | BC1: Tom Keane | BD1: Tommy Hamill | BE1: Trevor Rankin
A2: Day | B2: Date | C2: Teams | G2: Time
A3: Fri | B3: 2020-10-02 | C3: Derry City | D3: 2 | E3: 0 | F3: Waterford | G3: 17:45:00 | I3: 0 | J3: 0 | K3: 5 | L3: - | M3: - | N3: 10 | O3: 0 | P3: 0 | Q3: 0 | R3: 5 | S3: - | T3: 0 | U3: 5 | V3: 0 | W3: 10 | X3: 5 | Y3: 0 | Z3: - | AA3: 0 | AB3: 0 | AC3: 0 | AD3: 0 | AE3: 5 | AF3: 5 | AG3: 0 | AH3: 5 | AI3: 5 | AJ3: - | AK3: - | AL3: 0 | AM3: 10 | AN3: 0 | AO3: 0 | AP3: 0 | AQ3: 0 | AR3: 0 | AS3: - | AT3: 0 | AU3: 5 | AV3: - | AW3: 10 | AX3: - | AY3: - | AZ3: - | BA3: 10 | BB3: 0 | BC3: 0 | BD3: 5 | BE3: 0
A4: Fri | B4: 2010-10-02 | C4: Shamrock Rovers | D4: 4 | E4: 0 | F4: Sligo Rovers | G4: 19:45:00 | I4: 5 | J4: 5 | K4: 5 | L4: - | M4: 5 | N4: 5 | O4: 5 | P4: 5 | Q4: 5 | R4: 5 | S4: - | T4: 5 | U4: 5 | V4: 5 | W4: 5 | X4: 5 | Y4: 5 | Z4: - | AA4: 5 | AB4: 5 | AC4: 5 | AD4: 5 | AE4: 5 | AF4: 5 | AG4: 5 | AH4: 5 | AI4: 0 | AJ4: - | AK4: - | AL4: 5 | AM4: 5 | AN4: 5 | AO4: 5 | AP4: 5 | AQ4: 5 | AR4: 5 | AS4: - | AT4: 5 | AU4: 5 | AV4: - | AW4: 5 | AX4: 5 | AY4: - | AZ4: - | BA4: 5 | BB4: 5 | BC4: 5 | BD4: 5 | BE4: 5
A5: Sat | B5: 2010-10-03 | C5: Cork City | D5: 1 | E5: 2 | F5: St Patrick's Athletic | G5: 17:00:00 | I5: 5 | J5: 0 | K5: 0 | L5: - | M5: 0 | N5: 10 | O5: 0 | P5: 0 | Q5: 0 | R5: 0 | S5: - | T5: 5 | U5: 0 | V5: 0 | W5: 10 | X5: 5 | Y5: 5 | Z5: - | AA5: 0 | AB5: 0 | AC5: 5 | AD5: 0 | AE5: 10 | AF5: 0 | AG5: 0 | AH5: 0 | AI5: 5 | AJ5: - | AK5: - | AL5: 0 | AM5: 5 | AN5: 0 | AO5: 10 | AP5: 5 | AQ5: 0 | AR5: 10 | AS5: - | AT5: 5 | AU5: 0 | AV5: - | AW5: 10 | AX5: 0 | AY5: - | AZ5: - | BA5: 10 | BB5: 0 | BC5: 0 | BD5: 0 | BE5: 0
A6: Sat | B6: 2010-10-03 | C6: Shelbourne | D6: 1 | E6: 3 | F6: Bohemians | G6: 19:30:00 | I6: 0 | J6: 0 | K6: 5 | L6: - | M6: 5 | N6: 5 | O6: 5 | P6: 0 | Q6: 5 | R6: 5 | S6: - | T6: 5 | U6: 5 | V6: 5 | W6: 0 | X6: 5 | Y6: 5 | Z6: - | AA6: 5 | AB6: 5 | AC6: 5 | AD6: 5 | AE6: 5 | AF6: 5 | AG6: 5 | AH6: 0 | AI6: 5 | AJ6: - | AK6: - | AL6: 5 | AM6: 0 | AN6: 5 | AO6: 5 | AP6: 5 | AQ6: 0 | AR6: 5 | AS6: - | AT6: 0 | AU6: 5 | AV6: - | AW6: 0 | AX6: 5 | AY6: - | AZ6: - | BA6: 5 | BB6: 5 | BC6: 5 | BD6: 5 | BE6: 5
A7: Sun | B7: 2020-10-04 | C7: Dundalk | D7: 0 | E7: 0 | F7: Finn Harps | G7: 17:00:00 | I7: 0 | J7: 0 | K7: 0 | L7: - | M7: 0 | N7: 0 | O7: 0 | P7: 0 | Q7: 0 | R7: 0 | S7: - | T7: 0 | U7: 0 | V7: 0 | W7: 0 | X7: 0 | Y7: 0 | Z7: - | AA7: 5 | AB7: 5 | AC7: 0 | AD7: 0 | AE7: 0 | AF7: 0 | AG7: 0 | AH7: 0 | AI7: 0 | AJ7: - | AK7: - | AL7: 0 | AM7: 0 | AN7: 0 | AO7: 0 | AP7: 0 | AQ7: 0 | AR7: 0 | AS7: - | AT7: 0 | AU7: 0 | AV7: - | AW7: 0 | AX7: 0 | AY7: - | AZ7: - | BA7: 0 | BB7: 0 | BC7: 0 | BD7: 0 | BE7: 0
A8: Fri | B8: 2020-10-09 | C8: Bohemians | F8: Cork City | G8: 17:45:00
A9: Fri | B9: 2020-10-09 | C9: St Patrick's Athletic | F9: Dundalk | G9: 19:45:00
A10: Sat | B10: 2020-10-10 | C10: Waterford | F10: Shelbourne | G10: 17:00:00
A11: Tue | B11: 2020-10-13 | C11: Cork City | F11: Dundalk | G11: 19:45:00
A12: Fri | B12: 2020-10-16 | C12: Dundalk | F12: Bohemians | G12: 17:45:00
A13: Fri | B13: 2020-10-16 | C13: Shamrock Rovers | F13: Derry City | G13: 19:45:00
A14: Sat | B14: 2020-10-17 | C14: Cork City | F14: Waterford | G14: 17:00:00
A15: Sat | B15: 2020-10-17 | C15: Finn Harps | F15: St Patrick's Athletic | G15: 20:00:00
A16: Sun | B16: 2020-10-18 | C16: Shelbourne | F16: Sligo Rovers | G16: 17:00:00
A17: Mon | B17: 2020-10-19 | C17: Derry City | F17: Dundalk | G17: 19:45:00
A18: Fri | B18: 2020-10-23 | C18: Bohemians | F18: Finn Harps | G18: 17:45:00
A19: Fri | B19: 2020-10-23 | C19: Shamrock Rovers | F19: St Patrick's Athletic | G19: 19:45:00
A20: Sat | B20: 2020-10-24 | C20: Sligo Rovers | F20: Cork City | G20: 17:00:00
A21: Sat | B21: 2020-10-24 | C21: Waterford | F21: Dundalk | G21: 19:30:00
A22: Sun | B22: 2020-10-25 | C22: Derry City | F22: Shelbourne | G22: 17:00:00
A23: Fri | B23: 2020-10-30 | C23: Cork City | F23: Derry City | G23: 19:45:00
A24: Fri | B24: 2020-10-30 | C24: Dundalk | F24: Sligo Rovers | G24: 19:45:00
A25: Fri | B25: 2020-10-30 | C25: Finn Harps | F25: Waterford | G25: 19:45:00
A26: Fri | B26: 2020-10-30 | C26: Shelbourne | F26: Shamrock Rovers | G26: 19:45:00
A27: Fri | B27: 2020-10-30 | C27: St Patrick's Athletic | F27: Bohemians | G27: 19:45:00
A29: Goalscorers
A30: Aaron Greene - Shamrock Rovers | D30: =COUNT(H30:DK30) -> 26 | E30: =0 -> 0 | J30: =2*$E30 -> 0 | K30: =2*$E30 -> 0 | P30: =2*$E30 -> 0 | Q30: =2*$E30 -> 0 | T30: =2*$E30 -> 0 | W30: =2*$E30 -> 0 | Z30: =2*$E30 -> 0 | AA30: =2*$E30 -> 0 | AC30: =2*$E30 -> 0 | AE30: =2*$E30 -> 0 | AF30: =2*$E30 -> 0 | AG30: =2*$E30 -> 0 | AI30: =2*$E30 -> 0 | AK30: =2*$E30 -> 0 | AL30: =2*$E30 -> 0 | AN30: =2*$E30 -> 0 | AP30: =2*$E30 -> 0 | AR30: =2*$E30 -> 0 | AT30: =2*$E30 -> 0 | AU30: =2*$E30 -> 0 | AW30: =2*$E30 -> 0 | AZ30: =2*$E30 -> 0 | BB30: =2*$E30 -> 0 | BC30: =2*$E30 -> 0 | BD30: =2*$E30 -> 0 | BE30: =2*$E30 -> 0
A31: Aaron McEneff - Shamrock Rovers | D31: 8 | E31: =0 -> 0 | M31: =2*$E31 -> 0 | N31: =2*$E31 -> 0 | R31: =2*$E31 -> 0 | Z31: =2*$E31 -> 0 | AB31: =2*$E31 -> 0 | AH31: =2*$E31 -> 0 | AR31: =2*$E31 -> 0 | AX31: =2*$E31 -> 0
A32: Daniel Kelly - Dundalk | D32: 7 | E32: =0 -> 0 | J32: =2*$E32 -> 0 | L32: =2*$E32 -> 0 | M32: =2*$E32 -> 0 | S32: =2*$E32 -> 0 | AF32: =2*$E32 -> 0 | AT32: =2*$E32 -> 0 | AZ32: =2*$E32 -> 0
A33: Dinny Corcoran - Bohemians | D33: 23 | E33: =0 -> 0 | P33: =2*$E33 -> 0 | R33: =2*$E33 -> 0 | S33: =2*$E33 -> 0 | U33: =2*$E33 -> 0 | V33: =2*$E33 -> 0 | X33: =2*$E33 -> 0 | AA33: =2*$E33 -> 0 | AB33: =2*$E33 -> 0 | AC33: =2*$E33 -> 0 | AD33: =2*$E33 -> 0 | AE33: =2*$E33 -> 0 | AH33: =2*$E33 -> 0 | AJ33: =2*$E33 -> 0 | AK33: =2*$E33 -> 0 | AN33: =2*$E33 -> 0 | AP33: =2*$E33 -> 0 | AQ33: =2*$E33 -> 0 | AV33: =2*$E33 -> 0 | AX33: =2*$E33 -> 0 | AY33: =2*$E33 -> 0 | AZ33: =2*$E33 -> 0 | BA33: =2*$E33 -> 0 | BC33: =2*$E33 -> 0
A34: Graham Cummins - Cork City | D34: 2 | E34: =0 -> 0 | I34: =2*$E34 -> 0 | L34: =2*$E34 -> 0
A35: Jack Byrne - Shamrock Rovers | D35: 11 | E35: =1 -> 1 | I35: =2*$E35 -> 2 | M35: =2*$E35 -> 2 | N35: =2*$E35 -> 2 | O35: =2*$E35 -> 2 | T35: =2*$E35 -> 2 | W35: =2*$E35 -> 2 | AM35: =2*$E35 -> 2 | AO35: =2*$E35 -> 2 | AS35: =2*$E35 -> 2 | BA35: =2*$E35 -> 2 | BE35: =2*$E35 -> 2
A36: Jaze Kabia - Shelbourne | D36: 3 | E36: =0 -> 0 | W36: =2*$E36 -> 0 | Y36: =2*$E36 -> 0 | AO36: =2*$E36 -> 0
A37: Michael Duffy - Dundalk | D37: 21 | E37: =0 -> 0 | K37: =2*$E37 -> 0 | L37: =2*$E37 -> 0 | O37: =2*$E37 -> 0 | P37: =2*$E37 -> 0 | Q37: =2*$E37 -> 0 | U37: =2*$E37 -> 0 | X37: =2*$E37 -> 0 | Y37: =2*$E37 -> 0 | AD37: =2*$E37 -> 0 | AG37: =2*$E37 -> 0 | AI37: =2*$E37 -> 0 | AJ37: =2*$E37 -> 0 | AL37: 0 | AM37: 0 | AU37: =2*$E37 -> 0 | AV37: 0 | AW37: 0 | AY37: =2*$E37 -> 0 | BB37: =2*$E37 -> 0 | BC37: =2*$E37 -> 0 | BD37: =2*$E37 -> 0
A38: Patrick Hoban - Dundalk | D38: 41 | E38: =0 -> 0 | I38: =2*$E38 -> 0 | J38: =2*$E38 -> 0 | K38: =2*$E38 -> 0 | N38: =2*$E38 -> 0 | O38: =2*$E38 -> 0 | Q38: =2*$E38 -> 0 | R38: =2*$E38 -> 0 | S38: =2*$E38 -> 0 | T38: =2*$E38 -> 0 | U38: =2*$E38 -> 0 | V38: =2*$E38 -> 0 | X38: =2*$E38 -> 0 | Y38: =2*$E38 -> 0 | Z38: =2*$E38 -> 0 | AA38: =2*$E38 -> 0 | AB38: =2*$E38 -> 0 | AC38: =2*$E38 -> 0 | AD38: =2*$E38 -> 0 | AE38: =2*$E38 -> 0 | AF38: =2*$E38 -> 0 | AG38: =2*$E38 -> 0 | AH38: =2*$E38 -> 0 | AI38: 0 | AJ38: =2*$E38 -> 0 | AK38: =2*$E38 -> 0 | AL38: 0 | AM38: 0 | AN38: 0 | AO38: 0 | AP38: 0 | AQ38: 0 | AR38: 0 | AS38: 0 | AT38: =2*$E38 -> 0 | AU38: 0 | AV38: 0 | AW38: 0 | BA38: =2*$E38 -> 0 | BB38: =2*$E38 -> 0 | BD38: =2*$E38 -> 0 | BE38: =2*$E38 -> 0
A39: Walter Figueira - Derry City | D39: 5 | E39: =0 -> 0 | V39: =2*$E39 -> 0 | AQ39: =2*$E39 -> 0 | AS39: =2*$E39 -> 0 | AX39: =2*$E39 -> 0 | AY39: =2*$E39 -> 0
A41: Golden Gloves
A42: Alan Mannus - Shamrock Rovers | D42: =COUNT(H42:DK42) -> 14 | E42: =1 -> 1 | J42: =2*$E42 -> 2 | Q42: =2*$E42 -> 2 | R42: =2*$E42 -> 2 | T42: =2*$E42 -> 2 | V42: =2*$E42 -> 2 | Y42: =2*$E42 -> 2 | AA42: =2*$E42 -> 2 | AL42: =2*$E42 -> 2 | AN42: =2*$E42 -> 2 | AP42: =2*$E42 -> 2 | AR42: =2*$E42 -> 2 | AT42: =2*$E42 -> 2 | AU42: =2*$E42 -> 2 | BC42: =2*$E42 -> 2
A43: Conor Kearns - St Patrick's Athletic | D43: =COUNT(H43:DK43) -> 1 | E43: =0 -> 0 | I43: =2*$E43 -> 0
A44: Gary Rogers - Dundalk | D44: =COUNT(H44:DK44) -> 24 | E44: =0 -> 0 | K44: =2*$E44 -> 0 | L44: 0 | M44: 0 | N44: 0 | O44: 0 | P44: 0 | U44: =2*$E44 -> 0 | X44: =2*$E44 -> 0 | Z44: =2*$E44 -> 0 | AD44: =2*$E44 -> 0 | AE44: 0 | AF44: 0 | AG44: 0 | AH44: 0 | AI44: 0 | AM44: =2*$E44 -> 0 | AO44: =2*$E44 -> 0 | AQ44: =2*$E44 -> 0 | AV44: =2*$E44 -> 0 | AW44: =2*$E44 -> 0 | AY44: =2*$E44 -> 0 | BB44: =2*$E44 -> 0 | BD44: =2*$E44 -> 0 | BE44: =2*$E44 -> 0
A45: James Talbot - Bohemians | D45: =COUNT(H45:DK45) -> 9 | E45: =0 -> 0 | S45: =2*$E45 -> 0 | W45: =2*$E45 -> 0 | AB45: =2*$E45 -> 0 | AC45: =2*$E45 -> 0 | AJ45: 0 | AK45: =2*$E45 -> 0 | AS45: =2*$E45 -> 0 | AZ45: =2*$E45 -> 0 | BA45: =2*$E45 -> 0
A46: Peter Cherrie - Derry City | D46: =COUNT(H46:DK46) -> 1 | E46: =1 -> 1 | AX46: =2*$E46 -> 2
A48: Grand Total - October | I48: =SUM(I$3:I47) -> 12 | J48: =SUM(J$3:J47) -> 7 | K48: =SUM(K$3:K47) -> 15 | L48: =SUM(L$3:L47) -> 0 | M48: =SUM(M$3:M47) -> 12 | N48: =SUM(N$3:N47) -> 32 | O48: =SUM(O$3:O47) -> 12 | P48: =SUM(P$3:P47) -> 5 | Q48: =SUM(Q$3:Q47) -> 12 | R48: =SUM(R$3:R47) -> 17 | S48: =SUM(S$3:S47) -> 0 | T48: =SUM(T$3:T47) -> 19 | U48: =SUM(U$3:U47) -> 15 | V48: =SUM(V$3:V47) -> 12 | W48: =SUM(W$3:W47) -> 27 | X48: =SUM(X$3:X47) -> 20 | Y48: =SUM(Y$3:Y47) -> 17 | Z48: =SUM(Z$3:Z47) -> 0 | AA48: =SUM(AA$3:AA47) -> 17 | AB48: =SUM(AB$3:AB47) -> 15 | AC48: =SUM(AC$3:AC47) -> 15 | AD48: =SUM(AD$3:AD47) -> 10 | AE48: =SUM(AE$3:AE47) -> 25 | AF48: =SUM(AF$3:AF47) -> 15 | AG48: =SUM(AG$3:AG47) -> 10 | AH48: =SUM(AH$3:AH47) -> 10 | AI48: =SUM(AI$3:AI47) -> 15 | AJ48: =SUM(AJ$3:AJ47) -> 0 | AK48: =SUM(AK$3:AK47) -> 0 | AL48: =SUM(AL$3:AL47) -> 12 | AM48: =SUM(AM$3:AM47) -> 22 | AN48: =SUM(AN$3:AN47) -> 12 | AO48: =SUM(AO$3:AO47) -> 22 | AP48: =SUM(AP$3:AP47) -> 17 | AQ48: =SUM(AQ$3:AQ47) -> 5 | AR48: =SUM(AR$3:AR47) -> 22 | AS48: =SUM(AS$3:AS47) -> 2 | AT48: =SUM(AT$3:AT47) -> 12 | AU48: =SUM(AU$3:AU47) -> 17 | AV48: =SUM(AV$3:AV47) -> 0 | AW48: =SUM(AW$3:AW47) -> 25 | AX48: =SUM(AX$3:AX47) -> 12 | AY48: =SUM(AY$3:AY47) -> 0 | AZ48: =SUM(AZ$3:AZ47) -> 0 | BA48: =SUM(BA$3:BA47) -> 32 | BB48: =SUM(BB$3:BB47) -> 10 | BC48: =SUM(BC$3:BC47) -> 12 | BD48: =SUM(BD$3:BD47) -> 15 | BE48: =SUM(BE$3:BE47) -> 12
A50: Ten Pointers | I50: =COUNTIF(I2:I27,10) -> 0 | J50: =COUNTIF(J2:J27,10) -> 0 | K50: 0 | L50: 0 | M50: 0 | N50: 2 | O50: 0 | P50: 0 | Q50: 0 | R50: 0 | S50: 0 | T50: 0 | U50: 0 | V50: 0 | W50: 2 | X50: 0 | Y50: 0 | Z50: 0 | AA50: 0 | AB50: 0 | AC50: 0 | AD50: 0 | AE50: 1 | AF50: 0 | AG50: 0 | AH50: 0 | AI50: 0 | AJ50: 0 | AK50: 0 | AL50: 0 | AM50: 1 | AN50: 0 | AO50: 1 | AP50: 0 | AQ50: 0 | AR50: 1 | AS50: 0 | AT50: 0 | AU50: 0 | AV50: 0 | AW50: 2 | AX50: 0 | AY50: 0 | AZ50: 0 | BA50: 2 | BB50: 0 | BC50: 0 | BD50: 0 | BE50: 0

Sheet Ten Point Table
A2: No. | B2: Name | C2: Team Name | D2: 2020-02-01 | E2: 2020-03-01 | F2: 2020-08-01 | G2: 2020-09-01 | H2: 2020-10-01 | I2: Total
A3: 1 | B3: Joseph Kavanagh | C3: Joey's Invincibles | D3: =HLOOKUP(B3,February!$I$1:$BE$54,54,FALSE) -> 4 | E3: =HLOOKUP(B3,March!$I$1:$BE$42,42,FALSE) -> 0 | F3: =HLOOKUP(B3,'July & August'!$I$1:$BE$60,60,FALSE) -> 6 | G3: =HLOOKUP(B3,September!$I$1:$BE$44,44,FALSE) -> 2 | H3: =HLOOKUP(B3,October!$I$1:$BE$50,50,FALSE) -> 0 | I3: =SUM(D3:H3) -> 12
A4: 2 | B4: Caroline Carroll | C4: Tarzan's 11 | D4: =HLOOKUP(B4,February!$I$1:$BE$54,54,FALSE) -> 6 | E4: =HLOOKUP(B4,March!$I$1:$BE$42,42,FALSE) -> 0 | F4: =HLOOKUP(B4,'July & August'!$I$1:$BE$60,60,FALSE) -> 1 | G4: =HLOOKUP(B4,September!$I$1:$BE$44,44,FALSE) -> 1 | H4: =HLOOKUP(B4,October!$I$1:$BE$50,50,FALSE) -> 2 | I4: =SUM(D4:H4) -> 10
A5: 3 | B5: Eamon Fox | C5: Culchies United | D5: =HLOOKUP(B5,February!$I$1:$BE$54,54,FALSE) -> 4 | E5: =HLOOKUP(B5,March!$I$1:$BE$42,42,FALSE) -> 0 | F5: =HLOOKUP(B5,'July & August'!$I$1:$BE$60,60,FALSE) -> 3 | G5: =HLOOKUP(B5,September!$I$1:$BE$44,44,FALSE) -> 3 | H5: =HLOOKUP(B5,October!$I$1:$BE$50,50,FALSE) -> 0 | I5: =SUM(D5:H5) -> 10
A6: 4 | B6: Gary Fitzpatrick | C6: Cabo Ultra's | D6: =HLOOKUP(B6,February!$I$1:$BE$54,54,FALSE) -> 4 | E6: =HLOOKUP(B6,March!$I$1:$BE$42,42,FALSE) -> 0 | F6: =HLOOKUP(B6,'July & August'!$I$1:$BE$60,60,FALSE) -> 3 | G6: =HLOOKUP(B6,September!$I$1:$BE$44,44,FALSE) -> 3 | H6: =HLOOKUP(B6,October!$I$1:$BE$50,50,FALSE) -> 0 | I6: =SUM(D6:H6) -> 10
A7: 5 | B7: Graeme Buckley | C7: Canyoneroes | D7: =HLOOKUP(B7,February!$I$1:$BE$54,54,FALSE) -> 0 | E7: =HLOOKUP(B7,March!$I$1:$BE$42,42,FALSE) -> 1 | F7: =HLOOKUP(B7,'July & August'!$I$1:$BE$60,60,FALSE) -> 7 | G7: =HLOOKUP(B7,September!$I$1:$BE$44,44,FALSE) -> 2 | H7: =HLOOKUP(B7,October!$I$1:$BE$50,50,FALSE) -> 0 | I7: =SUM(D7:H7) -> 10
A8: 6 | B8: Joe Turner | C8: The Dairymen of Stradbrook | D8: =HLOOKUP(B8,February!$I$1:$BE$54,54,FALSE) -> 4 | E8: =HLOOKUP(B8,March!$I$1:$BE$42,42,FALSE) -> 0 | F8: =HLOOKUP(B8,'July & August'!$I$1:$BE$60,60,FALSE) -> 3 | G8: =HLOOKUP(B8,September!$I$1:$BE$44,44,FALSE) -> 3 | H8: =HLOOKUP(B8,October!$I$1:$BE$50,50,FALSE) -> 0 | I8: =SUM(D8:H8) -> 10
A9: 7 | B9: Tom Keane | C9: Hoopshoops | D9: =HLOOKUP(B9,February!$I$1:$BE$54,54,FALSE) -> 3 | E9: =HLOOKUP(B9,March!$I$1:$BE$42,42,FALSE) -> 0 | F9: =HLOOKUP(B9,'July & August'!$I$1:$BE$60,60,FALSE) -> 4 | G9: =HLOOKUP(B9,September!$I$1:$BE$44,44,FALSE) -> 3 | H9: =HLOOKUP(B9,October!$I$1:$BE$50,50,FALSE) -> 0 | I9: =SUM(D9:H9) -> 10
A10: 8 | B10: Alan Doyle | C10: Shamrock Ravers | D10: =HLOOKUP(B10,February!$I$1:$BE$54,54,FALSE) -> 3 | E10: =HLOOKUP(B10,March!$I$1:$BE$42,42,FALSE) -> 0 | F10: =HLOOKUP(B10,'July & August'!$I$1:$BE$60,60,FALSE) -> 3 | G10: =HLOOKUP(B10,September!$I$1:$BE$44,44,FALSE) -> 3 | H10: =HLOOKUP(B10,October!$I$1:$BE$50,50,FALSE) -> 0 | I10: =SUM(D10:H10) -> 9
A11: 9 | B11: Andy Dunne | C11: Ballymore Shamrocks | D11: =HLOOKUP(B11,February!$I$1:$BE$54,54,FALSE) -> 1 | E11: =HLOOKUP(B11,March!$I$1:$BE$42,42,FALSE) -> 1 | F11: =HLOOKUP(B11,'July & August'!$I$1:$BE$60,60,FALSE) -> 2 | G11: =HLOOKUP(B11,September!$I$1:$BE$44,44,FALSE) -> 5 | H11: =HLOOKUP(B11,October!$I$1:$BE$50,50,FALSE) -> 0 | I11: =SUM(D11:H11) -> 9
A12: 10 | B12: Keith Ryan | C12: Wearethewanderers | D12: =HLOOKUP(B12,February!$I$1:$BE$54,54,FALSE) -> 3 | E12: =HLOOKUP(B12,March!$I$1:$BE$42,42,FALSE) -> 0 | F12: =HLOOKUP(B12,'July & August'!$I$1:$BE$60,60,FALSE) -> 4 | G12: =HLOOKUP(B12,September!$I$1:$BE$44,44,FALSE) -> 1 | H12: =HLOOKUP(B12,October!$I$1:$BE$50,50,FALSE) -> 1 | I12: =SUM(D12:H12) -> 9
A13: 11 | B13: Paul Moore | C13: Niall Quinn's Disco Pants | D13: =HLOOKUP(B13,February!$I$1:$BE$54,54,FALSE) -> 3 | E13: =HLOOKUP(B13,March!$I$1:$BE$42,42,FALSE) -> 0 | F13: =HLOOKUP(B13,'July & August'!$I$1:$BE$60,60,FALSE) -> 2 | G13: =HLOOKUP(B13,September!$I$1:$BE$44,44,FALSE) -> 2 | H13: =HLOOKUP(B13,October!$I$1:$BE$50,50,FALSE) -> 2 | I13: =SUM(D13:H13) -> 9
A14: 12 | B14: Darragh Kenny | C14: Luca Connell CSC | D14: =HLOOKUP(B14,February!$I$1:$BE$54,54,FALSE) -> 2 | E14: =HLOOKUP(B14,March!$I$1:$BE$42,42,FALSE) -> 0 | F14: =HLOOKUP(B14,'July & August'!$I$1:$BE$60,60,FALSE) -> 5 | G14: =HLOOKUP(B14,September!$I$1:$BE$44,44,FALSE) -> 1 | H14: =HLOOKUP(B14,October!$I$1:$BE$50,50,FALSE) -> 0 | I14: =SUM(D14:H14) -> 8
A15: 13 | B15: Derek McDonald | C15: Super Shels | D15: =HLOOKUP(B15,February!$I$1:$BE$54,54,FALSE) -> 2 | E15: =HLOOKUP(B15,March!$I$1:$BE$42,42,FALSE) -> 0 | F15: =HLOOKUP(B15,'July & August'!$I$1:$BE$60,60,FALSE) -> 3 | G15: =HLOOKUP(B15,September!$I$1:$BE$44,44,FALSE) -> 1 | H15: =HLOOKUP(B15,October!$I$1:$BE$50,50,FALSE) -> 2 | I15: =SUM(D15:H15) -> 8
A16: 14 | B16: Gary Donnelly | C16: Cabinteely II | D16: =HLOOKUP(B16,February!$I$1:$BE$54,54,FALSE) -> 1 | E16: =HLOOKUP(B16,March!$I$1:$BE$42,42,FALSE) -> 0 | F16: =HLOOKUP(B16,'July & August'!$I$1:$BE$60,60,FALSE) -> 4 | G16: =HLOOKUP(B16,September!$I$1:$BE$44,44,FALSE) -> 3 | H16: =HLOOKUP(B16,October!$I$1:$BE$50,50,FALSE) -> 0 | I16: =SUM(D16:H16) -> 8
A17: 15 | B17: Gary McGurk | C17: Chelfest 2013 | D17: =HLOOKUP(B17,February!$I$1:$BE$54,54,FALSE) -> 3 | E17: =HLOOKUP(B17,March!$I$1:$BE$42,42,FALSE) -> 1 | F17: =HLOOKUP(B17,'July & August'!$I$1:$BE$60,60,FALSE) -> 2 | G17: =HLOOKUP(B17,September!$I$1:$BE$44,44,FALSE) -> 1 | H17: =HLOOKUP(B17,October!$I$1:$BE$50,50,FALSE) -> 1 | I17: =SUM(D17:H17) -> 8
A18: 16 | B18: Mark Welsh | C18: 3rdina2horserace | D18: =HLOOKUP(B18,February!$I$1:$BE$54,54,FALSE) -> 2 | E18: =HLOOKUP(B18,March!$I$1:$BE$42,42,FALSE) -> 1 | F18: =HLOOKUP(B18,'July & August'!$I$1:$BE$60,60,FALSE) -> 4 | G18: =HLOOKUP(B18,September!$I$1:$BE$44,44,FALSE) -> 1 | H18: =HLOOKUP(B18,October!$I$1:$BE$50,50,FALSE) -> 0 | I18: =SUM(D18:H18) -> 8
A19: 17 | B19: Niall Carroll | C19: The Yellow Bellies | D19: =HLOOKUP(B19,February!$I$1:$BE$54,54,FALSE) -> 4 | E19: =HLOOKUP(B19,March!$I$1:$BE$42,42,FALSE) -> 0 | F19: =HLOOKUP(B19,'July & August'!$I$1:$BE$60,60,FALSE) -> 0 | G19: =HLOOKUP(B19,September!$I$1:$BE$44,44,FALSE) -> 4 | H19: =HLOOKUP(B19,October!$I$1:$BE$50,50,FALSE) -> 0 | I19: =SUM(D19:H19) -> 8
A20: 18 | B20: Ciaran O'Hart | C20: Riverchapel Plate | D20: =HLOOKUP(B20,February!$I$1:$BE$54,54,FALSE) -> 3 | E20: =HLOOKUP(B20,March!$I$1:$BE$42,42,FALSE) -> 0 | F20: =HLOOKUP(B20,'July & August'!$I$1:$BE$60,60,FALSE) -> 2 | G20: =HLOOKUP(B20,September!$I$1:$BE$44,44,FALSE) -> 2 | H20: =HLOOKUP(B20,October!$I$1:$BE$50,50,FALSE) -> 0 | I20: =SUM(D20:H20) -> 7
A21: 19 | B21: David Moran | C21: Wrightsaidfred | D21: =HLOOKUP(B21,February!$I$1:$BE$54,54,FALSE) -> 1 | E21: =HLOOKUP(B21,March!$I$1:$BE$42,42,FALSE) -> 1 | F21: =HLOOKUP(B21,'July & August'!$I$1:$BE$60,60,FALSE) -> 3 | G21: =HLOOKUP(B21,September!$I$1:$BE$44,44,FALSE) -> 2 | H21: =HLOOKUP(B21,October!$I$1:$BE$50,50,FALSE) -> 0 | I21: =SUM(D21:H21) -> 7
A22: 20 | B22: Gerry Moore | C22: Rovers Are Red | D22: =HLOOKUP(B22,February!$I$1:$BE$54,54,FALSE) -> 2 | E22: =HLOOKUP(B22,March!$I$1:$BE$42,42,FALSE) -> 1 | F22: =HLOOKUP(B22,'July & August'!$I$1:$BE$60,60,FALSE) -> 3 | G22: =HLOOKUP(B22,September!$I$1:$BE$44,44,FALSE) -> 1 | H22: =HLOOKUP(B22,October!$I$1:$BE$50,50,FALSE) -> 0 | I22: =SUM(D22:H22) -> 7
A23: 21 | B23: Sean Taylor | C23: O'Connor's Touting XI | D23: =HLOOKUP(B23,February!$I$1:$BE$54,54,FALSE) -> 0 | E23: =HLOOKUP(B23,March!$I$1:$BE$42,42,FALSE) -> 0 | F23: =HLOOKUP(B23,'July & August'!$I$1:$BE$60,60,FALSE) -> 3 | G23: =HLOOKUP(B23,September!$I$1:$BE$44,44,FALSE) -> 4 | H23: =HLOOKUP(B23,October!$I$1:$BE$50,50,FALSE) -> 0 | I23: =SUM(D23:H23) -> 7
A24: 22 | B24: Callum Dunne | C24: Derry Girls | D24: =HLOOKUP(B24,February!$I$1:$BE$54,54,FALSE) -> 2 | E24: =HLOOKUP(B24,March!$I$1:$BE$42,42,FALSE) -> 0 | F24: =HLOOKUP(B24,'July & August'!$I$1:$BE$60,60,FALSE) -> 3 | G24: =HLOOKUP(B24,September!$I$1:$BE$44,44,FALSE) -> 1 | H24: =HLOOKUP(B24,October!$I$1:$BE$50,50,FALSE) -> 0 | I24: =SUM(D24:H24) -> 6
A25: 23 | B25: Davy Doyle | C25: Whitechurch FC | D25: =HLOOKUP(B25,February!$I$1:$BE$54,54,FALSE) -> 1 | E25: =HLOOKUP(B25,March!$I$1:$BE$42,42,FALSE) -> 1 | F25: =HLOOKUP(B25,'July & August'!$I$1:$BE$60,60,FALSE) -> 3 | G25: =HLOOKUP(B25,September!$I$1:$BE$44,44,FALSE) -> 1 | H25: =HLOOKUP(B25,October!$I$1:$BE$50,50,FALSE) -> 0 | I25: =SUM(D25:H25) -> 6
A26: 24 | B26: Eoghan Farrelly | C26: Definitely Last Chance Saloon | D26: =HLOOKUP(B26,February!$I$1:$BE$54,54,FALSE) -> 1 | E26: =HLOOKUP(B26,March!$I$1:$BE$42,42,FALSE) -> 1 | F26: =HLOOKUP(B26,'July & August'!$I$1:$BE$60,60,FALSE) -> 3 | G26: =HLOOKUP(B26,September!$I$1:$BE$44,44,FALSE) -> 1 | H26: =HLOOKUP(B26,October!$I$1:$BE$50,50,FALSE) -> 0 | I26: =SUM(D26:H26) -> 6
A27: 25 | B27: Jay Thomas | C27: Tallaght Toppers | D27: =HLOOKUP(B27,February!$I$1:$BE$54,54,FALSE) -> 2 | E27: =HLOOKUP(B27,March!$I$1:$BE$42,42,FALSE) -> 0 | F27: =HLOOKUP(B27,'July & August'!$I$1:$BE$60,60,FALSE) -> 2 | G27: =HLOOKUP(B27,September!$I$1:$BE$44,44,FALSE) -> 2 | H27: =HLOOKUP(B27,October!$I$1:$BE$50,50,FALSE) -> 0 | I27: =SUM(D27:H27) -> 6
A28: 26 | B28: John Brophy | C28: We're Not Shels | D28: =HLOOKUP(B28,February!$I$1:$BE$54,54,FALSE) -> 2 | E28: =HLOOKUP(B28,March!$I$1:$BE$42,42,FALSE) -> 0 | F28: =HLOOKUP(B28,'July & August'!$I$1:$BE$60,60,FALSE) -> 0 | G28: =HLOOKUP(B28,September!$I$1:$BE$44,44,FALSE) -> 3 | H28: =HLOOKUP(B28,October!$I$1:$BE$50,50,FALSE) -> 1 | I28: =SUM(D28:H28) -> 6
A29: 27 | B29: Sean O'Mairtin | C29: EMFA Returns | D29: =HLOOKUP(B29,February!$I$1:$BE$54,54,FALSE) -> 2 | E29: =HLOOKUP(B29,March!$I$1:$BE$42,42,FALSE) -> 1 | F29: =HLOOKUP(B29,'July & August'!$I$1:$BE$60,60,FALSE) -> 1 | G29: =HLOOKUP(B29,September!$I$1:$BE$44,44,FALSE) -> 0 | H29: =HLOOKUP(B29,October!$I$1:$BE$50,50,FALSE) -> 2 | I29: =SUM(D29:H29) -> 6
A30: 28 | B30: Trevor Rankin | C30: Trev's Tossers | D30: =HLOOKUP(B30,February!$I$1:$BE$54,54,FALSE) -> 2 | E30: =HLOOKUP(B30,March!$I$1:$BE$42,42,FALSE) -> 0 | F30: =HLOOKUP(B30,'July & August'!$I$1:$BE$60,60,FALSE) -> 2 | G30: =HLOOKUP(B30,September!$I$1:$BE$44,44,FALSE) -> 2 | H30: =HLOOKUP(B30,October!$I$1:$BE$50,50,FALSE) -> 0 | I30: =SUM(D30:H30) -> 6
A31: 29 | B31: Derek Kelly | C31: SRFC1725 | D31: =HLOOKUP(B31,February!$I$1:$BE$54,54,FALSE) -> 3 | E31: =HLOOKUP(B31,March!$I$1:$BE$42,42,FALSE) -> 0 | F31: =HLOOKUP(B31,'July & August'!$I$1:$BE$60,60,FALSE) -> 2 | G31: =HLOOKUP(B31,September!$I$1:$BE$44,44,FALSE) -> 0 | H31: =HLOOKUP(B31,October!$I$1:$BE$50,50,FALSE) -> 0 | I31: =SUM(D31:H31) -> 5
A32: 30 | B32: Eoghan Brophy | C32: Tolka Dreamers | D32: =HLOOKUP(B32,February!$I$1:$BE$54,54,FALSE) -> 3 | E32: =HLOOKUP(B32,March!$I$1:$BE$42,42,FALSE) -> 0 | F32: =HLOOKUP(B32,'July & August'!$I$1:$BE$60,60,FALSE) -> 1 | G32: =HLOOKUP(B32,September!$I$1:$BE$44,44,FALSE) -> 1 | H32: =HLOOKUP(B32,October!$I$1:$BE$50,50,FALSE) -> 0 | I32: =SUM(D32:H32) -> 5
A33: 31 | B33: Gearoid McIntyre | C33: Nobber Boys | D33: =HLOOKUP(B33,February!$I$1:$BE$54,54,FALSE) -> 2 | E33: =HLOOKUP(B33,March!$I$1:$BE$42,42,FALSE) -> 1 | F33: =HLOOKUP(B33,'July & August'!$I$1:$BE$60,60,FALSE) -> 2 | G33: =HLOOKUP(B33,September!$I$1:$BE$44,44,FALSE) -> 0 | H33: =HLOOKUP(B33,October!$I$1:$BE$50,50,FALSE) -> 0 | I33: =SUM(D33:H33) -> 5
A34: 32 | B34: Ian O'Reilly | C34: Limerick City United Treaty 37 FC | D34: =HLOOKUP(B34,February!$I$1:$BE$54,54,FALSE) -> 3 | E34: =HLOOKUP(B34,March!$I$1:$BE$42,42,FALSE) -> 1 | F34: =HLOOKUP(B34,'July & August'!$I$1:$BE$60,60,FALSE) -> 1 | G34: =HLOOKUP(B34,September!$I$1:$BE$44,44,FALSE) -> 0 | H34: =HLOOKUP(B34,October!$I$1:$BE$50,50,FALSE) -> 0 | I34: =SUM(D34:H34) -> 5
A35: 33 | B35: Kieran Harnett | C35: Limerick United | D35: =HLOOKUP(B35,February!$I$1:$BE$54,54,FALSE) -> 3 | E35: =HLOOKUP(B35,March!$I$1:$BE$42,42,FALSE) -> 0 | F35: =HLOOKUP(B35,'July & August'!$I$1:$BE$60,60,FALSE) -> 2 | G35: =HLOOKUP(B35,September!$I$1:$BE$44,44,FALSE) -> 0 | H35: =HLOOKUP(B35,October!$I$1:$BE$50,50,FALSE) -> 0 | I35: =SUM(D35:H35) -> 5
A36: 34 | B36: Richard Johnston | C36: Mayo For Sam | D36: =HLOOKUP(B36,February!$I$1:$BE$54,54,FALSE) -> 3 | E36: =HLOOKUP(B36,March!$I$1:$BE$42,42,FALSE) -> 1 | F36: =HLOOKUP(B36,'July & August'!$I$1:$BE$60,60,FALSE) -> 1 | G36: =HLOOKUP(B36,September!$I$1:$BE$44,44,FALSE) -> 0 | H36: =HLOOKUP(B36,October!$I$1:$BE$50,50,FALSE) -> 0 | I36: =SUM(D36:H36) -> 5
A37: 35 | B37: Tommy Hamill | C37: Omeath Allstars | D37: =HLOOKUP(B37,February!$I$1:$BE$54,54,FALSE) -> 1 | E37: =HLOOKUP(B37,March!$I$1:$BE$42,42,FALSE) -> 1 | F37: =HLOOKUP(B37,'July & August'!$I$1:$BE$60,60,FALSE) -> 2 | G37: =HLOOKUP(B37,September!$I$1:$BE$44,44,FALSE) -> 1 | H37: =HLOOKUP(B37,October!$I$1:$BE$50,50,FALSE) -> 0 | I37: =SUM(D37:H37) -> 5
A38: 36 | B38: Aidan Scanlon | C38: Kilflynn Santos | D38: =HLOOKUP(B38,February!$I$1:$BE$54,54,FALSE) -> 3 | E38: =HLOOKUP(B38,March!$I$1:$BE$42,42,FALSE) -> 0 | F38: =HLOOKUP(B38,'July & August'!$I$1:$BE$60,60,FALSE) -> 0 | G38: =HLOOKUP(B38,September!$I$1:$BE$44,44,FALSE) -> 1 | H38: =HLOOKUP(B38,October!$I$1:$BE$50,50,FALSE) -> 0 | I38: =SUM(D38:H38) -> 4
A39: 37 | B39: Chris Hinchey | C39: Lilywhites | D39: =HLOOKUP(B39,February!$I$1:$BE$54,54,FALSE) -> 2 | E39: =HLOOKUP(B39,March!$I$1:$BE$42,42,FALSE) -> 0 | F39: =HLOOKUP(B39,'July & August'!$I$1:$BE$60,60,FALSE) -> 2 | G39: =HLOOKUP(B39,September!$I$1:$BE$44,44,FALSE) -> 0 | H39: =HLOOKUP(B39,October!$I$1:$BE$50,50,FALSE) -> 0 | I39: =SUM(D39:H39) -> 4
A40: 38 | B40: David Miley | C40: Dallas Cowboys | D40: =HLOOKUP(B40,February!$I$1:$BE$54,54,FALSE) -> 1 | E40: =HLOOKUP(B40,March!$I$1:$BE$42,42,FALSE) -> 0 | F40: =HLOOKUP(B40,'July & August'!$I$1:$BE$60,60,FALSE) -> 2 | G40: =HLOOKUP(B40,September!$I$1:$BE$44,44,FALSE) -> 1 | H40: =HLOOKUP(B40,October!$I$1:$BE$50,50,FALSE) -> 0 | I40: =SUM(D40:H40) -> 4
A41: 39 | B41: Dean Fletcher | C41: Fletchy's Flyers | D41: =HLOOKUP(B41,February!$I$1:$BE$54,54,FALSE) -> 2 | E41: =HLOOKUP(B41,March!$I$1:$BE$42,42,FALSE) -> 0 | F41: =HLOOKUP(B41,'July & August'!$I$1:$BE$60,60,FALSE) -> 2 | G41: =HLOOKUP(B41,September!$I$1:$BE$44,44,FALSE) -> 0 | H41: =HLOOKUP(B41,October!$I$1:$BE$50,50,FALSE) -> 0 | I41: =SUM(D41:H41) -> 4
A42: 40 | B42: Gary Keating | C42: Brohemians | D42: =HLOOKUP(B42,February!$I$1:$BE$54,54,FALSE) -> 2 | E42: =HLOOKUP(B42,March!$I$1:$BE$42,42,FALSE) -> 0 | F42: =HLOOKUP(B42,'July & August'!$I$1:$BE$60,60,FALSE) -> 1 | G42: =HLOOKUP(B42,September!$I$1:$BE$44,44,FALSE) -> 1 | H42: =HLOOKUP(B42,October!$I$1:$BE$50,50,FALSE) -> 0 | I42: =SUM(D42:H42) -> 4
A43: 41 | B43: Joe Behan | C43: Melchester Rovers | D43: =HLOOKUP(B43,February!$I$1:$BE$54,54,FALSE) -> 1 | E43: =HLOOKUP(B43,March!$I$1:$BE$42,42,FALSE) -> 0 | F43: =HLOOKUP(B43,'July & August'!$I$1:$BE$60,60,FALSE) -> 1 | G43: =HLOOKUP(B43,September!$I$1:$BE$44,44,FALSE) -> 1 | H43: =HLOOKUP(B43,October!$I$1:$BE$50,50,FALSE) -> 1 | I43: =SUM(D43:H43) -> 4
A44: 42 | B44: Josh Tobin | C44: Team1 | D44: =HLOOKUP(B44,February!$I$1:$BE$54,54,FALSE) -> 2 | E44: =HLOOKUP(B44,March!$I$1:$BE$42,42,FALSE) -> 0 | F44: =HLOOKUP(B44,'July & August'!$I$1:$BE$60,60,FALSE) -> 2 | G44: =HLOOKUP(B44,September!$I$1:$BE$44,44,FALSE) -> 0 | H44: =HLOOKUP(B44,October!$I$1:$BE$50,50,FALSE) -> 0 | I44: =SUM(D44:H44) -> 4
A45: 43 | B45: Fiachra O'Brolachain | C45: Trailerpark Rovers | D45: =HLOOKUP(B45,February!$I$1:$BE$54,54,FALSE) -> 2 | E45: =HLOOKUP(B45,March!$I$1:$BE$42,42,FALSE) -> 0 | F45: =HLOOKUP(B45,'July & August'!$I$1:$BE$60,60,FALSE) -> 1 | G45: =HLOOKUP(B45,September!$I$1:$BE$44,44,FALSE) -> 0 | H45: =HLOOKUP(B45,October!$I$1:$BE$50,50,FALSE) -> 0 | I45: =SUM(D45:H45) -> 3
A46: 44 | B46: Gerry Draper | C46: Everton10 | D46: =HLOOKUP(B46,February!$I$1:$BE$54,54,FALSE) -> 1 | E46: =HLOOKUP(B46,March!$I$1:$BE$42,42,FALSE) -> 0 | F46: =HLOOKUP(B46,'July & August'!$I$1:$BE$60,60,FALSE) -> 1 | G46: =HLOOKUP(B46,September!$I$1:$BE$44,44,FALSE) -> 1 | H46: =HLOOKUP(B46,October!$I$1:$BE$50,50,FALSE) -> 0 | I46: =SUM(D46:H46) -> 3
A47: 45 | B47: Breifne Earley | C47: Leitrim Villa | D47: =HLOOKUP(B47,February!$I$1:$BE$54,54,FALSE) -> 1 | E47: =HLOOKUP(B47,March!$I$1:$BE$42,42,FALSE) -> 0 | F47: =HLOOKUP(B47,'July & August'!$I$1:$BE$60,60,FALSE) -> 1 | G47: =HLOOKUP(B47,September!$I$1:$BE$44,44,FALSE) -> 0 | H47: =HLOOKUP(B47,October!$I$1:$BE$50,50,FALSE) -> 0 | I47: =SUM(D47:H47) -> 2
A48: 46 | B48: Patrick Dempsey | C48: Paddser's Whackers | D48: =HLOOKUP(B48,February!$I$1:$BE$54,54,FALSE) -> 0 | E48: =HLOOKUP(B48,March!$I$1:$BE$42,42,FALSE) -> 0 | F48: =HLOOKUP(B48,'July & August'!$I$1:$BE$60,60,FALSE) -> 1 | G48: =HLOOKUP(B48,September!$I$1:$BE$44,44,FALSE) -> 0 | H48: =HLOOKUP(B48,October!$I$1:$BE$50,50,FALSE) -> 0 | I48: =SUM(D48:H48) -> 1
A49: 47 | B49: Seamus McGowan | C49: Bit O'Red | D49: =HLOOKUP(B49,February!$I$1:$BE$54,54,FALSE) -> 0 | E49: =HLOOKUP(B49,March!$I$1:$BE$42,42,FALSE) -> 1 | F49: =HLOOKUP(B49,'July & August'!$I$1:$BE$60,60,FALSE) -> 0 | G49: =HLOOKUP(B49,September!$I$1:$BE$44,44,FALSE) -> 0 | H49: =HLOOKUP(B49,October!$I$1:$BE$50,50,FALSE) -> 0 | I49: =SUM(D49:H49) -> 1
A50: 48 | B50: Sean Keller | C50: The Boys From Dalymount | D50: =HLOOKUP(B50,February!$I$1:$BE$54,54,FALSE) -> 1 | E50: =HLOOKUP(B50,March!$I$1:$BE$42,42,FALSE) -> 0 | F50: =HLOOKUP(B50,'July & August'!$I$1:$BE$60,60,FALSE) -> 0 | G50: =HLOOKUP(B50,September!$I$1:$BE$44,44,FALSE) -> 0 | H50: =HLOOKUP(B50,October!$I$1:$BE$50,50,FALSE) -> 0 | I50: =SUM(D50:H50) -> 1
A51: 49 | B51: Hugh Keller | C51: Hugh Jarse FC | D51: =HLOOKUP(B51,February!$I$1:$BE$54,54,FALSE) -> 0 | E51: =HLOOKUP(B51,March!$I$1:$BE$42,42,FALSE) -> 0 | F51: =HLOOKUP(B51,'July & August'!$I$1:$BE$60,60,FALSE) -> 0 | G51: =HLOOKUP(B51,September!$I$1:$BE$44,44,FALSE) -> 0 | H51: =HLOOKUP(B51,October!$I$1:$BE$50,50,FALSE) -> 0 | I51: =SUM(D51:H51) -> 0

Sheet Jokers
A1: No. | B1: Player | C1: Team Name | D1: Joker | E1: 1 | F1: 2 | G1: 3 | H1: 4 | I1: 5 | J1: 6 | K1: 7 | L1: 8 | M1: 9 | N1: 10 | O1: 11 | P1: 12 | Q1: 13 | R1: 14 | S1: 15 | T1: Total
A2: 1 | B2: Aidan Scanlon | C2: Kilflynn Santos | D2: 2-0 | E2: a | T2: =COUNTIF(E2:S2,"a") -> 1
A3: 2 | B3: Alan Doyle | C3: Shamrock Ravers | T3: 0
A4: 3 | B4: Andy Dunne | C4: Ballymore Shamrocks | D4: 2-1 | E4: a | F4: a | G4: a | T4: 3
A5: 4 | B5: Breifne Earley | C5: Leitrim Villa | D5: 2-0 | E5: a | F5: a | G5: a | H5: a | I5: a | J5: a | K5: a | L5: a | M5: a | N5: a | O5: a | P5: a | Q5: a | R5: a | S5: a | T5: 15
A6: 5 | B6: Callum Dunne | C6: Derry Girls | D6: 2-1 | E6: a | F6: a | G6: a | H6: a | I6: a | J6: a | K6: a | L6: a | M6: a | N6: a | O6: a | P6: a | Q6: a | R6: a | S6: a | T6: 15
A7: 6 | B7: Caroline Carroll | C7: Tarzan's 11 | D7: 2-0 | E7: a | F7: a | G7: a | H7: a | T7: 4
A8: 7 | B8: Chris Hinchey | C8: Lilywhites | D8: 2-0 | E8: a | F8: a | G8: a | H8: a | I8: a | J8: a | K8: a | L8: a | M8: a | N8: a | O8: a | P8: a | Q8: a | R8: a | S8: a | T8: 15
A9: 8 | B9: Ciaran O'Hart | C9: Riverchapel Plate | D9: 1-1 | E9: a | F9: a | G9: a | H9: a | I9: a | T9: 5
A10: 9 | B10: Darragh Kenny | C10: Luca Connell CSC | T10: 0
A11: 10 | B11: David Miley | C11: Dallas Cowboys | T11: 0
A12: 11 | B12: David Moran | C12: Wrightsaidfred | D12: 2-0 | E12: a | F12: a | G12: a | H12: a | I12: a | J12: a | K12: a | L12: a | M12: a | N12: a | O12: a | P12: a | Q12: a | R12: a | S12: a | T12: 15
A13: 12 | B13: Davy Doyle | C13: Whitechurch FC | D13: 2-1 | E13: a | T13: 1
A14: 13 | B14: Dean Fletcher | C14: Fletchy's Flyers | T14: 0
A15: 14 | B15: Derek Kelly | C15: SRFC1725 | T15: 0
A16: 15 | B16: Derek McDonald | C16: Super Shels | D16: 2-0 | E16: a | F16: a | G16: a | H16: a | I16: a | J16: a | K16: a | L16: a | M16: a | N16: a | O16: a | T16: 11
A17: 16 | B17: Eamon Fox | C17: Culchies United | T17: 0
A18: 17 | B18: Eoghan Brophy | C18: Tolka Dreamers | T18: 0
A19: 18 | B19: Eoghan Farrelly | C19: Definitely Last Chance Saloon | D19: 1-0 | E19: a | F19: a | G19: a | H19: a | I19: a | J19: a | K19: a | L19: a | M19: a | N19: a | O19: a | P19: a | Q19: a | R19: a | S19: a | T19: 15
A20: 19 | B20: Fiachra O'Brolachain | C20: Trailerpark Rovers | T20: 0
A21: 20 | B21: Gary Donnelly | C21: Cabinteely II | D21: 2-1 | E21: a | F21: a | G21: a | H21: a | I21: a | T21: 5
A22: 21 | B22: Gary Fitzpatrick | C22: Cabo Ultra's | T22: 0
A23: 22 | B23: Gary Keating | C23: Brohemians | D23: 2-1 | E23: a | F23: a | G23: a | H23: a | I23: a | T23: 5
A24: 23 | B24: Gary McGurk | C24: Chelfest 2013 | D24: 1-0 | E24: a | F24: a | G24: a | H24: a | T24: 4
A25: 24 | B25: Gearoid McIntyre | C25: Nobber Boys | T25: 0
A26: 25 | B26: Gerry Draper | C26: Everton10 | D26: 2-0 | E26: a | F26: a | G26: a | H26: a | I26: a | T26: 5
A27: 26 | B27: Gerry Moore | C27: Rovers Are Red | D27: 2-1 | E27: a | F27: a | G27: a | H27: a | I27: a | T27: 5
A28: 27 | B28: Graeme Buckley | C28: Canyoneroes | D28: 1-0 | E28: a | F28: a | G28: a | H28: a | I28: a | J28: a | K28: a | L28: a | T28: 8
A29: 28 | B29: Hugh Keller | C29: Hugh Jarse FC | D29: 2-1 | E29: a | F29: a | G29: a | H29: a | I29: a | J29: a | K29: a | L29: a | M29: a | N29: a | O29: a | P29: a | Q29: a | R29: a | S29: a | T29: 15
A30: 29 | B30: Ian O'Reilly | C30: Limerick City United Treaty 37 FC | D30: 2-1 | E30: a | F30: a | G30: a | H30: a | I30: a | J30: a | K30: a | L30: a | M30: a | N30: a | O30: a | P30: a | Q30: a | R30: a | S30: a | T30: 15
A31: 30 | B31: Jay Thomas | C31: Tallaght Toppers | D31: 2-1 | E31: a | F31: a | G31: a | H31: a | I31: a | T31: 5
A32: 31 | B32: Joe Behan | C32: Melchester Rovers | T32: 0
A33: 32 | B33: Joe Turner | C33: The Dairymen of Stradbrook | T33: 0
A34: 33 | B34: John Brophy | C34: We're Not Shels | D34: 0-0 | E34: a | T34: 1
A35: 34 | B35: Joseph Kavanagh | C35: Joey's Invincibles | T35: 0
A36: 35 | B36: Josh Tobin | C36: Team1 | D36: 0-1 | E36: a | F36: a | G36: a | H36: a | I36: a | J36: a | K36: a | L36: a | M36: a | N36: a | O36: a | P36: a | Q36: a | R36: a | S36: a | T36: 15
A37: 36 | B37: Keith Ryan | C37: Wearethewanderers | T37: 0
A38: 37 | B38: Kieran Harnett | C38: Limerick United | D38: 2-0 | E38: a | F38: a | G38: a | H38: a | I38: a | J38: a | K38: a | L38: a | M38: a | N38: a | O38: a | P38: a | Q38: a | R38: a | S38: a | T38: 15
A39: 38 | B39: Mark Welsh | C39: 3rdina2horserace | D39: 1-3 | E39: a | F39: a | G39: a | H39: a | I39: a | J39: a | K39: a | L39: a | M39: a | N39: a | O39: a | T39: 11
A40: 39 | B40: Niall Carroll | C40: The Yellow Bellies | D40: 2-1 | E40: a | F40: a | G40: a | H40: a | T40: 4
A41: 40 | B41: Patrick Dempsey | C41: Paddser's Whackers | D41: 3-1 | E41: a | F41: a | G41: a | H41: a | I41: a | J41: a | K41: a | L41: a | M41: a | N41: a | O41: a | P41: a | Q41: a | R41: a | S41: a | T41: 15
A42: 41 | B42: Paul Moore | C42: Niall Quinn's Disco Pants | T42: 0
A43: 42 | B43: Richard Johnston | C43: Mayo For Sam | D43: 2-1 | E43: a | F43: a | G43: a | H43: a | I43: a | J43: a | K43: a | L43: a | M43: a | N43: a | O43: a | P43: a | Q43: a | R43: a | S43: a | T43: 15
A44: 43 | B44: Seamus McGowan | C44: Bit O'Red | D44: 2-1 | E44: a | F44: a | G44: a | H44: a | I44: a | J44: a | K44: a | L44: a | M44: a | N44: a | O44: a | P44: a | Q44: a | R44: a | S44: a | T44: 15
A45: 44 | B45: Sean Keller | C45: The Boys From Dalymount | D45: 0-3 | E45: a | F45: a | G45: a | H45: a | I45: a | J45: a | K45: a | L45: a | M45: a | N45: a | O45: a | P45: a | Q45: a | R45: a | S45: a | T45: 15
A46: 45 | B46: Sean O'Mairtin | C46: EMFA Returns | D46: 2-0 | E46: a | F46: a | G46: a | H46: a | I46: a | J46: a | K46: a | T46: 7
A47: 46 | B47: Sean Taylor | C47: O'Connor's Touting XI | D47: 2-1 | E47: a | F47: a | G47: a | H47: a | I47: a | J47: a | K47: a | L47: a | M47: a | N47: a | O47: a | P47: a | Q47: a | R47: a | T47: 14
A48: 47 | B48: Tom Keane | C48: Hoopshoops | D48: 3-1 | E48: a | F48: a | G48: a | H48: a | I48: a | T48: 5
A49: 48 | B49: Tommy Hamill | C49: Omeath Allstars | D49: 2-1 | E49: a | F49: a | G49: a | H49: a | I49: a | J49: a | T49: 6
A50: 49 | B50: Trevor Rankin | C50: Trev's Tossers | D50: 2-1 | E50: a | F50: a | G50: a | H50: a | I50: a | J50: a | K50: a | L50: a | M50: a | N50: a | O50: a | T50: 11
